Workbook

Sheet проекты по стадиям ПИК
A1: RUS | C1: 1 | D1: 2 | E1: 3 | F1: 4 | G1: 5 | H1: 6 | I1: 7 | J1: 8 | K1: 9 | L1: 10 | M1: 11 | N1: 12 | O1: 13 | P1: 14 | Q1: 15 | R1: 16 | S1: 17 | T1: 18 | U1: 19 | V1: 20 | W1: 21 | X1: 22 | Y1: 23 | Z1: 24 | AA1: 25 | AB1: 26 | AC1: 27 | AD1: 28 | AE1: 29
B2: =IF(lang="RUS",'labels!!!'!A74,'labels!!!'!A76) -> # | C2: =IF(lang="RUS",'labels!!!'!B74,'labels!!!'!B76) -> Объект | D2: =IF(lang="RUS",'labels!!!'!C74,'labels!!!'!C76) -> Описание | E2: =IF(lang="RUS",'labels!!!'!D74,'labels!!!'!D76) -> Количество строений | F2: =IF(lang="RUS",'labels!!!'!E74,'labels!!!'!E76) -> Площадь земельного участка, га | G2: =IF(lang="RUS",'labels!!!'!F74,'labels!!!'!F76) -> Площадь на продажу всего, кв.м. | H2: =IF(lang="RUS",'labels!!!'!G74,'labels!!!'!G76) -> Паркинг на продажу всего, шт. | I2: =IF(lang="RUS",'labels!!!'!H74,'labels!!!'!H76) -> Площадь на продажу, доля ПИК, кв.м. | J2: =IF(lang="RUS",'labels!!!'!I74,'labels!!!'!I76) -> Паркинг на продажу, доля ПИК, шт. | K2: =IF(lang="RUS",'labels!!!'!J74,'labels!!!'!J76) -> Не продано площади, доля ПИК, кв.м. | L2: =IF(lang="RUS",'labels!!!'!K74,'labels!!!'!K76) -> Не продано паркинга, доля ПИК, шт. | M2: =IF(lang="RUS",'labels!!!'!L74,'labels!!!'!L76) -> Старт продаж | N2: =IF(lang="RUS",'labels!!!'!M74,'labels!!!'!M76) -> Окончание продаж | O2: Дата начала СМР | P2: =IF(lang="RUS",'labels!!!'!O74,'labels!!!'!O76) -> Завершение строительства | Q2: =IF(lang="RUS",'labels!!!'!P74,'labels!!!'!P76) -> Стадия девелопмента | R2: =IF(lang="RUS",'labels!!!'!Q74,'labels!!!'!Q76) -> Ставка дисконтирования | S2: =IF(lang="RUS",'labels!!!'!R74,'labels!!!'!R76) -> Общий бюджет, тыс. руб | T2: =IF(lang="RUS",'labels!!!'!S74,'labels!!!'!S76) -> Обременения, тыс.руб | U2: =IF(lang="RUS",'labels!!!'!T74,'labels!!!'!T76) -> Бюджет факт, тыс. руб | V2: =IF(lang="RUS",'labels!!!'!U74,'labels!!!'!U76) -> Оставшийсся бюджет, тыс. руб | W2: =IF(lang="RUS",'labels!!!'!V74,'labels!!!'!V76) -> Оставшийся бюджет, руб. за кв.м. непроданных площадей | X2: =IF(lang="RUS",'labels!!!'!W74,'labels!!!'!W76) -> Средняя цена продажи квартир/нежилых помещений, руб. за 1 кв.м. | Y2: =IF(lang="RUS",'labels!!!'!X74,'labels!!!'!X76) -> Средняя цена продажи паркинга, с НДС, руб. за шт. | Z2: =IF(lang="RUS",'labels!!!'!Y74,'labels!!!'!Y76) -> Цена аренды, руб. за кв.м. в год | AA2: =IF(lang="RUS",'labels!!!'!Z74,'labels!!!'!Z76) -> Рыночная стоимость, тыс. руб. | AB2: =IF(lang="RUS",'labels!!!'!AA74,'labels!!!'!AA76) -> Рыночная стоимость, руб. за кв.м. непроданных площадей | AC2: =IF(lang="RUS",'labels!!!'!AB74,'labels!!!'!AB76) -> Рыночная стоимость, дол. США | AD2: =IF(lang="RUS",'labels!!!'!AC74,'labels!!!'!AC76) -> Рыночная стоимость, дол. США за кв.м. непроданных площадей | AE2: =IF(lang="RUS",'labels!!!'!AC74,'labels!!!'!AC76) -> Рыночная стоимость, дол. США за кв.м. непроданных площадей
C3: =#REF! -> 
C4: Инвестиционные объекты (завершенные строительством и частично проданные)
A5: 1 | B5: 1 | AE5: 0
A6: 1 | B6: 2
A7: 1 | B7: 3
A8: 1 | B8: 4
A9: 1 | B9: 5
A10: 1 | B10: 6
A11: 1 | B11: 7
A12: 1 | B12: 8
A13: 1 | B13: 9
A14: 1 | B14: 10
A15: 1 | B15: 11
A16: 1 | B16: 12
A17: 1 | B17: 13
A18: 1 | B18: 14
A19: 1 | B19: 15
A20: 1 | B20: 16
A21: 1 | B21: 17
A22: 1 | B22: 18
A23: 1 | B23: 19
A24: 1 | B24: 20
A25: 1 | B25: 21
A26: 1 | B26: 22
A27: 1 | B27: 23
A28: 1 | B28: 24
A29: 1 | B29: 25
A30: 1 | B30: 26
A31: 1 | B31: 27
A32: 1 | B32: 28
A33: 1 | B33: 29
A34: 1 | B34: 30
A35: 1 | B35: 31
A36: 1 | B36: 32
A37: 1 | B37: 33
A38: 1 | B38: 34
A39: 1 | B39: 35
A40: 1 | B40: 36
A41: 1 | B41: 37
A42: 1 | B42: 38
A43: 1 | B43: 39
A44: 1 | B44: 40
A45: 1 | B45: 41
A46: 1 | B46: 42
A47: 1 | B47: 43
A48: 1 | B48: 44
A49: 1 | B49: 45
A50: 1 | B50: 46
A51: 1 | B51: 47
A52: 1 | B52: 48
A53: 1 | B53: 49
A54: 1 | B54: 50
C55: Итого | E55: =COUNTA('проекты по стадиям ПИК'!C5:C54) -> 0 | F55: =SUM(F5:F54) -> 0 | G55: =SUM(G5:G54) -> 0 | I55: =SUM(I5:I54) -> 0 | K55: =SUM(K5:K54) -> 0 | L55: =SUM(L5:L54) -> 0 | S55: =SUM(S5:S54) -> 0 | U55: =SUM(U5:U54) -> 0 | V55: =SUM(V5:V54) -> 0 | AA55: =SUM(AA5:AA54) -> 0 | AC55: =SUM(AC5:AC54) -> 0
C56: Объекты в процессе развития
A57: 2 | B57: 1 | C57: г. Москва, АО Зеленоград, мкр. 17, Жемчужина Зеленограда | E57: 17 | F57: 289.79 | G57: 272889.8006 | H57: 0 | I57: 169882.6706 | J57: 0 | K57: 49517.6 | L57: 0 | M57: <01.01.2019 | N57: 2020-03-31 | O57: <01.01.2019 | P57: 44561 | R57: 0.1424868335 | S57: 14439071.79 | V57: 3239580.59 | W57: 65422.81107 | X57: 155739.5223 | Y57: паркинг отсутствует | Z57: 0 | AA57: 2579091.663 | AB57: =AA57*1000/K57 -> 52084.343 | AE57: 0
A58: 2 | B58: 2 | C58: г. Москва, Варшавское ш., вл. 141 - Кирпичные выемки | E58: 7 | F58: 4.6853 | G58: 69618.94 | H58: 300 | I58: 66840.64 | J58: 300 | K58: 2051.5 | L58: 86 | M58: <01.01.2019 | N58: 2019-03-31 | O58: <01.01.2019 | P58: 44561 | R58: 0.11289248 | S58: 6126882.206 | V58: 713793.2648 | W58: 347937.2483 | X58: 470253.363 | Y58: 700000 | Z58: 0 | AA58: -152696.0066 | AB58: =AA58*1000/K58 -> -74431.39489 | AE58: 0
A59: 2 | B59: 3 | C59: г. Москва, Высоковольтный пр-д, вл. 5 | E59: 11 | F59: 15.7 | G59: 143780.5 | H59: 597 | I59: 130299.8 | J59: 597 | K59: 46919.49485 | L59: 597 | M59: <01.01.2019 | N59: 2020-12-31 | O59: <01.01.2019 | P59: 44196 | R59: 0.1313861372 | S59: 12307516.5 | V59: 4175271.337 | W59: 88987.98571 | X59: 208119.9883 | Y59: 500000 | Z59: 0 | AA59: 3004490 | AB59: =AA59*1000/K59 -> 64035.00314 | AE59: 0
A60: 2 | B60: 4 | C60: г. Москва, Измайловский пр-д, вл. 5а, вл. 11 | E60: 1 | F60: 3.5 | G60: 58552 | H60: 477 | I60: 58552 | J60: 477 | K60: 32111.66 | L60: 477 | M60: <01.01.2019 | N60: 2020-12-31 | O60: <01.01.2019 | P60: 44196 | R60: 0.1412656898 | S60: 7027008.159 | V60: 4657750.663 | W60: 145048.5793 | X60: 262681.0746 | Y60: 1000000 | Z60: 0 | AA60: 2709763.714 | AB60: 84385.66285 | AE60: 0
A61: 2 | B61: 5 | C61: г. Москва, Кунцево, кв. 47, 48, Кунцево-парк | E61: 27 | F61: 19.89 | G61: 321101.3 | H61: 3840 | I61: 223874.38 | J61: 3456 | K61: 223874.38 | L61: 3456 | M61: 01.07.2019 | N61: 2031-12-31 | O61: <01.01.2019 | P61: 48579 | R61: 0.1421433866 | S61: 24526623.57 | V61: 24456620.94 | W61: 109242.6071 | X61: 206089.6705 | Y61: 1200000 | Z61: 0 | AA61: 8266888 | AB61: 36926.45849 | AE61: 0
A62: 2 | B62: 6 | C62: г. Москва, Мещерский лес (Боровское шоссе, вл. 2) | E62: 29 | F62: 31.1753 | G62: 434386.2398 | H62: 3659 | I62: 388818.9598 | J62: 3659 | K62: 110795.5669 | L62: 3142 | M62: <01.01.2019 | N62: 2021-12-31 | O62: <01.01.2019 | P62: 45657 | R62: 0.135449883 | S62: 29825121.59 | V62: 12756390.54 | W62: 115134.485 | X62: 185234.9129 | Y62: 700000 | Z62: 0 | AA62: 5161434.524 | AB62: 46585.20793 | AE62: 0
A63: 2 | B63: 7 | C63: Н.М. г. Москва, мкр. Солнцево-Парк | E63: 8 | F63: 10 | G63: 229988.9002 | H63: 2584 | I63: 51414.2102 | J63: 2012 | K63: 21241.51 | L63: 763 | M63: <01.01.2019 | N63: 2021-03-31 | O63: <01.01.2019 | P63: 44286 | R63: 0.1210594286 | S63: 2812356.807 | V63: 1390306.53 | W63: 65452.33979 | X63: 115685.2864 | Y63: 312971.628 | Z63: 0 | AA63: 1034769.634 | AB63: 48714.50449 | AE63: 0
A64: 2 | B64: 8 | C64: г. Москва, Мякинино | E64: 12 | F64: 28.03 | G64: 293790.3 | H64: 1861 | I64: 245790.3 | J64: 1861 | K64: 229888.7 | L64: 1861 | M64: <01.01.2019 | N64: 2023-03-31 | O64: <01.01.2019 | P64: 46387 | R64: 0.1339358642 | S64: 21465021.03 | V64: 20395142.5 | W64: 88717.46416 | X64: 116148.8499 | Y64: 673622.7321 | Z64: 0 | AA64: 3958910 | AB64: 17220.98563 | AE64: 0
A65: 2 | B65: 9 | C65: Н.М. г. Москва, посел. Сосенское (Коммунарка) | E65: 90 | F65: 127.79 | G65: 1212703.5 | H65: 12760 | I65: 1061769.68 | J65: 12760 | K65: 456442.5041 | L65: 12760 | M65: <01.01.2019 | N65: 2024-03-31 | O65: <01.01.2019 | P65: 46387 | R65: 0.1297524617 | S65: 73476693.27 | V65: 34766599.6 | W65: 76168.62866 | X65: 122999.7606 | Y65: 473354.232 | Z65: 0 | AA65: 18466031.58 | AB65: 40456.42423 | AE65: 0
A66: 2 | B66: 10 | C66: г. Москва, Пресненский Вал, вл. 21 | E66: 1 | F66: 0.1596 | G66: 14343.9 | H66: 60 | I66: 14343.9 | J66: 60 | K66: 2117.3 | L66: 15 | M66: <01.01.2019 | N66: 2019-09-30 | O66: <01.01.2019 | P66: 43555 | R66: 0.1221656898 | S66: 2520884.538 | V66: 408964.8554 | W66: 193153.9486 | X66: 294766.7628 | Y66: 2500000 | Z66: 0 | AA66: 318531.8205 | AB66: 150442.46 | AE66: 0
A67: 2 | B67: 11 | C67: г. Москва, р-н Кунцево, кв. 7, 20 | E67: 15 | F67: 21.6533 | G67: 376050.2899 | H67: 2571 | I67: 269347.2899 | J67: 2314 | K67: 85149.02 | L67: 1416 | M67: <01.01.2019 | N67: 2021-06-30 | O67: <01.01.2019 | P67: 44561 | R67: 0.1365701008 | S67: 34408198.94 | V67: 9845604.304 | W67: 115627.9227 | X67: 252106.7156 | Y67: 1349830.508 | Z67: 0 | AA67: 10431430 | AB67: 122507.9279 | AE67: 0
A68: 2 | B68: 12 | C68: г. Москва, Северный | E68: 9 | F68: 201.93 | G68: 129790.12 | H68: 660 | I68: 77067.62 | J68: 632 | K68: 1334.09 | L68: 451 | M68: <01.01.2019 | N68: 2019-03-31 | O68: <01.01.2019 | P68: 43830 | R68: 0.1500818866 | S68: 6882112.796 | V68: 618450.4835 | W68: 463574.7839 | X68: 195078.3101 | Y68: 598243.5461 | Z68: 0 | AA68: 199223.1601 | AB68: 149332.6238 | AE68: 0
A69: 2 | B69: 13 | C69: г. Москва, Марьина роща, Складочная улица, вл.6 | E69: 11 | F69: 12.8515 | G69: 202765.99 | H69: 1466 | I69: 183954.68 | J69: 1466 | K69: 156979.46 | L69: 1466 | M69: <01.01.2019 | N69: 2022-12-31 | O69: <01.01.2019 | P69: 45291 | R69: 0.131863503 | S69: 19333777.81 | V69: 18912071.9 | W69: 120474.8182 | X69: 176120.719 | Y69: 724743.2081 | Z69: 0 | AA69: 8881604.466 | AB69: 56578.13109 | AE69: 0
A70: 2 | B70: 14 | C70: г. Москва, ул. Вавилова, вл. 4 | E70: 1 | F70: 1.626 | G70: 35476 | H70: 370 | I70: 35476 | J70: 370 | K70: 4156.15 | L70: 131 | M70: <01.01.2019 | N70: 2019-09-30 | O70: <01.01.2019 | P70: 43830 | R70: 0.1221656898 | S70: 6423491.153 | V70: 647613.1152 | W70: 155820.4384 | X70: 413354.6672 | Y70: 2500000 | Z70: 0 | AA70: 1279603.159 | AB70: 307881.8519 | AE70: 0
A71: 2 | B71: 15 | C71: г. Москва, ул. Заречная, вл. 2/1 (Западный речной порт) | E71: 6 | F71: 10.6559 | G71: 218405.6 | H71: 1724 | I71: 218405.6 | J71: 1724 | K71: 208147.6 | L71: 1724 | M71: 01.01.2019 | N71: 2024-09-30 | O71: <01.01.2019 | P71: 45657 | R71: 0.1291269531 | S71: 25660404.1 | V71: 18586504.91 | W71: 113230.4396 | X71: 233866.6616 | Y71: паркинг отсутствует | Z71: 0 | AA71: 16916827.85 | AB71: 81273.23037 | AE71: 0
A72: 2 | B72: 16 | C72: г. Москва, ул. Лобненская, 13 | E72: 4 | F72: 8.3776 | G72: 198230.96 | H72: 1724 | I72: 193230.96 | J72: 1724 | K72: 158147.34 | L72: 1309 | M72: 01.01.2019 | N72: 2022-09-30 | O72: <01.01.2019 | P72: 45291 | R72: 0.1283470265 | S72: 16496134.6 | V72: 14918838.32 | W72: 94335.0569 | X72: 174479.4539 | Y72: 712026.7532 | Z72: 0 | AA72: 9524230.223 | AB72: 60223.77754 | AE72: 0
A73: 2 | B73: 17 | C73: г. Москва, ул. Мосфильмовская | E73: 1 | F73: 4.666 | G73: 36927.396 | H73: 340 | I73: 16921.166 | J73: 210 | K73: 5682.406 | L73: 133 | M73: <01.01.2019 | N73: 2019-12-31 | O73: <01.01.2019 | P73: 43830 | R73: 0.1171656898 | S73: 1783007.627 | V73: 15263.76666 | W73: 2686.145035 | X73: 290849.115 | Y73: 1650000 | Z73: 0 | AA73: 1254465.968 | AB73: 220763.171 | AE73: 0
A74: 2 | B74: 18 | C74: г. Москва, ул. Поляны, ЖК Столичные поляны | E74: 5 | F74: 14.634 | G74: 251022.8959 | H74: 1430 | I74: 173856.7459 | J74: 724 | K74: 102088.95 | L74: 599 | M74: <01.01.2019 | N74: 2021-12-31 | O74: <01.01.2019 | P74: 44561 | R74: 0.1268364157 | S74: 16268157.55 | V74: 10816449.36 | W74: 105951.2255 | X74: 157357.3132 | Y74: 850000 | Z74: 0 | AA74: 2923681 | AB74: 28638.5647 | AE74: 0
A75: 2 | B75: 19 | C75: г. Москва, ул. Полярная, вл. 25 | E75: 16 | F75: 18.84 | G75: 278646.5 | H75: 1039 | I75: 248746.5 | J75: 1039 | K75: 194405.6 | L75: 1039 | M75: <01.01.2019 | N75: 2024-09-30 | O75: <01.01.2019 | P75: 45657 | R75: 0.1301539976 | S75: 24218641.07 | V75: 15825137.74 | W75: =V75*1000/K75 -> 81402.68461 | X75: 163392.4944 | Y75: 569008.6622 | Z75: 0 | AA75: 10518219.2 | AB75: 54104.50725 | AE75: 0
A76: 2 | B76: 20 | C76: г. Москва, ВДНХ, ул. Сельскохозяйственная, вл. 35 | E76: 14 | F76: 33.9918 | G76: 428942.66 | H76: 2616 | I76: 371890.44 | J76: 2616 | K76: 179042.912 | L76: 1529 | M76: <01.01.2019 | N76: 2022-09-30 | O76: <01.01.2019 | P76: 45657 | R76: 0.1223545516 | S76: 44909403.73 | V76: 22560120.24 | W76: 126003.9841 | X76: 197131.6495 | Y76: 893523.5448 | Z76: 0 | AA76: 9790461 | AB76: 54682.20378 | AE76: 0
A77: 2 | B77: 21 | C77: г. Москва, ул. Цимлянская, ЖК ВЛюблино | E77: 4 | F77: 17.886 | G77: 90833.74 | H77: 477 | I77: 74780.23 | J77: 401 | K77: 14103.65 | L77: 251 | M77: <01.01.2019 | N77: 2020-06-30 | O77: <01.01.2019 | P77: 45291 | R77: 0.1308955296 | S77: 6450493.763 | V77: 2539958.917 | W77: 180092.3107 | X77: 243326.276 | Y77: 712055.6109 | Z77: 0 | AA77: 108947.9019 | AB77: 7724.801871 | AE77: 0
A78: 2 | B78: 22 | C78: г. Москва, ул. Черняховского, вл. 19 | E78: 6 | F78: 7.6181 | G78: 90793.37 | H78: 704 | I78: 80483.07 | J78: 704 | K78: 1738.51 | L78: 100 | M78: <01.01.2019 | N78: 2019-03-31 | O78: <01.01.2019 | P78: 44561 | R78: 0.1163924863 | S78: 11785170.66 | V78: 1493177.237 | W78: 858883.3181 | X78: 517344.6912 | Y78: 1350000 | Z78: 0 | AA78: -1020450.574 | AB78: -586968.4809 | AE78: 0
A79: 2 | B79: 23 | C79: г. Москва, ул. Ясеневая, вл. 14 | E79: 10 | F79: 17.11 | G79: 238580.1 | H79: 1798 | I79: 158072.97 | J79: 1798 | K79: 77032.97 | L79: 1699 | M79: <01.01.2019 | N79: 2021-03-31 | O79: <01.01.2019 | P79: 44561 | R79: 0.1326611814 | S79: 17111650.48 | V79: 10324540.65 | W79: 134027.5554 | X79: 204161.1684 | Y79: 533402.0012 | Z79: 0 | AA79: 4212393.967 | AB79: 54683.00089 | AE79: 0
A80: 2 | B80: 24 | C80: г. Москва, ул. Красноказарменная, 14А (Пётр I) | E80: 9 | F80: 29.268 | G80: 142328.28 | H80: 1618 | I80: 136412.61 | J80: 1269 | K80: 72496.53 | L80: 904 | M80: <01.01.2019 | N80: 2021-09-30 | O80: <01.01.2019 | P80: 45291 | R80: 0.1538456452 | S80: 13963169.96 | V80: 7802554.4 | W80: 107626.5912 | X80: 207701.3381 | Y80: 1184513.274 | Z80: 0 | AA80: 5763697.001 | AB80: 79503.07417 | AE80: 0
A81: 2 | B81: 25 | C81: Н.М. д. Саларьево | E81: 59 | F81: 192.1 | G81: 1480973.901 | H81: 9745 | I81: 1440732.301 | J81: 9745 | K81: 1057260.3 | L81: 9373 | M81: <01.01.2019 | N81: 2026-03-31 | O81: <01.01.2019 | P81: 46387 | R81: 0.1460088258 | S81: 107680228.1 | V81: 75011807.98 | W81: 70949.23358 | X81: 135011.4622 | Y81: 525929.0206 | Z81: 0 | AA81: 40836864.83 | AB81: 38625.17568 | AE81: 0
A82: 2 | B82: 26 | C82: обл. г. Балашиха, Измайловский лес | E82: 21 | F82: 60.05 | G82: 399508.8102 | H82: 1500 | I82: 383713.9102 | J82: 1500 | K82: 286497.768 | L82: 1413 | M82: <01.01.2019 | N82: 2023-03-31 | O82: <01.01.2019 | P82: 45657 | R82: 0.1410261101 | S82: 30096853.85 | V82: 19683269.42 | W82: 68703.04633 | X82: 108584.8389 | Y82: 399800.712 | Z82: 0 | AA82: 7656361.04 | AB82: 26723.98146 | AE82: 0
A83: 2 | B83: 27 | C83: обл. г. Балашиха, мкр. Щитниково-А, Янтарный | E83: 1 | F83: 15.6 | G83: 20440.11 | H83: 194 | I83: 3132.61 | J83: 76 | K83: 312.31 | L83: 6 | M83: <01.01.2019 | N83: 2018-12-31 | O83: <01.01.2019 | P83: 43555 | R83: 0.1514767347 | S83: 630556.0252 | V83: 4616.44551 | W83: 14781.61285 | X83: 169387.1813 | Y83: 540000 | Z83: 0 | AA83: -5913 | AB83: -18933.11133 | AE83: 0
A84: 2 | B84: 28 | C84: обл. г. Балашиха, мкр. Щитниково-Б, Изумрудный | E84: 2 | F84: 15.9 | G84: 27566.7468 | H84: 0 | I84: 18322.1968 | J84: 0 | K84: 4603.57 | L84: 0 | M84: <01.01.2019 | N84: 2019-09-30 | O84: <01.01.2019 | P84: 44196 | R84: 0.1747767347 | S84: 1346964.827 | V84: 422388.3721 | W84: 91752.35134 | X84: 102472.9828 | Y84: 540000 | Z84: 0 | AA84: -24139 | AB84: -5243.539253 | AE84: 0
A85: 2 | B85: 29 | C85: обл. г. Дубна, квартал С-5 | E85: 2 | F85: 1.19 | G85: 17860.8298 | H85: 0 | I85: 13090.6098 | J85: 0 | K85: 13090.6098 | L85: 0 | M85: 01.07.2019 | N85: 2020-06-30 | O85: <01.01.2019 | P85: 43738 | R85: 0.1221656898 | S85: 450369.2714 | V85: 288792.5271 | W85: 22061.04463 | X85: 45051.53523 | Y85: 540000 | Z85: 0 | AA85: 262571.324 | AB85: 20057.99027 | AE85: 0
A86: 2 | B86: 30 | C86: обл. г. Котельники, Белая Дача (ДРЗТ) | E86: 12 | F86: 3.7785 | G86: 227489.5 | H86: 543 | I86: 214584.1 | J86: 543 | K86: 204947.5 | L86: 543 | M86: <01.01.2019 | N86: 2025-06-30 | O86: <01.01.2019 | P86: 46387 | R86: 0.1383124964 | S86: 18246567.91 | V86: 16308709.95 | W86: 79575.06166 | X86: 102196.699 | Y86: 480378.7692 | Z86: 0 | AA86: 1709688 | AB86: 8342.077849 | AE86: 0
A87: 2 | B87: 31 | C87: обл. г. Котельники, уч. 6/11 (Совхоз Белая Дача) | E87: 16 | F87: 50 | G87: =K87 -> 707512.29 | H87: 2400 | I87: =G87 -> 707512.29 | J87: 2400 | K87: 707512.29 | L87: 2400 | M87: 01.01.2022 | N87: 2032-06-30 | O87: <01.01.2019 | P87: 48213 | R87: 0.1561559575 | S87: 46320563.2 | V87: 42803258.96 | W87: 69097.46096 | X87: 94731.38542 | Y87: паркинг отсутствует | Z87: 0 | AA87: 6916681.943 | AB87: 9776.059074 | AE87: 0
A88: 2 | B88: 32 | C88: обл. г. Котельники, мкр. Ковровый, ДРЗТ | E88: 9 | F88: 14 | G88: 175227.2 | H88: 0 | I88: 149181.53 | J88: 0 | K88: 147091.23 | L88: 0 | M88: 01.01.2020 | N88: 2024-12-31 | O88: <01.01.2019 | P88: 46387 | R88: 0.1406163972 | S88: 12193824.95 | V88: 11342446.9 | W88: 77111.64628 | X88: 98597.9368 | Y88: паркинг отсутствует | Z88: 0 | AA88: 909035.8378 | AB88: 6180.08183 | AE88: 0
A89: 2 | B89: 33 | C89: обл. г. Котельники, мкр. Опытное поле | E89: 6 | F89: 14.8737 | G89: 190028.51 | H89: 534 | I89: 190028.51 | J89: 534 | K89: 15454.62 | L89: 107 | M89: <01.01.2019 | N89: 2019-12-31 | O89: <01.01.2019 | P89: 44196 | R89: 0.1370096912 | S89: 13299969.29 | V89: 954399.9299 | W89: 61754.99171 | X89: 149323.4313 | Y89: 944908.2732 | Z89: 0 | AA89: 525125.7298 | AB89: 33978.5598 | AE89: 0
A90: 2 | B90: 34 | C90: обл. г. Котельники, ТПУ | E90: 2 | F90: 6.6174 | G90: 145051.6399 | H90: 1172 | I90: 142042.3399 | J90: 1172 | K90: 120462.7 | L90: 1172 | M90: <01.01.2019 | N90: 2022-09-30 | O90: <01.01.2019 | P90: 44926 | R90: 0.1419887809 | S90: 14502009.01 | V90: 12952745.47 | W90: 107524.9473 | X90: 138499.5715 | Y90: 726868.6007 | Z90: 0 | AA90: 1472040.782 | AB90: 12219.88867 | AE90: 0
A91: 2 | B91: 35 | C91: обл. г. Люберцы, ГНИ | E91: 20 | F91: 22.1483 | G91: 342308.76 | H91: 1268 | I91: 313518.4 | J91: 1268 | K91: 281252.8 | L91: 1268 | M91: <01.01.2019 | N91: 2024-03-31 | O91: <01.01.2019 | P91: 46022 | R91: 0.1387885536 | S91: 25645934.84 | V91: 19999897.1 | W91: 71110.03729 | X91: 117705.1735 | Y91: 450000 | Z91: 0 | AA91: 7907979 | AB91: 28116.97875 | AE91: 0
A92: 2 | B92: 36 | C92: обл. г. Люберцы, ЖК Люберецкий | E92: 19 | F92: 59.7 | G92: 475373.9901 | H92: 1400 | I92: 306090.8501 | J92: 1400 | K92: 188034.42 | L92: 1400 | M92: <01.01.2019 | N92: 2022-12-31 | O92: <01.01.2019 | P92: 44926 | R92: 0.1394869458 | S92: 26305933.93 | V92: 12566786.14 | W92: 66832.3711 | X92: 118432.9939 | Y92: 350000 | Z92: 0 | AA92: 4909027 | AB92: 26107.06593 | AE92: 0
A93: 2 | B93: 37 | C93: обл. г. Люберцы, Камов | E93: 17 | F93: 18.1976 | G93: 303967.28 | H93: 1602 | I93: 275321.12 | J93: 1602 | K93: 243911.22 | L93: 1602 | M93: <01.01.2019 | N93: 2022-12-31 | O93: <01.01.2019 | P93: 46387 | R93: 0.1455879444 | S93: 18879632.09 | V93: 15692118.07 | W93: 64335.36788 | X93: 105567.1485 | Y93: 306796.6042 | Z93: 0 | AA93: 5562282.619 | AB93: 22804.53773 | AE93: 0
A94: 2 | B94: 38 | C94: обл. г. Мытищи, р-н Ярославский | E94: 81 | F94: 112.11 | G94: 1269546.911 | H94: 12141 | I94: 1065681.791 | J94: 12123 | K94: 181115.47 | L94: 10674 | M94: <01.01.2019 | N94: 2021-06-30 | O94: <01.01.2019 | P94: 46752 | R94: 0.1373604144 | S94: 67078468.1 | V94: 20161637.27 | W94: 111319.2444 | X94: 124554.1324 | Y94: 427056.0708 | Z94: 0 | AA94: 3165149 | AB94: 17475.86222 | AE94: 0
A95: 2 | B95: 39 | C95: обл. г. Химки, Звезда России | E95: 13 | F95: 13.4398 | G95: 188870.4888 | H95: 125 | I95: 128175.8588 | J95: 125 | K95: 708.4108 | L95: 0 | M95: <01.01.2019 | N95: 2019-03-31 | O95: <01.01.2019 | P95: 43738 | R95: 0.1272864917 | S95: 6946247.057 | V95: 354115.152 | W95: 499872.6049 | X95: 513487.7783 | Y95: непроданный паркинг отсутствует | Z95: 0 | AA95: -374511.474 | AB95: -528664.2637 | AE95: 0
A96: 2 | B96: 40 | C96: обл. г. Химки, Новокуркино | E96: 58 | F96: 84.8224 | G96: 996864.6986 | H96: 1481 | I96: 915840.1286 | J96: 1481 | K96: 1857.86 | L96: 662 | M96: <01.01.2019 | N96: 2019-03-31 | O96: <01.01.2019 | P96: 44561 | R96: 0.1232922333 | S96: 39856993.65 | V96: 1195621.381 | W96: 643547.62 | X96: 155555.4294 | Y96: 508845.9215 | Z96: 0 | AA96: -1213747.229 | AB96: -653303.9243 | AE96: 0
A97: 2 | B97: 41 | C97: обл. г. Химки, ул. Совхозная, вл. 11 | E97: 23 | F97: 41.991 | G97: 475591.6001 | H97: 987 | I97: 430634.8001 | J97: 987 | K97: 367.3 | L97: 173 | M97: <01.01.2019 | N97: 2019-03-31 | O97: <01.01.2019 | P97: 43830 | R97: 0.1214029073 | S97: 24363388.07 | V97: 325220 | W97: 885434.2498 | X97: 169313.7599 | Y97: 644335.2601 | Z97: 0 | AA97: -263413.3778 | AB97: -717161.388 | AE97: 0
A98: 2 | B98: 42 | C98: обл. г.о. Красногорск, Волоколамское шоссе, мкр. Чернево-2 | E98: 1 | F98: 0 | G98: 8572.3 | H98: 83 | I98: 8572.3 | J98: 83 | K98: 8370.9 | L98: 83 | M98: 01.07.2019 | N98: 2021-09-30 | O98: <01.01.2019 | P98: 44469 | R98: 0.1367656898 | S98: 716465.0749 | V98: 488387.4458 | W98: 58343.48108 | X98: 93975.71683 | Y98: 600000 | Z98: 0 | AA98: 229382 | AB98: 27402.31038 | AE98: 0
A99: 2 | B99: 43 | C99: обл. Одинцовский р-н, г.п. Одинцово, мкр. Одинцово-1 | E99: 27 | F99: 59.43 | G99: 759740.7558 | H99: 8230 | I99: 656792.5958 | J99: 8230 | K99: 497434.7074 | L99: 8230 | M99: <01.01.2019 | N99: 2023-12-31 | O99: <01.01.2019 | P99: 45291 | R99: 0.1684999669 | S99: 42513943.06 | V99: 30851178.99 | W99: 62020.55974 | X99: 88179.28203 | Y99: 410001.8799 | Z99: 0 | AA99: 7821313.797 | AB99: 15723.29731 | AE99: 0
A100: 2 | B100: 44 | C100: обл. Красногорский р-н, Ильинские Луга | E100: 21 | F100: 215 | G100: 1456427.61 | H100: 8000 | I100: 1444290.16 | J100: 8000 | K100: 1300694.81 | L100: 8000 | M100: <01.01.2019 | N100: 2035-09-30 | O100: <01.01.2019 | P100: 49490 | R100: 0.1649898274 | S100: 98803048.71 | V100: 91527189.36 | W100: 70367.92079 | X100: 97915.69952 | Y100: 200000 | Z100: 0 | AA100: 8519211.856 | AB100: 6549.739255 | AE100: 0
A101: 2 | B101: 45 | C101: обл. Красногорск-Митино | E101: 9 | F101: 7.965 | G101: 162266.7041 | H101: 259 | I101: 149586.3041 | J101: 259 | K101: 59331.49027 | L101: 259 | M101: <01.01.2019 | N101: 2021-03-31 | O101: <01.01.2019 | P101: 44561 | R101: 0.1531177933 | S101: 9017593.072 | V101: 6095560.878 | W101: 102737.3634 | X101: 193094.852 | Y101: 1600000 | Z101: 0 | AA101: 3857098.099 | AB101: 65009.2907 | AE101: 0
A102: 2 | B102: 46 | C102: обл. Красногорский р-н, Мортон-Град "Путилково" | E102: 28 | F102: 57.57 | G102: 634277.1 | H102: 0 | I102: 160240.5 | J102: 0 | K102: 63203.04 | L102: 0 | M102: <01.01.2019 | N102: 2020-12-31 | O102: <01.01.2019 | P102: 44377 | R102: 0.124140744 | S102: 12373026.24 | V102: 3439412.031 | W102: 54418.45885 | X102: 118939.8491 | Y102: 1600000 | Z102: 0 | AA102: 2570312.482 | AB102: 40667.54513 | AE102: 0
A103: 2 | B103: 47 | C103: обл. Ленинский р-н, д. Боброво, Восточное Бутово | E103: 36 | F103: 1287.97 | G103: 1162590.444 | H103: 0 | I103: 870158.6041 | J103: 0 | K103: 727594.3548 | L103: 0 | M103: <01.01.2019 | N103: 2027-12-31 | O103: <01.01.2019 | P103: 46752 | R103: 0.1684888971 | S103: 62180612.47 | V103: 49540608.9 | W103: 68088.22604 | X103: 99836.08311 | Y103: 1600000 | Z103: 0 | AA103: 8937007.997 | AB103: 12282.95401 | AE103: 0
A104: 2 | B104: 48 | C104: обл. Ленинский р-н, д. Бутово, мкр. Бутово-Парк | E104: 13 | F104: 29.6531 | G104: 197149.47 | H104: 779 | I104: 42143.6 | J104: 467 | K104: 7464.09 | L104: 307 | M104: <01.01.2019 | N104: 2019-12-31 | O104: <01.01.2019 | P104: 44561 | R104: 0.1410759803 | S104: 3117303.067 | V104: 1678055.098 | W104: 224817.1041 | X104: 174272.5754 | Y104: 608589.5765 | Z104: 0 | AA104: 284979.5679 | AB104: 38180.08196 | AE104: 0
A105: 2 | B105: 49 | C105: обл. Ленинский р-н, мкр. Бутово, 3-я очередь | E105: 54 | F105: 116.4144 | G105: 1082519.88 | H105: 2625 | I105: 566729.9701 | J105: 2625 | K105: 368273.94 | L105: 2625 | M105: <01.01.2019 | N105: 2023-12-31 | O105: <01.01.2019 | P105: 45657 | R105: 0.1348568266 | S105: 41441640.18 | V105: 26257694.82 | W105: 71299.35618 | X105: 102200.8027 | Y105: 180000 | Z105: 0 | AA105: 5303550.164 | AB105: 14401.10089 | AE105: 0
A106: 2 | B106: 50 | C106: рег. г. Екатеринбург, ул. Космонавтов 11 | E106: 11 | F106: 22 | G106: 320708.9963 | H106: 2950 | I106: 308308.9963 | J106: 2950 | K106: 274046.33 | L106: 2950 | M106: <01.01.2019 | N106: 2026-06-30 | O106: <01.01.2019 | P106: 46022 | R106: 0.1523596474 | S106: 18708885.42 | V106: 17156570.32 | W106: 62604.63446 | X106: 69129.68818 | Y106: 403600 | Z106: 0 | AA106: 337321.0664 | AB106: 1230.890654 | AE106: 0
A107: 2 | B107: 51 | C107: рег. г. Калуга, Правобережный район, уч. 8, уч. 9 | E107: 5 | F107: 7.3884 | G107: 68514.65 | H107: 100 | I107: 68514.65 | J107: 100 | K107: 31098.25 | L107: 0 | M107: <01.01.2019 | N107: 2021-09-30 | O107: <01.01.2019 | P107: 44561 | R107: 0.1567811417 | S107: 2652792.625 | V107: 1215582.194 | W107: 39088.44369 | X107: 57865.61243 | Y107: 403600 | Z107: 0 | AA107: 274227.5085 | AB107: 8818.100972 | AE107: 0
A108: 2 | B108: 52 | C108: рег. г. Калуга, Правобережный район, 2-я очередь (д. Квань) | E108: 2 | F108: 1.37 | G108: 23641.3 | H108: 0 | I108: 23641.3 | J108: 0 | K108: 23523.9 | L108: 0 | M108: 01.01.2019 | N108: 2020-12-31 | O108: <01.01.2019 | P108: 44196 | R108: 0.1686380138 | S108: 831046.445 | V108: 746400.6537 | W108: 31729.46041 | X108: 48681.57812 | Y108: 403600 | Z108: 0 | AA108: 328987.2928 | AB108: 13985.23598 | AE108: 0
A109: 2 | B109: 53 | C109: рег. г. Калуга, Сиреневый бульвар | E109: 2 | F109: 2.5874 | G109: 20114.7499 | H109: 0 | I109: 20114.7499 | J109: 0 | K109: 4013.254547 | L109: 0 | M109: <01.01.2019 | N109: 2019-09-30 | O109: <01.01.2019 | P109: 43830 | R109: 0.1540820762 | S109: 869126.6914 | V109: 103509.8997 | W109: 25792.00958 | X109: 100441.1621 | Y109: 403600 | Z109: 0 | AA109: 144766.3542 | AB109: 36072.05884 | AE109: 0
A110: 2 | B110: 54 | C110: рег. г. Калуга, ул. Болотникова | E110: 2 | F110: 1.5915 | G110: 19643.3045 | H110: 86 | I110: 19643.3045 | J110: 86 | K110: 1793.7545 | L110: 45 | M110: <01.01.2019 | N110: 2019-03-31 | O110: <01.01.2019 | P110: 43555 | R110: 0.1433051506 | S110: 1010685.066 | V110: 3442.814576 | W110: 1919.334321 | X110: 107297.8115 | Y110: 594235.5562 | Z110: 0 | AA110: 159763.672 | AB110: 89066.63201 | AE110: 0
A111: 2 | B111: 55 | C111: рег. г. Новороссийск, мкр. 16 | E111: 18 | F111: 15.51 | G111: 173866.19 | H111: 174 | I111: 157446.13 | J111: 106 | K111: 24265.21 | L111: 70.02 | M111: <01.01.2019 | N111: 2020-12-31 | O111: <01.01.2019 | P111: 44196 | R111: 0.1720182787 | S111: 6632263.083 | V111: 968922.4052 | W111: 39930.51802 | X111: 59519.79966 | Y111: 687172.2365 | Z111: 0 | AA111: 369643.6648 | AB111: 15233.48303 | AE111: 0
A112: 2 | B112: 56 | C112: рег. г. Новороссийск, мкр. 17, мкр. Южный берег | E112: 13 | F112: 31.6871 | G112: 306808.6 | H112: 0 | I112: 306808.6 | J112: 0 | K112: 295159.5 | L112: 0 | M112: <01.01.2019 | N112: 2028-09-30 | O112: <01.01.2019 | P112: 47118 | R112: 0.1713123197 | S112: 13118218.55 | V112: 11419680.48 | W112: 38689.86254 | X112: 58600.51692 | Y112: 687172.2365 | Z112: 0 | AA112: 1875938.822 | AB112: 6355.678276 | AE112: 0
A113: 2 | B113: 57 | C113: рег. г. Обнинск, мкр. 30, ул. Курчатова | E113: 7 | F113: 4.046 | G113: 61583.6999 | H113: 300 | I113: 52502.5099 | J113: 300 | K113: 47754.92 | L113: 300 | M113: <01.01.2019 | N113: 2023-03-31 | O113: <01.01.2019 | P113: 45016 | R113: 0.1648550936 | S113: 2667711.224 | V113: 2175185.92 | W113: 45548.93863 | X113: 62420.10716 | Y113: 575462.0536 | Z113: 0 | AA113: 487493.0257 | AB113: 10208.2262 | AE113: 0
A114: 2 | B114: 58 | C114: рег. г. Обнинск, мкр. 55, Московский квартал | E114: 9 | F114: 14.78 | G114: 101958.2 | H114: 0 | I114: 101958.2 | J114: 0 | K114: 57699.43 | L114: 0 | M114: <01.01.2019 | N114: 2022-12-31 | O114: <01.01.2019 | P114: 45291 | R114: 0.1569858009 | S114: 5340003.805 | V114: 3076692.602 | W114: 53322.75556 | X114: 71012.79988 | Y114: 575462.0536 | Z114: 0 | AA114: 404681.3418 | AB114: 7013.610738 | AE114: 0
A115: 2 | B115: 59 | C115: рег. г. Обнинск, мкр. 55 | E115: 13 | F115: 11.8 | G115: 153542.65 | H115: 102 | I115: 142161.85 | J115: 102 | K115: 1226.2 | L115: 84 | M115: <01.01.2019 | N115: 2019-03-31 | O115: <01.01.2019 | P115: 43738 | R115: 0.1533051506 | S115: 6542691.079 | V115: 468140.225 | W115: 381781.2959 | X115: 126627.5024 | Y115: 700000 | Z115: 0 | AA115: -279195.7786 | AB115: -227691.8762 | AE115: 0
A116: 2 | B116: 60 | C116: рег. г. Пермь, Мотовилихинский р-н, ж/р-н Ива | E116: 12 | F116: 6.42 | G116: 115862.7226 | H116: 30 | I116: 115862.7226 | J116: 30 | K116: 516.78 | L116: 30 | M116: <01.01.2019 | N116: 2018-12-31 | O116: <01.01.2019 | P116: 43555 | R116: 0.1409879673 | S116: 4207455.195 | V116: 14101.59053 | W116: 27287.4154 | X116: 46223.52941 | Y116: 300000 | Z116: 0 | AA116: 19742.47913 | AB116: 38202.86995 | AE116: 0
A117: 2 | B117: 61 | C117: рег. г. Ростов-на-Дону, Ленинский р-н, пер. Доломановский - ул. Согласия (2 оч. ГФК "Сиверса") | E117: 1 | F117: 0.69 | G117: 20088.5 | H117: 176 | I117: 20088.5 | J117: 176 | K117: 7062.7 | L117: 79 | M117: <01.01.2019 | N117: 2019-12-31 | O117: <01.01.2019 | P117: 43738 | R117: 0.1583051506 | S117: 1389756.489 | V117: 121726.7168 | W117: 17235.15325 | X117: 95794.44184 | Y117: 870000 | Z117: 0 | AA117: 470013.5032 | AB117: 66548.69996 | AE117: 0
A118: 2 | B118: 62 | C118: рег. г. Ростов-на-Дону, Ростовская рег., Аксайский р-н, ЖК "Норд" | E118: 23 | F118: 15.6437 | G118: 254082.5101 | H118: 698 | I118: 254082.5101 | J118: 698 | K118: 137103.9983 | L118: 0 | M118: <01.01.2019 | N118: 2024-12-31 | O118: <01.01.2019 | P118: 45657 | R118: 0.1538312984 | S118: 9422868.74 | V118: 4624556.285 | W118: 33730.28024 | X118: 52518.22486 | Y118: 870000 | Z118: 0 | AA118: 1342497.039 | AB118: 9791.81538 | AE118: 0
A119: 2 | B119: 63 | C119: рег. г. Санкт-Петербург, Дальневосточный, вл. 15 | E119: 3 | F119: 4.2818 | G119: 77812.0964 | H119: 491 | I119: 77812.0964 | J119: 491 | K119: 46394.1 | L119: 467 | M119: <01.01.2019 | N119: 2021-12-31 | O119: <01.01.2019 | P119: 44561 | R119: 0.1525676607 | S119: 6588002.642 | V119: 3882640.491 | W119: 83688.23819 | X119: 113329.5592 | Y119: 500000 | Z119: 0 | AA119: 820088.5346 | AB119: 17676.56953 | AE119: 0
A120: 2 | B120: 64 | C120: рег. г. Санкт-Петербург, Заповедная | E120: 13 | F120: 11.6119 | G120: 148769.7001 | H120: 1086 | I120: 122719.7001 | J120: 1086 | K120: 92348.6 | L120: 1086 | M120: <01.01.2019 | N120: 2021-12-31 | O120: <01.01.2019 | P120: 44926 | R120: 0.1568078021 | S120: 8871505.865 | V120: 6233475.424 | W120: 67499.4036 | X120: 101662.3595 | Y120: 400000 | Z120: 0 | AA120: 2574572.393 | AB120: 27878.84595 | AE120: 0
A121: 2 | B121: 65 | C121: рег. г. Тюмень, Красный Октябрь | E121: 7 | F121: 34.2544 | G121: 271645.7001 | H121: 3000 | I121: 271645.7001 | J121: 3000 | K121: 267736.477 | L121: 3000 | M121: 01.01.2019 | N121: 2027-12-31 | O121: <01.01.2019 | P121: 48944 | R121: 0.1875048296 | S121: 15651471.28 | V121: 14761184.76 | W121: 55133.25986 | X121: 63388.67916 | Y121: 329500 | Z121: 0 | AA121: 208102.2434 | AB121: 777.2651891 | AE121: 0
A122: 2 | B122: 66 | C122: рег. г. Ярославль, мкр. 1, мкр. Сокол (Фрунзенский район) | E122: 18 | F122: 24.83 | G122: 259808.2701 | H122: 0 | I122: 259808.2701 | J122: 0 | K122: 213574.89 | L122: 0 | M122: <01.01.2019 | N122: 2026-09-30 | O122: <01.01.2019 | P122: 46387 | R122: 0.1586211329 | S122: 12715115.35 | V122: 8792543.534 | W122: 41168.43293 | X122: 54893.02983 | Y122: 329500 | Z122: 0 | AA122: 1143195.932 | AB122: 5352.670121 | AE122: 0
A123: 2 | B123: 67
C124: Итого | E124: =COUNTA('проекты по стадиям ПИК'!C57:C123) -> 66 | F124: =SUM(F57:F123) -> 3642.8418 | G124: =SUM(G57:G123) -> 21076128.65 | H124: =SUM(H57:H123) -> 108936 | I124: =SUM(I57:I123) -> 17569469.59 | K124: =SUM(K57:K123) -> 10447631.41 | L124: =SUM(L57:L123) -> 94316.02 | AA124: =SUM(AA57:AA123) -> 254287327.3 | AC124: =SUM(AC57:AC120) -> 0
C125: Объекты для будущего развития
A126: 3 | B126: 1 | C126: г. Москва, ВАО, ул. Кусковская, вл. 12 | E126: 3 | F126: 7.3742 | G126: 72000 | H126: 600 | I126: 72000 | J126: 600 | K126: 72000 | L126: 600 | M126: 01.01.2022 | N126: 2024-09-30 | O126: 44197 | P126: 45291 | R126: 0.1477656898 | S126: 7562231.996 | V126: 7558557.83 | W126: =V126*1000/K126 -> 104979.9699 | X126: 154861.4583 | Y126: 400000 | Z126: 0 | AA126: 1556463.995 | AB126: =AA126*1000/K126 -> 21617.55549 | AE126: 0
A127: 3 | B127: 2 | C127: Н.М. г. Москва, п. Филимонковское, Середнево | E127: 14 | F127: 85.022 | G127: 350422 | H127: 300 | I127: 350422 | J127: 300 | K127: 350422 | L127: 300 | M127: 01.01.2020 | N127: 2026-03-31 | O127: 43831 | P127: 46203 | R127: 0.1608139617 | S127: 19956872.53 | V127: 19787462.91 | W127: 56467.52462 | X127: 86101.92828 | Y127: 300000 | Z127: 86101.92828 | AA127: 4469614.343 | AB127: 12754.94787
A128: 3 | B128: 3 | C128: г. Москва, ул. Рябиновая, вл. 22 | F128: 3.85 | AA128: 384000
A129: 3 | B129: 4 | C129: обл. г. Балашиха, Измайловский лес (ЖК Озерный) - ЗУ | F129: 19.24 | AA129: 1900000
A130: 3 | B130: 5 | C130: обл. Коренево | F130: 140.6813 | AA130: 979382.9329
A131: 3 | B131: 6 | C131: обл. Лыткарино | F131: 338.2543 | AA131: 2804228.977
A132: 3 | B132: 7 | C132: обл. Токарево | F132: 196.5536 | AA132: 1643202.311
A133: 3 | B133: 8 | C133: обл. Балашиха (Сакраменто-2) | F133: 93.2 | AA133: 917275.7204
A134: 3 | B134: 9 | C134: обл. д. Дурыкино, Можайский район | F134: 1337.5762 | AA134: 302334.7511
A135: 3 | B135: 10 | C135: обл. д. Семенково, Клинский район | F135: 1.20355 | AA135: 864.9378642
A136: 3 | B136: 11 | C136: обл. д. Михайловка, КФХ "Михайловское" | F136: 24 | AA136: 93875.87335
A137: 3 | B137: 12 | C137: обл. Искра | F137: 38.35 | AA137: 208790.9851
A138: 3 | B138: 13
A139: 3 | B139: 14
A140: 3 | B140: 15
A141: 3 | B141: 16
A142: 3 | B142: 17
A143: 3 | B143: 18
A144: 3 | B144: 19
A145: 3 | B145: 20
A146: 3 | B146: 21
A147: 3 | B147: 22
A148: 3 | B148: 23
A149: 3 | B149: 24
A150: 3 | B150: 25
A151: 3 | B151: 26
A152: 3 | B152: 27
A153: 3 | B153: 28
A154: 3 | B154: 29
A155: 3 | B155: 30
A156: 3 | B156: 31
A157: 3 | B157: 32
A158: 3 | B158: 33
A159: 3 | B159: 34
A160: 3 | B160: 35
A161: 3 | B161: 36
A162: 3 | B162: 37
A163: 3 | B163: 38
A164: 3 | B164: 39
A165: 3 | B165: 40
A166: 3 | B166: 41
A167: 3 | B167: 42
A168: 3 | B168: 43
A169: 3 | B169: 44
A170: 3 | B170: 45
A171: 3 | B171: 46
A172: 3 | B172: 47
A173: 3 | B173: 48
A174: 3 | B174: 49
A175: 3 | B175: 50
C176: Итого | E176: =COUNTA('проекты по стадиям ПИК'!C126:C175) -> 12 | F176: =SUM(F126:F175) -> 2285.30515 | G176: =SUM(G126:G175) -> 422422 | H176: 900 | I176: 422422 | J176: 900 | K176: =SUM(K126:K175) -> 422422 | L176: =SUM(L126:L175) -> 900 | Q176: =SUM(Q126:Q175) -> 0 | S176: =SUM(S126:S175) -> 27519104.53 | T176: 0 | U176: 0 | V176: 27346020.74 | W176: 161447.4945 | X176: 240963.3866 | AA176: =SUM(AA126:AA175) -> 15260034.83 | AB176: =SUM(AB126:AB175) -> 34372.50336 | AC176: 0 | AD176: 0
C177: ИТОГОВАЯ СТОИМОСТЬ ПОРТФЕЛЯ ОБЪЕКТОВ НЕДВИЖИМОСТИ | E177: =E176+E124+E55 -> 78 | F177: =F176+F124+F55 -> 5928.14695 | G177: =G176+G124+G55 -> 21498550.65 | H177: =H176+H124+H55 -> 109836 | I177: =I176+I124+I55 -> 17991891.59 | K177: =K176+K124+K55 -> 10870053.41 | AA177: =AA176+AA124+AA55 -> 269547362.2 | AC177: =AC176+AC124+AC55 -> 0

Sheet Проекты по городам ПИК
A2: =IF(lang="RUS",'labels!!!'!A74,'labels!!!'!A76) -> # | B2: Объект | C2: Жилой комплекс | D2: Количество строений | E2: Площадь земельного участка, га | F2: Площадь на продажу всего, кв.м. | G2: Паркинг на продажу всего, шт. | H2: Площадь на продажу, доля ПИК, кв.м. | I2: Паркинг на продажу, доля ПИК, шт. | J2: Не продано площади, доля ПИК, кв.м. | K2: Не продано паркинга, доля ПИК, шт. | L2: Старт продаж | M2: Окончание продаж | N2: Начало проектирования | O2: Завершение строительства | P2: Стадия девелопмента | Q2: Ставка дисконтирования | R2: Общий бюджет, тыс. руб | S2: Обременения, тыс.руб | T2: Бюджет факт, тыс. руб | U2: Оставшийсся бюджет, тыс. руб | V2: Оставшийся бюджет, руб. за кв.м. непроданных площадей | W2: Средняя цена продажи квартир/нежилых помещений, руб. за 1 кв.м. | X2: Средняя цена продажи паркинга, с НДС, руб. за шт. | Y2: Цена аренды, руб. за кв.м. в год | Z2: Рыночная стоимость, тыс. руб. | AA2: Рыночная стоимость, руб. за кв.м. непроданных площадей | AB2: Рыночная стоимость, дол. США | AC2: Column1 | AD2: Рыночная стоимость, дол. США за кв.м. непроданных площадей | AE2: Средняя ставка дисконтирования | AF2: широта | AG2: долгота | AH2: Column2
B3: Москва | C3: =Table17[[#This Row],[Объект]] -> Москва | AE3: 31
B4: г. Москва, АО Зеленоград, мкр. 17, Жемчужина Зеленограда | C4: Жемчужина Зеленограда | D4: 17 | E4: 289.79 | F4: 272889.8006 | G4: 0 | H4: 169882.6706 | I4: 0 | J4: 49517.6 | K4: 0 | L4: <01.01.2019 | M4: 43921 | N4: <01.01.2019 | O4: 2021-12-31 | Q4: 0.1424868335 | R4: 14439071.79 | U4: 3239580.59 | V4: 65422.81107 | W4: 155739.5223 | X4: паркинг отсутствует | Y4: 0 | Z4: 2579091.663 | AA4: =Table17[[#This Row],[ Рыночная стоимость, тыс. руб. ]]*1000/Table17[[#This Row],[ Не продано площади, доля ПИК, кв.м. ]] -> 52084.343 | AD4: 0
A5: . | B5: г. Москва, АО Зеленоград, мкр. 17, Жемчужина Зеленограда, корп. 11.2 | E5: 11.66190848 | F5: 10981.8002 | H5: 10981.8002 | I5: 0 | J5: 3693.3 | K5: 0 | L5: <01.01.2019 | M5: 43738 | N5: <01.01.2019 | O5: 43646 | Q5: 0.1447767347 | R5: 416026.8909 | U5: 93979.15877 | V5: 25445.85026 | W5: 170241.8686 | X5: паркинг отсутствует | AA5: 108510.5255 | AB5: 6957648.13 | AD5: 1883.856749
A6: . | B6: г. Москва, АО Зеленоград, мкр. 17, Жемчужина Зеленограда, корп. 11.1 | E6: 21.68568256 | F6: 20421 | H6: 20421 | I6: 0 | J6: 6910 | K6: 0 | L6: <01.01.2019 | M6: 43738 | N6: <01.01.2019 | O6: 43738 | Q6: 0.1447767347 | R6: 782041.9325 | U6: 154059.1997 | V6: 22295.1085 | W6: 178158.508 | X6: паркинг отсутствует | AA6: 118721.4944 | AB6: 14242407.6 | AD6: 2061.129899
A7: . | B7: г. Москва, АО Зеленоград, мкр. 17, Жемчужина Зеленограда, корп. 10.2 | E7: 16.43454269 | F7: 15476.1002 | H7: 15476.1002 | I7: 0 | J7: 5587 | K7: 0 | L7: <01.01.2019 | M7: 43738 | N7: <01.01.2019 | O7: 43555 | Q7: 0.1447767347 | R7: 616388.4302 | U7: 69037.41549 | V7: 12356.79533 | W7: 151623.1827 | X7: паркинг отсутствует | AA7: 86581.34577 | AB7: 8398060.75 | AD7: 1503.143145
A8: . | B8: г. Москва, АО Зеленоград, мкр. 17, Жемчужина Зеленограда, корп. 10.1 | E8: 18.80562109 | F8: 17708.9002 | H8: 17708.9002 | I8: 0 | J8: 3022.7 | K8: 0 | L8: <01.01.2019 | M8: 43738 | N8: <01.01.2019 | O8: 43555 | Q8: 0.1447767347 | R8: 696529.9278 | U8: 108060.5747 | V8: 35749.68561 | W8: 185470.9124 | X8: паркинг отсутствует | AA8: 62995.34298 | AB8: 3305822.258 | AD8: 1093.665352
A9: . | B9: г. Москва, АО Зеленоград, мкр. 17, Жемчужина Зеленограда, корп. 9 | E9: 29.72555842 | F9: 27992.0001 | H9: 26366.1001 | I9: 0 | J9: 3435 | K9: 0 | L9: <01.01.2019 | M9: 43646 | N9: <01.01.2019 | O9: 43555 | Q9: 0.1397767347 | R9: 1329630.291 | U9: 70359.34485 | V9: 20483.06982 | W9: 178289.8624 | X9: паркинг отсутствует | AA9: 89232.37651 | AB9: 5321391.476 | AD9: 1549.167824
A10: . | B10: г. Москва, АО Зеленоград, мкр. 17, Жемчужина Зеленограда, корп. 6 | E10: 9.153203676 | F10: 8619.4 | H10: 8619.4 | I10: 0 | J10: 8414.3 | K10: 0 | L10: 43466 | M10: 43830 | N10: <01.01.2019 | O10: 44196 | Q10: 0.1412656898 | R10: 346238.9811 | U10: 322281.0927 | V10: 38301.59284 | W10: 127718.5453 | X10: паркинг отсутствует | AA10: 72149.31008 | AB10: 10539649.86 | AD10: 1252.58784
A11: . | B11: г. Москва, АО Зеленоград, мкр. 17, Жемчужина Зеленограда, корп. 4 | E11: 9.15320357 | F11: 8619.3999 | H11: 8619.3999 | I11: 0 | J11: 4259.4 | K11: 0 | L11: <01.01.2019 | M11: 43738 | N11: <01.01.2019 | O11: 44196 | Q11: 0.1412656898 | R11: 342527.5189 | U11: 299243.8431 | V11: 70254.92866 | W11: 155905.9812 | X11: паркинг отсутствует | AA11: 41376.8406 | AB11: 3059720.536 | AD11: 718.3454327
A12: . | B12: г. Москва, АО Зеленоград, мкр. 17, Жемчужина Зеленограда, корп. 3 | E12: 39.12459889 | F12: 36842.9 | H12: 13310.47 | I12: 0 | J12: 203.86 | K12: 0 | L12: <01.01.2019 | M12: <01.01.2019 | N12: <01.01.2019 | O12: 43555 | Q12: 0.1397767347 | R12: 690753.8501 | U12: 1383.240447 | V12: 6785.246971 | W12: 69270.5386 | X12: паркинг отсутствует | AA12: -82705.24888 | AB12: -292712.3871 | AD12: -1435.85003
A13: . | B13: г. Москва, АО Зеленоград, мкр. 17, Жемчужина Зеленограда, корп. 8 | E13: 38.08857961 | F13: 35867.3001 | H13: 25303.8701 | I13: 0 | J13: 1055.44 | K13: 0 | L13: <01.01.2019 | M13: 43738 | N13: <01.01.2019 | O13: 43555 | Q13: 0.1397767347 | R13: 1781740.332 | U13: 2284.119 | V13: 2164.139127 | W13: 209638.2756 | X13: паркинг отсутствует | AA13: 3702.277651 | AB13: 67838.86035 | AD13: 64.27543048
A14: . | B14: г. Москва, АО Зеленоград, мкр. 17, Жемчужина Зеленограда, корп. 7 | E14: 9.153203676 | F14: 8619.4 | H14: 8619.4 | I14: 0 | J14: 8414.3 | K14: 0 | L14: 43466 | M14: 43921 | N14: <01.01.2019 | O14: 44196 | Q14: 0.1412656898 | R14: 346336.6903 | U14: 325096.7505 | V14: 38636.22054 | W14: 127999.1955 | X14: паркинг отсутствует | AA14: 71559.7651 | AB14: 10453528.49 | AD14: 1242.352719
A15: . | B15: г. Москва, АО Зеленоград, мкр. 17, Жемчужина Зеленограда, корп. 5 | E15: 9.15320357 | F15: 8619.3999 | H15: 8619.3999 | I15: 0 | J15: 4522.3 | K15: 0 | L15: <01.01.2019 | M15: 43738 | N15: <01.01.2019 | O15: 44196 | Q15: 0.1412656898 | R15: 345309.404 | U15: 301674.4784 | V15: 66708.19679 | W15: 171398.275 | X15: паркинг отсутствует | AA15: 51830.02027 | AB15: 4069272.34 | AD15: 899.8236163
A16: . | B16: г. Москва, АО Зеленоград, мкр. 17, Жемчужина Зеленограда, корп. 2 | E16: 41.28711415 | F16: 38879.3 | H16: 3984.11 | I16: 0 | J16: 0 | K16: 0 | M16: <01.01.2019 | N16: <01.01.2019 | O16: 43555 | Q16: 0.1397767347 | R16: 1151888.006 | U16: 14402.40858 | V16: 0 | W16: 0 | X16: паркинг отсутствует | AA16: 0 | AB16: -840565.3043 | AD16: 0
A17: . | B17: г. Москва, АО Зеленоград, мкр. 17, Жемчужина Зеленограда, корп. 1 | E17: 36.16712248 | F17: 34057.9 | H17: 1852.72 | I17: 0 | J17: -1.136868377e-13 | K17: 0 | L17: <01.01.2019 | M17: 43465 | N17: <01.01.2019 | O17: 43555 | Q17: 0.1397767347 | R17: 1201907.298 | U17: 13339.89299 | V17: -1.173389396e+20 | W17: -4.927751631e+19 | X17: паркинг отсутствует | AA17: 6.777631173e+20 | AB17: -1337716.632 | AD17: 1.176667993e+19
A18: . | B18: г. Москва, АО Зеленоград, мкр. 17, Жемчужина Зеленограда, корп. 18, Административное здание | E18: 0.1964571409 | F18: 185 | H18: 0 | I18: 0 | J18: 0 | K18: 0 | M18: NA | N18: <01.01.2019 | O18: 43555 | Q18: 0.1421656898 | R18: 30248.28229 | U18: 2936.387695 | V18: 0 | W18: 0 | X18: паркинг отсутствует | AA18: 0 | AB18: -107171.8198 | AD18: 0
A19: . | B19: г. Москва, АО Зеленоград, мкр. 17, Жемчужина Зеленограда, корп. 21, Школа на 1100 мест | E19: 0 | F19: 0 | H19: 0 | I19: 0 | J19: 0 | K19: 0 | M19: NA | N19: <01.01.2019 | O19: 44196 | Q19: 0.1462656898 | R19: 851585.8632 | U19: 850950.9932 | V19: 0 | W19: 0 | X19: паркинг отсутствует | AA19: 0 | AB19: -13302601.14 | AD19: 0
A20: . | B20: г. Москва, АО Зеленоград, мкр. 17, Жемчужина Зеленограда, корп. 20, ДОУ на 220 мест | E20: 0 | F20: 0 | H20: 0 | I20: 0 | J20: 0 | K20: 0 | M20: NA | N20: <01.01.2019 | O20: 43646 | Q20: 0.1421656898 | R20: 193885.2444 | U20: 156182.6971 | V20: 0 | W20: 0 | X20: паркинг отсутствует | AA20: 0 | AB20: -2289949.993 | AD20: 0
A21: . | B21: г. Москва, АО Зеленоград, мкр. 17, Жемчужина Зеленограда, корп. 19, ДОУ на 250 мест | E21: 0 | F21: 0 | H21: 0 | I21: 0 | J21: 0 | K21: 0 | M21: NA | N21: <01.01.2019 | O21: 44196 | Q21: 0.1462656898 | R21: 221420.2268 | U21: 221407.2968 | V21: 0 | W21: 0 | X21: паркинг отсутствует | AA21: 0 | AB21: -3468881.565 | AD21: 0
B22: г. Москва, ВАО, ул. Кусковская, вл. 12 | C22: Большое Кусково | D22: 3 | E22: 7.3742 | F22: 72000 | G22: 600 | H22: 72000 | I22: 600 | J22: 72000 | K22: 600 | L22: 01.01.2022 | M22: 45565 | N22: 44197 | O22: 2023-12-31 | Q22: 0.1477656898 | R22: 7562231.996 | U22: 7558557.83 | V22: =Table17[[#This Row],[ Оставшийсся бюджет, тыс. руб ]]*1000/Table17[[#This Row],[ Не продано площади, доля ПИК, кв.м. ]] -> 104979.9699 | W22: 154861.4583 | X22: 400000 | Y22: 0 | Z22: 1556463.995 | AA22: =Table17[[#This Row],[ Рыночная стоимость, тыс. руб. ]]*1000/Table17[[#This Row],[ Не продано площади, доля ПИК, кв.м. ]] -> 21617.55549 | AD22: 0
A23: . | B23: г. Москва, ВАО, ул. Кусковская, вл.12, Объекты застройки | E23: 7.3742 | F23: 72000 | H23: 72000 | I23: 0 | J23: 72000 | K23: 0 | L23: 44562 | M23: 45565 | N23: 44470 | O23: 2024-06-30 | Q23: 0.1477656898 | R23: 2715244.069 | U23: 2715244.069 | V23: =Table17[[#This Row],[ Оставшийсся бюджет, тыс. руб ]]*1000/Table17[[#This Row],[ Не продано площади, доля ПИК, кв.м. ]] -> 37711.72319 | W23: 154861.4583 | X23: паркинг отсутствует | AA23: =Table17[[#This Row],[ Рыночная стоимость, тыс. руб. ]]*1000/Table17[[#This Row],[ Не продано площади, доля ПИК, кв.м. ]] ->  | AB23: 34855265.53 | AD23: 484.1009102
A24: . | B24: г. Москва, ВАО, ул. Кусковская, вл. 12, паркинг | E24: 0 | F24: 0 | G24: 600 | H24: 0 | I24: 600 | J24: 0 | K24: 600 | L24: 44562 | M24: NA | N24: 44197 | O24: 2023-12-31 | Q24: 0.1477656898 | R24: 456233.8983 | U24: 456233.8983 | V24: 0 | W24: 0 | X24: 400 | AA24: =Table17[[#This Row],[ Рыночная стоимость, тыс. руб. ]]*1000/Table17[[#This Row],[ Не продано площади, доля ПИК, кв.м. ]] ->  | AB24: -2925960.463 | AD24: 0
A25: . | B25: г. Москва, ВАО, ул. Кусковская, ДОО на 150мест | E25: 0 | F25: 0 | H25: 0 | I25: 0 | J25: 0 | K25: 0 | M25: NA | N25: 44562 | O25: 2023-12-31 | Q25: 0.1502656898 | R25: 166442.7966 | U25: 166442.7966 | V25: 0 | W25: 0 | X25: паркинг отсутствует | AA25: =Table17[[#This Row],[ Рыночная стоимость, тыс. руб. ]]*1000/Table17[[#This Row],[ Не продано площади, доля ПИК, кв.м. ]] ->  | AB25: -1933723.083 | AD25: 0
B26: г. Москва, Варшавское ш., вл. 141 - Кирпичные выемки | C26: Аннино парк | D26: 7 | E26: 4.6853 | F26: 69618.94 | G26: 300 | H26: 66840.64 | I26: 300 | J26: 2051.5 | K26: 86 | L26: <01.01.2019 | M26: 43555 | N26: <01.01.2019 | O26: 2021-12-31 | Q26: 0.11289248 | R26: 6126882.206 | U26: 713793.2648 | V26: 347937.2483 | W26: 470253.363 | X26: 700000 | Y26: 0 | Z26: -152696.0066 | AA26: =Table17[[#This Row],[ Рыночная стоимость, тыс. руб. ]]*1000/Table17[[#This Row],[ Не продано площади, доля ПИК, кв.м. ]] -> -74431.39489 | AD26: 0
A27: . | B27: г. Москва, Варшавское ш., вл. 141, корпус 2 (Кирпичные выемки), Строение 5 | E27: 0.8917415163 | F27: 13250.4 | H27: 13250.4 | I27: 0 | J27: 293.6 | K27: 0 | L27: <01.01.2019 | M27: 43555 | N27: <01.01.2019 | O27: 2019-03-31 | Q27: 0.1171656898 | R27: 529945.5964 | U27: 49546.6138 | V27: 168755.4966 | W27: 206457.0497 | X27: паркинг отсутствует | AA27: =Table17[[#This Row],[ Рыночная стоимость, тыс. руб. ]]*1000/Table17[[#This Row],[ Не продано площади, доля ПИК, кв.м. ]] ->  | AB27: -9118614.703 | AD27: -31057.95199
A28: . | B28: г. Москва, Варшавское ш., вл. 141, корпус 2 (Кирпичные выемки), Строение 4 | E28: 0.9336218177 | F28: 13872.7 | H28: 13872.7 | I28: 0 | J28: 625 | K28: 0 | L28: <01.01.2019 | M28: 43555 | N28: <01.01.2019 | O28: 2018-12-31 | Q28: 0.1138656898 | R28: 461646.846 | U28: 0 | V28: 0 | W28: 401753.951 | X28: паркинг отсутствует | AA28: =Table17[[#This Row],[ Рыночная стоимость, тыс. руб. ]]*1000/Table17[[#This Row],[ Не продано площади, доля ПИК, кв.м. ]] ->  | AB28: 1018722.937 | AD28: 1629.9567
A29: . | B29: г. Москва, Варшавское ш., вл. 141, корпус 2 (Кирпичные выемки), Строение 3 | E29: 0.8847518199 | F29: 13146.54 | H29: 13146.54 | I29: 0 | J29: 690.3 | K29: 0 | L29: <01.01.2019 | M29: 43555 | N29: <01.01.2019 | O29: 2018-12-31 | Q29: 0.1138656898 | R29: 610548.7895 | U29: 0 | V29: 0 | W29: 241083.4024 | X29: паркинг отсутствует | AA29: =Table17[[#This Row],[ Рыночная стоимость, тыс. руб. ]]*1000/Table17[[#This Row],[ Не продано площади, доля ПИК, кв.м. ]] ->  | AB29: 3640309.811 | AD29: 5273.518487
A30: . | B30: г. Москва, Варшавское ш., вл. 141, корпус 2 (Кирпичные выемки), Строение 2 | E30: 0.8896417808 | F30: 13219.2 | H30: 13219.2 | I30: 0 | J30: 1.818989404e-12 | K30: 0 | L30: <01.01.2019 | M30: 43555 | N30: <01.01.2019 | O30: 2018-12-31 | Q30: 0.1038656898 | R30: 411859.3547 | U30: 0 | V30: 0 | W30: 9.890296659e+19 | X30: паркинг отсутствует | AA30: =Table17[[#This Row],[ Рыночная стоимость, тыс. руб. ]]*1000/Table17[[#This Row],[ Не продано площади, доля ПИК, кв.м. ]] ->  | AB30: 1851897.206 | AD30: 1.018091256e+18
A31: . | B31: г. Москва, Варшавское ш., вл. 141, корпус 2 (Кирпичные выемки), Строение 1 | E31: 0.8985656567 | F31: 13351.8 | H31: 13351.8 | I31: 0 | J31: 442.6 | K31: 0 | L31: <01.01.2019 | M31: 43555 | N31: <01.01.2019 | O31: 2019-03-31 | Q31: 0.1071656898 | R31: 410698.6082 | U31: 5528.476668 | V31: 12490.90978 | W31: 692926.8961 | X31: паркинг отсутствует | AA31: =Table17[[#This Row],[ Рыночная стоимость, тыс. руб. ]]*1000/Table17[[#This Row],[ Не продано площади, доля ПИК, кв.м. ]] ->  | AB31: 2341339.979 | AD31: 5289.96832
A32: . | B32: г. Москва, Варшавское ш., вл. 141, корпус 2 (Кирпичные выемки), Строение 6 (автостоянка на 300 м/м) | E32: 0 | F32: 0 | G32: 300 | H32: 0 | I32: 300 | J32: 0 | K32: 86 | L32: <01.01.2019 | M32: NA | N32: <01.01.2019 | O32: 2019-06-30 | Q32: 0.1121656898 | R32: 204780.5566 | U32: 129457.7871 | V32: 0 | W32: 0 | X32: 712.3350877 | AA32: =Table17[[#This Row],[ Рыночная стоимость, тыс. руб. ]]*1000/Table17[[#This Row],[ Не продано площади, доля ПИК, кв.м. ]] ->  | AB32: -1282390.069 | AD32: 0
A33: . | B33: г. Москва, Варшавское ш., вл. 141, корпус 2 (Кирпичные выемки), ДДУ | E33: 0.1869774086 | F33: 2778.3 | H33: 0 | I33: 0 | J33: 0 | K33: 0 | M33: NA | N33: <01.01.2019 | O33: 2019-03-31 | Q33: 0.1121656898 | R33: 135413.5718 | U33: 62312.58697 | V33: 0 | W33: 0 | X33: паркинг отсутствует | AA33: =Table17[[#This Row],[ Рыночная стоимость, тыс. руб. ]]*1000/Table17[[#This Row],[ Не продано площади, доля ПИК, кв.м. ]] ->  | AB33: -1102228.293 | AD33: 0
B34: г. Москва, Высоковольтный пр-д, вл. 5 | C34: Римского-Корсакова 11 | D34: 11 | E34: 15.7 | F34: 143780.5 | G34: 597 | H34: 130299.8 | I34: 597 | J34: 46919.49485 | K34: 597 | L34: <01.01.2019 | M34: 44196 | N34: <01.01.2019 | O34: 2020-12-31 | Q34: 0.1313861372 | R34: 12307516.5 | U34: 4175271.337 | V34: 88987.98571 | W34: 208119.9883 | X34: 500000 | Y34: 0 | Z34: 3004490 | AA34: =Table17[[#This Row],[ Рыночная стоимость, тыс. руб. ]]*1000/Table17[[#This Row],[ Не продано площади, доля ПИК, кв.м. ]] -> 64035.00314 | AD34: 0
A35: . | B35: г. Москва, Высоковольтный пр-д, вл. 5, корп. 8 (Башня) | E35: 1.125104517 | F35: 10303.7 | H35: 10303.7 | I35: 0 | J35: 9416.994847 | K35: 0 | L35: <01.01.2019 | M35: 44196 | N35: <01.01.2019 | O35: 2020-12-31 | Q35: 0.1412656898 | R35: 457633.6036 | U35: 449861.2399 | V35: 47771.21015 | W35: 182518.871 | X35: паркинг отсутствует | AA35: =Table17[[#This Row],[ Рыночная стоимость, тыс. руб. ]]*1000/Table17[[#This Row],[ Не продано площади, доля ПИК, кв.м. ]] ->  | AB35: 12957301.33 | AD35: 1375.948648
A36: . | B36: г. Москва, Высоковольтный пр-д, вл. 5, корп. 7 (Башня) | E36: 1.243416458 | F36: 11387.2 | H36: 11387.2 | I36: 0 | J36: 10394.3 | K36: 0 | L36: <01.01.2019 | M36: 44196 | N36: <01.01.2019 | O36: 2020-12-31 | Q36: 0.1412656898 | R36: 498294.0532 | U36: 489889.877 | V36: 47130.62707 | W36: 171519.3439 | X36: паркинг отсутствует | AA36: =Table17[[#This Row],[ Рыночная стоимость, тыс. руб. ]]*1000/Table17[[#This Row],[ Не продано площади, доля ПИК, кв.м. ]] ->  | AB36: 13661799.85 | AD36: 1314.354969
A37: . | B37: г. Москва, Высоковольтный пр-д, вл. 5, корп. 6 | E37: 2.721928078 | F37: 24927.4 | H37: 24927.4 | I37: 0 | J37: 12071.1 | K37: 0 | L37: <01.01.2019 | M37: 43921 | N37: <01.01.2019 | O37: 2019-12-31 | Q37: 0.1271656898 | R37: 1103481.225 | U37: 537320.4337 | V37: 44512.9635 | W37: 203700.0672 | X37: паркинг отсутствует | AA37: =Table17[[#This Row],[ Рыночная стоимость, тыс. руб. ]]*1000/Table17[[#This Row],[ Не продано площади, доля ПИК, кв.м. ]] ->  | AB37: 21718514.26 | AD37: 1799.215835
A38: . | B38: г. Москва, Высоковольтный пр-д, вл. 5, корп. 5 с пристройкой | E38: 2.297402777 | F38: 21039.6 | H38: 21039.6 | I38: 0 | J38: 6540.5 | K38: 0 | L38: <01.01.2019 | M38: 43830 | N38: <01.01.2019 | O38: 2019-12-31 | Q38: 0.1271656898 | R38: 937065.3927 | U38: 360408.3582 | V38: 55104.09881 | W38: 239836.0384 | X38: паркинг отсутствует | AA38: =Table17[[#This Row],[ Рыночная стоимость, тыс. руб. ]]*1000/Table17[[#This Row],[ Не продано площади, доля ПИК, кв.м. ]] ->  | AB38: 10300141.55 | AD38: 1574.824792
A39: . | B39: г. Москва, Высоковольтный пр-д, вл. 5, корп. 4 (Башня) | E39: 1.124624062 | F39: 10299.3 | H39: 10299.3 | I39: 0 | J39: 2510.7 | K39: 0 | L39: <01.01.2019 | M39: 43830 | N39: <01.01.2019 | O39: 2019-12-31 | Q39: 0.1271656898 | R39: 454559.151 | U39: 253182.3215 | V39: 100841.3277 | W39: 223531.2719 | X39: паркинг отсутствует | AA39: =Table17[[#This Row],[ Рыночная стоимость, тыс. руб. ]]*1000/Table17[[#This Row],[ Не продано площади, доля ПИК, кв.м. ]] ->  | AB39: 1017059.705 | AD39: 405.0900963
A40: . | B40: г. Москва, Высоковольтный пр-д, вл. 5, корп. 3 (Башня) с пристройкой | E40: 1.243077956 | F40: 11384.1 | H40: 11384.1 | I40: 0 | J40: 1920 | K40: 0 | L40: <01.01.2019 | M40: 43830 | N40: <01.01.2019 | O40: 2019-12-31 | Q40: 0.1271656898 | R40: 492228.3942 | U40: 256757.4082 | V40: 133727.8168 | W40: 234575.7579 | X40: паркинг отсутствует | AA40: =Table17[[#This Row],[ Рыночная стоимость, тыс. руб. ]]*1000/Table17[[#This Row],[ Не продано площади, доля ПИК, кв.м. ]] ->  | AB40: -1102158.598 | AD40: -574.0409365
A41: . | B41: г. Москва, Высоковольтный пр-д, вл. 5, корп. 2 | E41: 2.235893671 | F41: 20476.3 | H41: 20476.3 | I41: 0 | J41: 1790.8 | K41: 0 | L41: <01.01.2019 | M41: 43555 | N41: <01.01.2019 | O41: 2019-03-31 | Q41: 0.1071656898 | R41: 1053601.672 | U41: 4499.966258 | V41: 2512.82458 | W41: 366831.4245 | X41: паркинг отсутствует | AA41: =Table17[[#This Row],[ Рыночная стоимость, тыс. руб. ]]*1000/Table17[[#This Row],[ Не продано площади, доля ПИК, кв.м. ]] ->  | AB41: 922518.8897 | AD41: 515.1434497
A42: . | B42: г. Москва, Высоковольтный пр-д, вл. 5, корп. 1 с пристройкой | E42: 2.236537917 | F42: 20482.2 | H42: 20482.2 | I42: 0 | J42: 2275.1 | K42: 0 | L42: <01.01.2019 | M42: 43646 | N42: <01.01.2019 | O42: 2019-03-31 | Q42: 0.1071656898 | R42: 939311.1495 | U42: 14077.56688 | V42: 6187.669502 | W42: 249317.9698 | X42: паркинг отсутствует | AA42: =Table17[[#This Row],[ Рыночная стоимость, тыс. руб. ]]*1000/Table17[[#This Row],[ Не продано площади, доля ПИК, кв.м. ]] ->  | AB42: 4211667.087 | AD42: 1851.200865
A43: . | B43: г. Москва, Высоковольтный пр-д, вл. 5, наземный гараж | E43: 0 | F43: 0 | G43: 597 | H43: 0 | I43: 597 | J43: 0 | K43: 597 | L43: 43466 | M43: NA | N43: <01.01.2019 | O43: 2020-12-31 | Q43: 0.1237656898 | R43: 319345.2622 | U43: 301883.0136 | V43: 0 | W43: 0 | X43: 500 | AA43: =Table17[[#This Row],[ Рыночная стоимость, тыс. руб. ]]*1000/Table17[[#This Row],[ Не продано площади, доля ПИК, кв.м. ]] ->  | AB43: -452263.7396 | AD43: 0
A44: . | B44: г. Москва, Высоковольтный пр-д, вл. 5, корп. 10 (Школа) | E44: 1.017602804 | F44: 9319.2 | H44: 0 | I44: 0 | J44: 0 | K44: 0 | M44: NA | N44: <01.01.2019 | O44: 2020-12-31 | Q44: 0.1237656898 | R44: 541144.2027 | U44: 533404.1085 | V44: 0 | W44: 0 | X44: паркинг отсутствует | AA44: =Table17[[#This Row],[ Рыночная стоимость, тыс. руб. ]]*1000/Table17[[#This Row],[ Не продано площади, доля ПИК, кв.м. ]] ->  | AB44: -8679577.793 | AD44: 0
A45: . | B45: г. Москва, Высоковольтный пр-д, вл. 5, корп. 9 (ДДУ) | E45: 0.4544117596 | F45: 4161.5 | H45: 0 | I45: 0 | J45: 0 | K45: 0 | M45: NA | N45: <01.01.2019 | O45: 2019-12-31 | Q45: 0.1221656898 | R45: 217640.977 | U45: 144417.5999 | V45: 0 | W45: 0 | X45: паркинг отсутствует | AA45: =Table17[[#This Row],[ Рыночная стоимость, тыс. руб. ]]*1000/Table17[[#This Row],[ Не продано площади, доля ПИК, кв.м. ]] ->  | AB45: -2623475.665 | AD45: 0
B46: г. Москва, Измайловский пр-д, вл. 5а, вл. 11 | C46: Измайловский, 11 | D46: 1 | E46: 3.5 | F46: 58552 | G46: 477 | H46: 58552 | I46: 477 | J46: 32111.66 | K46: 477 | L46: <01.01.2019 | M46: 44196 | N46: <01.01.2019 | O46: 2020-12-31 | Q46: 0.1412656898 | R46: 7027008.159 | U46: 4657750.663 | V46: 145048.5793 | W46: 262681.0746 | X46: 1000000 | Y46: 0 | Z46: 2709763.714 | AA46: =Table17[[#This Row],[ Рыночная стоимость, тыс. руб. ]]*1000/Table17[[#This Row],[ Не продано площади, доля ПИК, кв.м. ]] -> 84385.66285 | AD46: 0
A47: . | B47: г. Москва, Измайловский пр-д, вл. 5а, вл. 11 | E47: 3.5 | F47: 58552 | G47: 477 | H47: 58552 | I47: 477 | J47: 32111.66 | K47: 477 | L47: <01.01.2019 | M47: 44196 | N47: <01.01.2019 | O47: 2020-12-31 | Q47: 0.1412656898 | R47: 7027008.159 | U47: 4657750.663 | V47: 145048.5793 | W47: 262681.0746 | X47: 1000 | Z47: 2709763.714 | AA47: =Table17[[#This Row],[ Рыночная стоимость, тыс. руб. ]]*1000/Table17[[#This Row],[ Не продано площади, доля ПИК, кв.м. ]] -> 84385.66285 | AB47: 47044345.58 | AD47: 1465.023782
B48: г. Москва, Кунцево, кв. 47, 48, Кунцево-парк | C48: Кунцево парк | D48: 27 | E48: 19.89 | F48: 321101.3 | G48: 3840 | H48: 223874.38 | I48: 3456 | J48: 223874.38 | K48: 3456 | L48: 01.07.2019 | M48: 48213 | N48: <01.01.2019 | O48: 2032-12-31 | Q48: 0.1421433866 | R48: 24526623.57 | U48: 24456620.94 | V48: 109242.6071 | W48: 206089.6705 | X48: 1200000 | Y48: 0 | Z48: 8266888 | AA48: =Table17[[#This Row],[ Рыночная стоимость, тыс. руб. ]]*1000/Table17[[#This Row],[ Не продано площади, доля ПИК, кв.м. ]] -> 36926.45849 | AD48: 0
A49: . | B49: г. Москва, Кунцево, кв. 48, корп. 6 (муниципальный) | E49: 0.6238534257 | F49: 10071.4 | G49: 200 | H49: 402.84 | I49: 180 | J49: 402.84 | K49: 180 | L49: 44287 | M49: NA | N49: 43739 | O49: 2024-12-31 | Q49: 0.1402656898 | R49: 844660.0179 | U49: 844660.0179 | V49: 2096763.027 | W49: 140000 | X49: 1200 | AA49: =Table17[[#This Row],[ Рыночная стоимость, тыс. руб. ]]*1000/Table17[[#This Row],[ Не продано площади, доля ПИК, кв.м. ]] ->  | AB49: -8442439.969 | AD49: -20957.30307
A50: . | B50: г. Москва, Кунцево, ул. Молодогвардейская, вл. 22, корп. 3 (кв. 18, корп. 11) | E50: 0.6720822993 | F50: 10850 | H50: 0 | I50: 0 | J50: 0 | K50: 0 | M50: NA | N50: <01.01.2019 | O50: 2020-12-31 | Q50: 0.1337656898 | R50: 786304.9498 | U50: 784486.8171 | V50: 0 | W50: 0 | X50: паркинг отсутствует | AA50: =Table17[[#This Row],[ Рыночная стоимость, тыс. руб. ]]*1000/Table17[[#This Row],[ Не продано площади, доля ПИК, кв.м. ]] ->  | AB50: -12350551.76 | AD50: 0
A51: . | B51: г. Москва, Кунцево, кв. 48, корп. 1 (муниципальный) | E51: 0.840363035 | F51: 13566.7 | H51: 225.06 | I51: 0 | J51: 225.06 | K51: 0 | L51: 43647 | M51: NA | N51: <01.01.2019 | O51: 2021-12-31 | Q51: 0.1367656898 | R51: 848809.0303 | U51: 832772.1538 | V51: 3700222.846 | W51: 140000 | X51: паркинг отсутствует | AA51: =Table17[[#This Row],[ Рыночная стоимость, тыс. руб. ]]*1000/Table17[[#This Row],[ Не продано площади, доля ПИК, кв.м. ]] ->  | AB51: -11763272.58 | AD51: -52267.27351
A52: . | B52: г. Москва, Кунцево, кв. 47, корп. 26 (эконом) | E52: 1.178950045 | F52: 19032.8 | G52: 168 | H52: 18779.68 | I52: 152 | J52: 18779.68 | K52: 152 | L52: 47574 | M52: 48213 | N52: 47392 | O52: 2031-12-31 | Q52: 0.1429656898 | R52: 1194380.384 | U52: 1194380.384 | V52: 63599.6132 | W52: 198786.9442 | X52: 1200 | AA52: =Table17[[#This Row],[ Рыночная стоимость, тыс. руб. ]]*1000/Table17[[#This Row],[ Не продано площади, доля ПИК, кв.м. ]] ->  | AB52: 12325934.41 | AD52: 656.3442192
A53: . | B53: г. Москва, Кунцево, кв. 47, корп. 25 (эконом) | E53: 1.157802681 | F53: 18691.4 | G53: 168 | H53: 18013.4 | I53: 152 | J53: 18013.4 | K53: 152 | L53: 47574 | M53: 48213 | N53: 47392 | O53: 2031-12-31 | Q53: 0.1429656898 | R53: 1178068.107 | U53: 1178068.107 | V53: 65399.54186 | W53: 196612.5218 | X53: 1200 | AA53: =Table17[[#This Row],[ Рыночная стоимость, тыс. руб. ]]*1000/Table17[[#This Row],[ Не продано площади, доля ПИК, кв.м. ]] ->  | AB53: 11440354.19 | AD53: 635.1024343
A54: . | B54: г. Москва, Кунцево, кв. 47, корп. 24 (эконом) | E54: 0.4292654686 | F54: 6930 | G54: 168 | H54: 6678 | I54: 151 | J54: 6678 | K54: 151 | L54: 47574 | M54: 48213 | N54: 47392 | O54: 2031-12-31 | Q54: 0.1429656898 | R54: 560315.705 | U54: 560315.705 | V54: 83904.71773 | W54: 196603.7736 | X54: 1200 | AA54: =Table17[[#This Row],[ Рыночная стоимость, тыс. руб. ]]*1000/Table17[[#This Row],[ Не продано площади, доля ПИК, кв.м. ]] ->  | AB54: 4059729.77 | AD54: 607.9259914
A55: . | B55: г. Москва, Кунцево, кв. 47, корп. 23 (эконом) | E55: 0.4911218173 | F55: 7928.6 | G55: 168 | H55: 7717.16 | I55: 151 | J55: 7717.16 | K55: 151 | L55: 47574 | M55: 48213 | N55: 47392 | O55: 2031-12-31 | Q55: 0.1429656898 | R55: 613956.5834 | U55: 613956.5834 | V55: 79557.32204 | W55: 197534.1188 | X55: 1200 | AA55: =Table17[[#This Row],[ Рыночная стоимость, тыс. руб. ]]*1000/Table17[[#This Row],[ Не продано площади, доля ПИК, кв.м. ]] ->  | AB55: 4792956.643 | AD55: 621.0777854
A56: . | B56: г. Москва, Кунцево, кв. 47, корп. 22 (эконом) | E56: 0.4911218173 | F56: 7928.6 | G56: 168 | H56: 7717.16 | I56: 151 | J56: 7717.16 | K56: 151 | L56: 45931 | M56: 46477 | N56: 45658 | O56: 2027-03-31 | Q56: 0.1418656898 | R56: 613977.1334 | U56: 613977.1334 | V56: 79559.98494 | W56: 197534.1188 | X56: 1200 | AA56: =Table17[[#This Row],[ Рыночная стоимость, тыс. руб. ]]*1000/Table17[[#This Row],[ Не продано площади, доля ПИК, кв.м. ]] ->  | AB56: 7782882.681 | AD56: 1008.516434
A57: . | B57: г. Москва, Кунцево, кв. 47, корп. 21 (муниципальный) | E57: 0.4292654686 | F57: 6930 | G57: 168 | H57: 378 | I57: 151 | J57: 378 | K57: 151 | L57: 45931 | M57: NA | N57: 45658 | O57: 2027-12-31 | Q57: 0.1418656898 | R57: 599387.2624 | U57: 599387.2624 | V57: 1585680.588 | W57: 140000 | X57: 1200 | AA57: =Table17[[#This Row],[ Рыночная стоимость, тыс. руб. ]]*1000/Table17[[#This Row],[ Не продано площади, доля ПИК, кв.м. ]] ->  | AB57: -3708021.281 | AD57: -9809.580108
A58: . | B58: г. Москва, Кунцево, кв. 47, корп. 20 (муниципальный) | E58: 1.151521654 | F58: 18590 | G58: 168 | H58: 1014 | I58: 151 | J58: 1014 | K58: 151 | L58: 45108 | M58: NA | N58: 44927 | O58: 2025-12-31 | Q58: 0.1418656898 | R58: 1277339.235 | U58: 1277339.235 | V58: 1259703.388 | W58: 140000 | X58: 1200 | AA58: =Table17[[#This Row],[ Рыночная стоимость, тыс. руб. ]]*1000/Table17[[#This Row],[ Не продано площади, доля ПИК, кв.м. ]] ->  | AB58: -11239251.48 | AD58: -11084.07444
A59: . | B59: г. Москва, Кунцево, кв. 47, корп. 19 (муниципальный) | E59: 1.178950045 | F59: 19032.8 | G59: 168 | H59: 379.68 | I59: 151 | J59: 379.68 | K59: 151 | L59: 45931 | M59: NA | N59: 45658 | O59: 2027-12-31 | Q59: 0.1418656898 | R59: 1312283.354 | U59: 1312283.354 | V59: 3456287.804 | W59: 140000 | X59: 1200 | AA59: =Table17[[#This Row],[ Рыночная стоимость, тыс. руб. ]]*1000/Table17[[#This Row],[ Не продано площади, доля ПИК, кв.м. ]] ->  | AB59: -10114730.8 | AD59: -26640.14643
A60: . | B60: г. Москва, Кунцево, кв. 47, корп. 18 (комфорт) | E60: 0.736682726 | F60: 11892.9 | G60: 145 | H60: 11575.74 | I60: 131 | J60: 11575.74 | K60: 131 | L60: 46753 | M60: 47391 | N60: 46661 | O60: 2029-12-31 | Q60: 0.1429656898 | R60: 838924.556 | U60: 838924.556 | V60: 72472.65022 | W60: 207123.1386 | X60: 1200 | AA60: =Table17[[#This Row],[ Рыночная стоимость, тыс. руб. ]]*1000/Table17[[#This Row],[ Не продано площади, доля ПИК, кв.м. ]] ->  | AB60: 9295249.625 | AD60: 802.9939879
A61: . | B61: г. Москва, Кунцево, кв. 47, корп. 17 (комфорт) | E61: 0.4837753693 | F61: 7810 | G61: 145 | H61: 7526 | I61: 130 | J61: 7526 | K61: 130 | L61: 46753 | M61: 47391 | N61: 46661 | O61: 2029-12-31 | Q61: 0.1429656898 | R61: 607020.1758 | U61: 607020.1758 | V61: 80656.41454 | W61: 206037.7358 | X61: 1200 | AA61: =Table17[[#This Row],[ Рыночная стоимость, тыс. руб. ]]*1000/Table17[[#This Row],[ Не продано площади, доля ПИК, кв.м. ]] ->  | AB61: 5859737.704 | AD61: 778.5992166
A62: . | B62: г. Москва, Кунцево, кв. 47, корп. 16 (комфорт плюс) | E62: 0.7735140748 | F62: 12487.5 | G62: 145 | H62: 11932.5 | I62: 131 | J62: 11932.5 | K62: 131 | L62: 46753 | M62: 47391 | N62: 46661 | O62: 2029-12-31 | Q62: 0.1429656898 | R62: 994387.328 | U62: 994387.328 | V62: 83334.36648 | W62: 223720.9302 | X62: 1200 | AA62: =Table17[[#This Row],[ Рыночная стоимость, тыс. руб. ]]*1000/Table17[[#This Row],[ Не продано площади, доля ПИК, кв.м. ]] ->  | AB62: 9781766.36 | AD62: 819.7583373
A63: . | B63: г. Москва, Кунцево, кв. 47, корп. 15 (комфорт плюс) | E63: 0.7735140748 | F63: 12487.5 | G63: 145 | H63: 11932.5 | I63: 130 | J63: 11932.5 | K63: 130 | L63: 46753 | M63: 47391 | N63: 46661 | O63: 2029-12-31 | Q63: 0.1429656898 | R63: 994387.3332 | U63: 994387.3332 | V63: 83334.36692 | W63: 223720.9302 | X63: 1200 | AA63: =Table17[[#This Row],[ Рыночная стоимость, тыс. руб. ]]*1000/Table17[[#This Row],[ Не продано площади, доля ПИК, кв.м. ]] ->  | AB63: 9777228.317 | AD63: 819.3780278
A64: . | B64: г. Москва, Кунцево, кв. 47, корп. 14 (комфорт плюс) | E64: 0.3553983587 | F64: 5737.5 | G64: 145 | H64: 5482.5 | I64: 131 | J64: 5482.5 | K64: 131 | L64: 46753 | M64: 47391 | N64: 46661 | O64: 2029-12-31 | Q64: 0.1429656898 | R64: 545872.8087 | U64: 545872.8087 | V64: 99566.40378 | W64: 223720.9302 | X64: 1200 | AA64: =Table17[[#This Row],[ Рыночная стоимость, тыс. руб. ]]*1000/Table17[[#This Row],[ Не продано площади, доля ПИК, кв.м. ]] ->  | AB64: 4375586.949 | AD64: 798.1006747
A65: . | B65: г. Москва, Кунцево, кв. 47, корп. 13 (комфорт плюс) | E65: 0.3553983587 | F65: 5737.5 | G65: 145 | H65: 5482.5 | I65: 130 | J65: 5482.5 | K65: 130 | L65: 45931 | M65: 46477 | N65: 45658 | O65: 2027-03-31 | Q65: 0.1418656898 | R65: 545887.0559 | U65: 545887.0559 | V65: 99569.00244 | W65: 223720.9302 | X65: 1200 | AA65: =Table17[[#This Row],[ Рыночная стоимость, тыс. руб. ]]*1000/Table17[[#This Row],[ Не продано площади, доля ПИК, кв.м. ]] ->  | AB65: 5906120.547 | AD65: 1077.26777
A66: . | B66: г. Москва, Кунцево, кв. 47, корп. 12 (комфорт плюс) | E66: 0.8715327873 | F66: 14069.9 | G66: 145 | H66: 13761.94 | I66: 131 | J66: 13761.94 | K66: 131 | L66: 45931 | M66: 46477 | N66: 45658 | O66: 2027-12-31 | Q66: 0.1418656898 | R66: 1101581.741 | U66: 1101581.741 | V66: 80045.52709 | W66: 226979.016 | X66: 1200 | AA66: =Table17[[#This Row],[ Рыночная стоимость, тыс. руб. ]]*1000/Table17[[#This Row],[ Не продано площади, доля ПИК, кв.м. ]] ->  | AB66: 14043020.88 | AD66: 1020.42451
A67: . | B67: г. Москва, Кунцево, кв. 47, корп. 11 (комфорт плюс) | E67: 0.7735140748 | F67: 12487.5 | G67: 145 | H67: 11932.5 | I67: 130 | J67: 11932.5 | K67: 130 | L67: 45931 | M67: 46477 | N67: 45658 | O67: 2027-03-31 | Q67: 0.1418656898 | R67: 989713.5639 | U67: 989713.5639 | V67: 82942.68292 | W67: 223720.9302 | X67: 1200 | AA67: =Table17[[#This Row],[ Рыночная стоимость, тыс. руб. ]]*1000/Table17[[#This Row],[ Не продано площади, доля ПИК, кв.м. ]] ->  | AB67: 13306929.3 | AD67: 1115.183683
A68: . | B68: г. Москва, Кунцево, кв. 47, корп. 10 (комфорт) | E68: 0.2648066202 | F68: 4275 | G68: 145 | H68: 4085 | I68: 131 | J68: 4085 | K68: 131 | L68: 45200 | M68: 45930 | N68: 44927 | O68: 2025-12-31 | Q68: 0.1418656898 | R68: 406595.4931 | U68: 406595.4931 | V68: 99533.78044 | W68: 205116.2791 | X68: 1200 | AA68: =Table17[[#This Row],[ Рыночная стоимость, тыс. руб. ]]*1000/Table17[[#This Row],[ Не продано площади, доля ПИК, кв.м. ]] ->  | AB68: 4379958.265 | AD68: 1072.205206
A69: . | B69: г. Москва, Кунцево, кв. 47, корп. 9 (комфорт) | E69: 0.3815693054 | F69: 6160 | G69: 145 | H69: 5936 | I69: 130 | J69: 5936 | K69: 130 | L69: 45200 | M69: 45930 | N69: 44927 | O69: 2025-12-31 | Q69: 0.1418656898 | R69: 513554.9292 | U69: 513554.9292 | V69: 86515.31826 | W69: 206037.7358 | X69: 1200 | AA69: =Table17[[#This Row],[ Рыночная стоимость, тыс. руб. ]]*1000/Table17[[#This Row],[ Не продано площади, доля ПИК, кв.м. ]] ->  | AB69: 6580035.699 | AD69: 1108.49658
A70: . | B70: г. Москва, Кунцево, кв. 47, корп. 8 (комфорт) | E70: 0.736682726 | F70: 11892.9 | G70: 146 | H70: 11575.74 | I70: 131 | J70: 11575.74 | K70: 131 | L70: 45200 | M70: 45838 | N70: 44927 | O70: 2025-12-31 | Q70: 0.1418656898 | R70: 840048.5324 | U70: 840048.5324 | V70: 72569.7478 | W70: 207123.1386 | X70: 1200 | AA70: =Table17[[#This Row],[ Рыночная стоимость, тыс. руб. ]]*1000/Table17[[#This Row],[ Не продано площади, доля ПИК, кв.м. ]] ->  | AB70: 13329177.72 | AD70: 1151.475216
A71: . | B71: г. Москва, Кунцево, кв. 48, корп. 7 (муниципальный) | E71: 0.9269160854 | F71: 14964 | G71: 200 | H71: 518.4 | I71: 180 | J71: 518.4 | K71: 180 | L71: 44287 | M71: NA | N71: 43831 | O71: 2023-12-31 | Q71: 0.1402656898 | R71: 1114110.976 | U71: 1114110.976 | V71: 2149133.827 | W71: 140000 | X71: 1200 | AA71: =Table17[[#This Row],[ Рыночная стоимость, тыс. руб. ]]*1000/Table17[[#This Row],[ Не продано площади, доля ПИК, кв.м. ]] ->  | AB71: -12167252.38 | AD71: -23470.78006
A72: . | B72: г. Москва, Кунцево, кв. 48, корп. 5 (эконом) | E72: 1.364066907 | F72: 22021.3 | G72: 250 | H72: 21852.78 | I72: 225 | J72: 21852.78 | K72: 225 | L72: 45200 | M72: 45838 | N72: 44927 | O72: 2025-12-31 | Q72: 0.1418656898 | R72: 1450024.471 | U72: 1450024.471 | V72: 66354.23368 | W72: 199305.9556 | X72: 1200 | AA72: =Table17[[#This Row],[ Рыночная стоимость, тыс. руб. ]]*1000/Table17[[#This Row],[ Не продано площади, доля ПИК, кв.м. ]] ->  | AB72: 24861685.93 | AD72: 1137.689847
A73: . | B73: г. Москва, Кунцево, кв. 48, корп. 4 (эконом) | E73: 0.6864221197 | F73: 11081.5 | G73: 250 | H73: 10968.9 | I73: 225 | J73: 10968.9 | K73: 225 | L73: 45200 | M73: 45838 | N73: 44927 | O73: 2025-12-31 | Q73: 0.1418656898 | R73: 886593.2572 | U73: 886593.2572 | V73: 80827.90957 | W73: 199076.1152 | X73: 1200 | AA73: =Table17[[#This Row],[ Рыночная стоимость, тыс. руб. ]]*1000/Table17[[#This Row],[ Не продано площади, доля ПИК, кв.м. ]] ->  | AB73: 11959073.05 | AD73: 1090.270952
A74: . | B74: г. Москва, Кунцево, кв. 48, корп. 3 (эконом) | E74: 0.8809543281 | F74: 14222 | H74: 14003.2 | I74: 0 | J74: 14003.2 | K74: 0 | L74: 44378 | M74: 44742 | N74: 43831 | O74: 2023-12-31 | Q74: 0.1402656898 | R74: 760030.3431 | U74: 760030.3431 | V74: 54275.47583 | W74: 198593.75 | X74: паркинг отсутствует | AA74: =Table17[[#This Row],[ Рыночная стоимость, тыс. руб. ]]*1000/Table17[[#This Row],[ Не продано площади, доля ПИК, кв.м. ]] ->  | AB74: 18754215.61 | AD74: 1339.280708
A75: . | B75: г. Москва, Кунцево, кв. 48, корп. 2 (эконом) | E75: 0.8809543281 | F75: 14222 | H75: 14003.2 | I75: 0 | J75: 14003.2 | K75: 0 | L75: 44378 | M75: 44742 | N75: 43831 | O75: 2023-12-31 | Q75: 0.1402656898 | R75: 760030.3431 | U75: 760030.3431 | V75: 54275.47583 | W75: 198593.75 | X75: паркинг отсутствует | AA75: =Table17[[#This Row],[ Рыночная стоимость, тыс. руб. ]]*1000/Table17[[#This Row],[ Не продано площади, доля ПИК, кв.м. ]] ->  | AB75: 18754215.61 | AD75: 1339.280708
B76: г. Москва, Мещерский лес (Боровское шоссе, вл. 2) | C76: Мещерский лес | D76: 29 | E76: 31.1753 | F76: 434386.2398 | G76: 3659 | H76: 388818.9598 | I76: 3659 | J76: 110795.5669 | K76: 3142 | L76: <01.01.2019 | M76: 44561 | N76: <01.01.2019 | O76: 2024-12-31 | Q76: 0.135449883 | R76: 29825121.59 | U76: 12756390.54 | V76: 115134.485 | W76: 185234.9129 | X76: 700000 | Y76: 0 | Z76: 5161434.524 | AA76: =Table17[[#This Row],[ Рыночная стоимость, тыс. руб. ]]*1000/Table17[[#This Row],[ Не продано площади, доля ПИК, кв.м. ]] -> 46585.20793 | AD76: 0
A77: . | B77: г. Москва, Мещерский лес (Боровское шоссе, вл. 2), 2 очередь, корпус 6.2 | E77: 1.983354452 | F77: 27635.3999 | H77: 27635.3999 | I77: 0 | J77: 16866.90694 | K77: 0 | L77: <01.01.2019 | M77: 44104 | N77: <01.01.2019 | O77: 2020-09-30 | Q77: 0.1412656898 | R77: 1047682.21 | U77: 908437.3202 | V77: 53859.15291 | W77: 201216.9272 | X77: паркинг отсутствует | AA77: =Table17[[#This Row],[ Рыночная стоимость, тыс. руб. ]]*1000/Table17[[#This Row],[ Не продано площади, доля ПИК, кв.м. ]] ->  | AB77: 16084526.07 | AD77: 953.614443
A78: . | B78: г. Москва, Мещерский лес (Боровское шоссе, вл. 2), 2 очередь, корпус 6.1 | E78: 1.973952763 | F78: 27504.3999 | H78: 27504.3999 | I78: 0 | J78: 23930.8 | K78: 0 | L78: <01.01.2019 | M78: 44104 | N78: <01.01.2019 | O78: 2020-09-30 | Q78: 0.1412656898 | R78: 1044514.698 | U78: 895252.1132 | V78: 37410.03699 | W78: 180225.3818 | X78: паркинг отсутствует | AA78: =Table17[[#This Row],[ Рыночная стоимость, тыс. руб. ]]*1000/Table17[[#This Row],[ Не продано площади, доля ПИК, кв.м. ]] ->  | AB78: 37229520 | AD78: 1555.715647
A79: . | B79: г. Москва, Мещерский лес (Боровское шоссе, вл. 2), 2 очередь, корпус 5.2 | E79: 1.755941247 | F79: 24466.7001 | H79: 24466.7001 | I79: 0 | J79: 16382.8 | K79: 0 | L79: <01.01.2019 | M79: 44104 | N79: <01.01.2019 | O79: 2019-12-31 | Q79: 0.1271656898 | R79: 896205.4032 | U79: 341746.3861 | V79: 20860.07191 | W79: 232603.1286 | X79: паркинг отсутствует | AA79: =Table17[[#This Row],[ Рыночная стоимость, тыс. руб. ]]*1000/Table17[[#This Row],[ Не продано площади, доля ПИК, кв.м. ]] ->  | AB79: 30129508.31 | AD79: 1839.093947
A80: . | B80: г. Москва, Мещерский лес (Боровское шоссе, вл. 2), 2 очередь, корпус 4.4 | E80: 1.093143701 | F80: 15231.5 | H80: 15231.5 | I80: 0 | J80: 0 | K80: 0 | L80: <01.01.2019 | M80: <01.01.2019 | N80: <01.01.2019 | O80: 2019-06-30 | Q80: 0.1071656898 | R80: 567566.1299 | U80: 29543.45443 | V80: 0 | W80: 0 | X80: паркинг отсутствует | AA80: =Table17[[#This Row],[ Рыночная стоимость, тыс. руб. ]]*1000/Table17[[#This Row],[ Не продано площади, доля ПИК, кв.м. ]] ->  | AB80: -1897196.058 | AD80: 0
A81: . | B81: г. Москва, Мещерский лес (Боровское шоссе, вл. 2), 2 очередь, корпус 4.2 | E81: 1.067543835 | F81: 14874.8 | H81: 14874.8 | I81: 0 | J81: 41.7 | K81: 0 | L81: <01.01.2019 | M81: 43555 | N81: <01.01.2019 | O81: 2019-03-31 | Q81: 0.1071656898 | R81: 549352.8875 | U81: 41789.55495 | V81: 1002147.601 | W81: 156839.0695 | X81: паркинг отсутствует | AA81: =Table17[[#This Row],[ Рыночная стоимость, тыс. руб. ]]*1000/Table17[[#This Row],[ Не продано площади, доля ПИК, кв.м. ]] ->  | AB81: -2229787.554 | AD81: -53472.12359
A82: . | B82: г. Москва, Мещерский лес (Боровское шоссе, вл. 2), 2 очередь, корпус 5.1 | E82: 2.38004831 | F82: 33162.7999 | H82: 33162.7999 | I82: 0 | J82: 2902.7 | K82: 0 | L82: <01.01.2019 | M82: 43555 | N82: <01.01.2019 | O82: 2019-12-31 | Q82: 0.1271656898 | R82: 1165113.047 | U82: 203552.0278 | V82: 70125.06556 | W82: 383585.1236 | X82: паркинг отсутствует | AA82: =Table17[[#This Row],[ Рыночная стоимость, тыс. руб. ]]*1000/Table17[[#This Row],[ Не продано площади, доля ПИК, кв.м. ]] ->  | AB82: 2303695.226 | AD82: 793.638759
A83: . | B83: г. Москва, Мещерский лес (Боровское шоссе, вл. 2), 2 очередь, корпус 4.3 | E83: 1.000784667 | F83: 13944.6 | H83: 13944.6 | I83: 0 | J83: 0 | K83: 0 | L83: <01.01.2019 | M83: <01.01.2019 | N83: <01.01.2019 | O83: 2019-06-30 | Q83: 0.1071656898 | R83: 541502.1115 | U83: 25240.32846 | V83: 0 | W83: 0 | X83: паркинг отсутствует | AA83: =Table17[[#This Row],[ Рыночная стоимость, тыс. руб. ]]*1000/Table17[[#This Row],[ Не продано площади, доля ПИК, кв.м. ]] ->  | AB83: -1875736.93 | AD83: 0
A84: . | B84: г. Москва, Мещерский лес (Боровское шоссе, вл. 2), 2 очередь, корпус 3.2 | E84: 1.968455294 | F84: 27427.8 | H84: 27427.8 | I84: 0 | J84: 0 | K84: 0 | L84: <01.01.2019 | M84: <01.01.2019 | N84: <01.01.2019 | O84: 2018-12-31 | Q84: 0.1038656898 | R84: 1167027.088 | U84: 0 | V84: 0 | W84: 0 | X84: паркинг отсутствует | AA84: =Table17[[#This Row],[ Рыночная стоимость, тыс. руб. ]]*1000/Table17[[#This Row],[ Не продано площади, доля ПИК, кв.м. ]] ->  | AB84: -846579.3015 | AD84: 0
A85: . | B85: г. Москва, Мещерский лес (Боровское шоссе, вл. 2), 2 очередь, корпус 3.1 | E85: 2.058395726 | F85: 28681 | H85: 28681 | I85: 0 | J85: 222.7 | K85: 0 | L85: <01.01.2019 | M85: 44196 | N85: <01.01.2019 | O85: 2018-12-31 | Q85: 0.1038656898 | R85: 1190554.688 | U85: 0 | V85: 0 | W85: 169313.9099 | X85: паркинг отсутствует | AA85: =Table17[[#This Row],[ Рыночная стоимость, тыс. руб. ]]*1000/Table17[[#This Row],[ Не продано площади, доля ПИК, кв.м. ]] ->  | AB85: -280650.892 | AD85: -1260.219542
A86: . | B86: г. Москва, Мещерский лес (Боровское шоссе, вл. 2), 1 очередь, корпус 2.2 | E86: 1.632291088 | F86: 22743.8 | H86: 22743.8 | I86: 0 | J86: 0 | K86: 0 | M86: <01.01.2019 | N86: <01.01.2019 | O86: 2019-03-31 | Q86: 0.1071656898 | R86: 959073.4471 | U86: 11304.22358 | V86: 0 | W86: 0 | X86: паркинг отсутствует | AA86: =Table17[[#This Row],[ Рыночная стоимость, тыс. руб. ]]*1000/Table17[[#This Row],[ Не продано площади, доля ПИК, кв.м. ]] ->  | AB86: -594273.7112 | AD86: 0
A87: . | B87: г. Москва, Мещерский лес (Боровское шоссе, вл. 2), 1 очередь, корпус 2.1 | E87: 2.361043987 | F87: 32898 | H87: 32898 | I87: 0 | J87: 414.8 | K87: 0 | L87: <01.01.2019 | M87: 43555 | N87: <01.01.2019 | O87: 2018-12-31 | Q87: 0.1038656898 | R87: 1480406.454 | U87: 0 | V87: 0 | W87: 216370.7746 | X87: паркинг отсутствует | AA87: =Table17[[#This Row],[ Рыночная стоимость, тыс. руб. ]]*1000/Table17[[#This Row],[ Не продано площади, доля ПИК, кв.м. ]] ->  | AB87: 469698.271 | AD87: 1132.348773
A88: . | B88: г. Москва, Мещерский лес (Боровское шоссе, вл. 2), 1 очередь, корпус 1.2 | E88: 1.933877174 | F88: 26946 | H88: 26946 | I88: 0 | J88: 0 | K88: 0 | L88: <01.01.2019 | M88: 43465 | N88: <01.01.2019 | O88: 2019-03-31 | Q88: 0.1071656898 | R88: 1075520.197 | U88: 5024.607203 | V88: 0 | W88: 0 | X88: паркинг отсутствует | AA88: =Table17[[#This Row],[ Рыночная стоимость, тыс. руб. ]]*1000/Table17[[#This Row],[ Не продано площади, доля ПИК, кв.м. ]] ->  | AB88: -581679.6607 | AD88: 0
A89: . | B89: г. Москва, Мещерский лес (Боровское шоссе, вл. 2), 1 очередь, корпус 1.1 | E89: 2.026128555 | F89: 28231.4 | H89: 28231.4 | I89: 0 | J89: 56.8 | K89: 0 | L89: <01.01.2019 | M89: 43555 | N89: <01.01.2019 | O89: 2019-03-31 | Q89: 0.1071656898 | R89: 1113091.416 | U89: 2568.936468 | V89: 45227.75471 | W89: 293544.4507 | X89: паркинг отсутствует | AA89: =Table17[[#This Row],[ Рыночная стоимость, тыс. руб. ]]*1000/Table17[[#This Row],[ Не продано площади, доля ПИК, кв.м. ]] ->  | AB89: -119330.9816 | AD89: -2100.897564
A90: . | B90: г. Москва, Мещерский лес (Боровское шоссе, вл. 2), 2 очередь, корпус 8.1 | E90: 1.019353362 | F90: 14203.33 | H90: 14203.33 | I90: 0 | J90: 14203.33 | K90: 0 | L90: 43831 | M90: 44469 | N90: <01.01.2019 | O90: 2021-12-31 | Q90: 0.1342656898 | R90: 587471.0447 | U90: 578552.7892 | V90: 40733.60185 | W90: 151389.9329 | X90: паркинг отсутствует | AA90: =Table17[[#This Row],[ Рыночная стоимость, тыс. руб. ]]*1000/Table17[[#This Row],[ Не продано площади, доля ПИК, кв.м. ]] ->  | AB90: 8129197.723 | AD90: 572.3444941
A91: . | B91: г. Москва, Мещерский лес (Боровское шоссе, вл. 2), 2 очередь, корпус 4.1 | E91: 1.107009398 | F91: 15424.7 | H91: 15424.7 | I91: 0 | J91: 95.2 | K91: 0 | L91: <01.01.2019 | M91: 43555 | N91: <01.01.2019 | O91: 2019-03-31 | Q91: 0.1071656898 | R91: 565658.0183 | U91: 48051.33707 | V91: 504740.9356 | W91: 425120.648 | X91: паркинг отсутствует | AA91: =Table17[[#This Row],[ Рыночная стоимость, тыс. руб. ]]*1000/Table17[[#This Row],[ Не продано площади, доля ПИК, кв.м. ]] ->  | AB91: -2404546.239 | AD91: -25257.83865
A92: . | B92: г. Москва, Мещерский лес (Боровское шоссе, вл. 2), 2 очередь, автостоянка 7.3 на 269м/м | E92: 0.05916604847 | F92: 824.4 | G92: 269 | H92: 0 | I92: 269 | J92: 0 | K92: 15 | L92: <01.01.2019 | M92: NA | N92: <01.01.2019 | O92: 2019-03-31 | Q92: 0.1121656898 | R92: 286361.2335 | U92: 4271.348512 | V92: 0 | W92: 0 | X92: 741.2666667 | AA92: =Table17[[#This Row],[ Рыночная стоимость, тыс. руб. ]]*1000/Table17[[#This Row],[ Не продано площади, доля ПИК, кв.м. ]] ->  | AB92: 207952.7037 | AD92: 0
A93: . | B93: г. Москва, Мещерский лес (Боровское шоссе, вл. 2), 2 очередь, автостоянка 7.4 на 270 м/м | E93: 0.05971148997 | F93: 832 | G93: 270 | H93: 0 | I93: 270 | J93: 235.1 | K93: 270 | L93: 43466 | M93: NA | N93: <01.01.2019 | O93: 2021-12-31 | Q93: 0.1492656898 | R93: 213248.0532 | U93: 203959.3842 | V93: 867543.1059 | W93: 310029.8434 | X93: 700 | AA93: =Table17[[#This Row],[ Рыночная стоимость, тыс. руб. ]]*1000/Table17[[#This Row],[ Не продано площади, доля ПИК, кв.м. ]] ->  | AB93: 754313.1958 | AD93: 3208.478077
A94: . | B94: г. Москва, Мещерский лес (Боровское шоссе, вл. 2), 2 очередь, автостоянка 9 на 1100 м/м | E94: 0 | F94: 0 | G94: 1100 | H94: 0 | I94: 1100 | J94: 0 | K94: 1100 | L94: 44562 | M94: NA | N94: 44197 | O94: 2023-12-31 | Q94: 0.1302656898 | R94: 510940.678 | U94: 510940.678 | V94: 0 | W94: 0 | X94: 700 | AA94: =Table17[[#This Row],[ Рыночная стоимость, тыс. руб. ]]*1000/Table17[[#This Row],[ Не продано площади, доля ПИК, кв.м. ]] ->  | AB94: 1972052.71 | AD94: 0
A95: . | B95: г. Москва, Мещерский лес (Боровское шоссе, вл. 2), 2 очередь, автостоянка 7.5 на 300м/м | E95: 0 | F95: 0 | G95: 300 | H95: 0 | I95: 300 | J95: 0 | K95: 300 | L95: 43831 | M95: NA | N95: <01.01.2019 | O95: 2021-12-31 | Q95: 0.1267656898 | R95: 201140.7542 | U95: 199533.1729 | V95: 0 | W95: 0 | X95: 700 | AA95: =Table17[[#This Row],[ Рыночная стоимость, тыс. руб. ]]*1000/Table17[[#This Row],[ Не продано площади, доля ПИК, кв.м. ]] ->  | AB95: -88233.47377 | AD95: 0
A96: . | B96: г. Москва, Мещерский лес (Боровское шоссе, вл. 2), 2 очередь, автостоянка 8 на 1150 м/м | E96: 0 | F96: 0 | G96: 1150 | H96: 0 | I96: 1150 | J96: 0 | K96: 1150 | L96: 44470 | M96: NA | N96: <01.01.2019 | O96: 2024-06-30 | Q96: 0.1302656898 | R96: 539061.4641 | U96: 537105.8365 | V96: 0 | W96: 0 | X96: 700 | AA96: =Table17[[#This Row],[ Рыночная стоимость, тыс. руб. ]]*1000/Table17[[#This Row],[ Не продано площади, доля ПИК, кв.м. ]] ->  | AB96: 1938515.592 | AD96: 0
A97: . | B97: г. Москва, Мещерский лес (Боровское шоссе, вл. 2), 1 очередь, автостоянка 7.2 на 300м/м | E97: 0 | F97: 0 | G97: 300 | H97: 0 | I97: 300 | J97: 0 | K97: 300 | L97: 43831 | M97: NA | N97: 43831 | O97: 2021-12-31 | Q97: 0.1267656898 | R97: 201166.6582 | U97: 201166.6582 | V97: 0 | W97: 0 | X97: 700 | AA97: =Table17[[#This Row],[ Рыночная стоимость, тыс. руб. ]]*1000/Table17[[#This Row],[ Не продано площади, доля ПИК, кв.м. ]] ->  | AB97: -80207.10918 | AD97: 0
A98: . | B98: г. Москва, Мещерский лес (Боровское шоссе, вл. 2), 1 очередь, автостоянка 7.1 на 270м/м | E98: 0.06059424397 | F98: 844.3 | G98: 270 | H98: 0 | I98: 270 | J98: 0 | K98: 7 | L98: 43466 | M98: NA | N98: <01.01.2019 | O98: 2019-03-31 | Q98: 0.1121656898 | R98: 285755.5404 | U98: 1022.930441 | V98: 0 | W98: 0 | X98: 700 | AA98: =Table17[[#This Row],[ Рыночная стоимость, тыс. руб. ]]*1000/Table17[[#This Row],[ Не продано площади, доля ПИК, кв.м. ]] ->  | AB98: -120979.5643 | AD98: 0
A99: . | B99: г. Москва, Мещерский лес (Боровское шоссе, вл. 2), 2 очередь, Детский сад 13 на 350 мест | E99: 0.40327504 | F99: 5619.1 | H99: 0 | I99: 0 | J99: 0 | K99: 0 | M99: NA | N99: <01.01.2019 | O99: 2020-12-31 | Q99: 0.1462656898 | R99: 296437.7416 | U99: 223751.2091 | V99: 0 | W99: 0 | X99: паркинг отсутствует | AA99: =Table17[[#This Row],[ Рыночная стоимость, тыс. руб. ]]*1000/Table17[[#This Row],[ Не продано площади, доля ПИК, кв.м. ]] ->  | AB99: -3922299.159 | AD99: 0
A100: . | B100: г. Москва, Мещерский лес (Боровское шоссе, вл. 2), 2 очередь, Школа 14 на 825 мест | E100: 1.104094875 | F100: 15384.09 | H100: 0 | I100: 0 | J100: 0 | K100: 0 | M100: NA | N100: <01.01.2019 | O100: 2020-12-31 | Q100: 0.1462656898 | R100: 666123.8806 | U100: 578775.272 | V100: 0 | W100: 0 | X100: паркинг отсутствует | AA100: =Table17[[#This Row],[ Рыночная стоимость, тыс. руб. ]]*1000/Table17[[#This Row],[ Не продано площади, доля ПИК, кв.м. ]] ->  | AB100: -9918347.375 | AD100: 0
A101: . | B101: г. Москва, Мещерский лес (Боровское шоссе, вл. 2), 2 очередь, Детский сад 11 на 350 мест | E101: 0.40327504 | F101: 5619.1 | H101: 0 | I101: 0 | J101: 0 | K101: 0 | M101: NA | N101: 43466 | O101: 2021-12-31 | Q101: 0.1267656898 | R101: 298048.7701 | U101: 298048.7701 | V101: 0 | W101: 0 | X101: паркинг отсутствует | AA101: =Table17[[#This Row],[ Рыночная стоимость, тыс. руб. ]]*1000/Table17[[#This Row],[ Не продано площади, доля ПИК, кв.м. ]] ->  | AB101: -4486107.544 | AD101: 0
A102: . | B102: г. Москва, Мещерский лес (Боровское шоссе, вл. 2), 2 очередь, Школа 12 на 825 мест | E102: 1.104094875 | F102: 15384.09 | H102: 0 | I102: 0 | J102: 0 | K102: 0 | M102: NA | N102: 43466 | O102: 2021-12-31 | Q102: 0.1267656898 | R102: 667629.1112 | U102: 667629.1112 | V102: 0 | W102: 0 | X102: паркинг отсутствует | AA102: =Table17[[#This Row],[ Рыночная стоимость, тыс. руб. ]]*1000/Table17[[#This Row],[ Не продано площади, доля ПИК, кв.м. ]] ->  | AB102: -10054521.84 | AD102: 0
A103: . | B103: г. Москва, Мещерский лес (Боровское шоссе, вл. 2), 2 очередь, корпус 8.2 с ДОО | E103: 1.09544245 | F103: 15263.53 | H103: 14203.33 | I103: 0 | J103: 14203.33 | K103: 0 | L103: 43831 | M103: 44561 | N103: <01.01.2019 | O103: 2021-12-31 | Q103: 0.1367656898 | R103: 641118.0852 | U103: 631315.1203 | V103: 44448.38783 | W103: 153544.502 | X103: паркинг отсутствует | AA103: =Table17[[#This Row],[ Рыночная стоимость, тыс. руб. ]]*1000/Table17[[#This Row],[ Не продано площади, доля ПИК, кв.м. ]] ->  | AB103: 9557914.73 | AD103: 672.9347787
A104: . | B104: г. Москва, Мещерский лес (Боровское шоссе, вл. 2), 2 очередь, корпус 8.4 | E104: 0.7621611899 | F104: 10619.7 | H104: 10619.7 | I104: 0 | J104: 10619.7 | K104: 0 | L104: 43466 | M104: 44104 | N104: 43374 | O104: 2020-09-30 | Q104: 0.1312656898 | R104: 478771.67 | U104: 474669.72 | V104: 44697.09314 | W104: 151414.2282 | X104: паркинг отсутствует | AA104: =Table17[[#This Row],[ Рыночная стоимость, тыс. руб. ]]*1000/Table17[[#This Row],[ Не продано площади, доля ПИК, кв.м. ]] ->  | AB104: 9620468.292 | AD104: 905.9077273
A105: . | B105: г. Москва, Мещерский лес (Боровское шоссе, вл. 2), 2 очередь, корпус 8.5 | E105: 0.7621611899 | F105: 10619.7 | H105: 10619.7 | I105: 0 | J105: 10619.7 | K105: 0 | L105: 43647 | M105: 44286 | N105: 43374 | O105: 2021-03-31 | Q105: 0.1342656898 | R105: 476441.26 | U105: 473206.3 | V105: 44559.29075 | W105: 151414.2282 | X105: паркинг отсутствует | AA105: =Table17[[#This Row],[ Рыночная стоимость, тыс. руб. ]]*1000/Table17[[#This Row],[ Не продано площади, доля ПИК, кв.м. ]] ->  | AB105: 9562881.01 | AD105: 900.4850429
B106: г. Москва, Мякинино | C106: Мякинино парк | D106: 12 | E106: 28.03 | F106: 293790.3 | G106: 1861 | H106: 245790.3 | I106: 1861 | J106: 229888.7 | K106: 1861 | L106: <01.01.2019 | M106: 45016 | N106: <01.01.2019 | O106: 2026-12-31 | Q106: 0.1339358642 | R106: 21465021.03 | U106: 20395142.5 | V106: 88717.46416 | W106: 116148.8499 | X106: 673622.7321 | Y106: 0 | Z106: 3958910 | AA106: =Table17[[#This Row],[ Рыночная стоимость, тыс. руб. ]]*1000/Table17[[#This Row],[ Не продано площади, доля ПИК, кв.м. ]] -> 17220.98563 | AD106: 0
A107: . | B107: г. Москва, Мякинино, 3-я оч., корп. 3, строение 3.2 | E107: 2.514988442 | F107: 26360.3 | H107: 22238.94 | I107: 0 | J107: 21637.14 | K107: 0 | L107: 43831 | M107: 44834 | N107: <01.01.2019 | O107: 2022-03-31 | Q107: 0.1267656898 | R107: 1055963.361 | U107: 1047534.071 | V107: 48413.70307 | W107: 124495.9702 | X107: паркинг отсутствует | AA107: =Table17[[#This Row],[ Рыночная стоимость, тыс. руб. ]]*1000/Table17[[#This Row],[ Не продано площади, доля ПИК, кв.м. ]] ->  | AB107: 12314477.65 | AD107: 569.1361081
A108: . | B108: г. Москва, Мякинино, 2-я оч., корп. 2, строение 2.2 | E108: 2.514759463 | F108: 26357.9 | H108: 22236.92 | I108: 0 | J108: 21635.12 | K108: 0 | L108: 43466 | M108: 44469 | N108: <01.01.2019 | O108: 2021-09-30 | Q108: 0.1267656898 | R108: 1041201.067 | U108: 1028349.417 | V108: 47531.48663 | W108: 129235.1802 | X108: паркинг отсутствует | AA108: =Table17[[#This Row],[ Рыночная стоимость, тыс. руб. ]]*1000/Table17[[#This Row],[ Не продано площади, доля ПИК, кв.м. ]] ->  | AB108: 13681129.74 | AD108: 632.3574697
A109: . | B109: г. Москва, Мякинино, 1-я оч., корп. 1, строение 1.2 | E109: 2.501917521 | F109: 26223.3 | H109: 22122.43 | I109: 0 | J109: 16400.13 | K109: 0 | L109: <01.01.2019 | M109: 44196 | N109: <01.01.2019 | O109: 2021-09-30 | Q109: 0.1492656898 | R109: 1059887.477 | U109: 920408.2383 | V109: 56122.00869 | W109: 155997.9644 | X109: паркинг отсутствует | AA109: =Table17[[#This Row],[ Рыночная стоимость, тыс. руб. ]]*1000/Table17[[#This Row],[ Не продано площади, доля ПИК, кв.м. ]] ->  | AB109: 12976876.51 | AD109: 791.2666856
A110: . | B110: г. Москва, Мякинино, 3-я оч., корп. 3, строение 3.1 | E110: 2.948618654 | F110: 30905.3 | H110: 26115.72 | I110: 0 | J110: 25145.32 | K110: 0 | L110: 43831 | M110: 44651 | N110: <01.01.2019 | O110: 2022-03-31 | Q110: 0.1267656898 | R110: 1194311.866 | U110: 1179347.736 | V110: 46901.28165 | W110: 122665.2789 | X110: паркинг отсутствует | AA110: =Table17[[#This Row],[ Рыночная стоимость, тыс. руб. ]]*1000/Table17[[#This Row],[ Не продано площади, доля ПИК, кв.м. ]] ->  | AB110: 14445985.93 | AD110: 574.4999836
A111: . | B111: г. Москва, Мякинино, 2-я оч., корп. 2, строение 2.1 | E111: 2.948637736 | F111: 30905.5 | H111: 26115.92 | I111: 0 | J111: 25145.32 | K111: 0 | L111: 43466 | M111: 44469 | N111: <01.01.2019 | O111: 2021-09-30 | Q111: 0.1267656898 | R111: 1230059.488 | U111: 1200333.47 | V111: 47735.85981 | W111: 130935.4589 | X111: паркинг отсутствует | AA111: =Table17[[#This Row],[ Рыночная стоимость, тыс. руб. ]]*1000/Table17[[#This Row],[ Не продано площади, доля ПИК, кв.м. ]] ->  | AB111: 16431261.98 | AD111: 653.4520927
A112: . | B112: г. Москва, Мякинино, 1-я оч., корп. 1, строение 1.1 | E112: 2.948933501 | F112: 30908.6 | H112: 26118.34 | I112: 0 | J112: 19083.64 | K112: 0 | L112: <01.01.2019 | M112: 44377 | N112: <01.01.2019 | O112: 2021-09-30 | Q112: 0.1492656898 | R112: 1235616.724 | U112: 1093181.027 | V112: 57283.67476 | W112: 162998.9702 | X112: паркинг отсутствует | AA112: =Table17[[#This Row],[ Рыночная стоимость, тыс. руб. ]]*1000/Table17[[#This Row],[ Не продано площади, доля ПИК, кв.м. ]] ->  | AB112: 15623056.76 | AD112: 818.6623078
A113: . | B113: г. Москва, Мякинино, 4-я оч., корпус 4, торгово-офисный комплекс с подземным паркингом на 280 м/м | E113: 7.717701851 | F113: 80891.4 | G113: 280 | H113: 68243.98 | I113: 280 | J113: 68243.98 | K113: 280 | L113: 44105 | M113: 45016 | N113: 44105 | O113: 2023-09-30 | Q113: 0.1352656898 | R113: 3952883.156 | U113: 3952883.156 | V113: 57922.81101 | W113: 93702.69639 | X113: 812.4538317 | AA113: =Table17[[#This Row],[ Рыночная стоимость, тыс. руб. ]]*1000/Table17[[#This Row],[ Не продано площади, доля ПИК, кв.м. ]] ->  | AB113: -10761884.33 | AD113: -157.6971966
A114: . | B114: г. Москва, Мякинино, 1-я оч., корп. 6, торговый комплекс с надземным паркингом на 615 м/м | E114: 0.1144898249 | F114: 1200 | G114: 415 | H114: 1200 | I114: 415 | J114: 1200 | K114: 415 | L114: 43831 | M114: NA | N114: 43831 | O114: 2021-09-30 | Q114: 0.1292656898 | R114: 251308.7186 | U114: 251308.7186 | V114: 209423.9322 | W114: 64000 | X114: 294 | AA114: =Table17[[#This Row],[ Рыночная стоимость, тыс. руб. ]]*1000/Table17[[#This Row],[ Не продано площади, доля ПИК, кв.м. ]] ->  | AB114: -2985507.929 | AD114: -2487.923274
A115: . | B115: г. Москва, Мякинино, 4-я оч., корп. 5, торгово-офисный комплекс с подземным паркингом на 320м/м | E115: 3.819953007 | F115: 40038 | G115: 320 | H115: 31398.05 | I115: 320 | J115: 31398.05 | K115: 320 | L115: 44105 | M115: NA | N115: 44105 | O115: 2023-09-30 | Q115: 0.1352656898 | R115: 1748840.095 | U115: 1748840.095 | V115: 55699.00344 | W115: 85809.0086 | X115: 777 | AA115: =Table17[[#This Row],[ Рыночная стоимость, тыс. руб. ]]*1000/Table17[[#This Row],[ Не продано площади, доля ПИК, кв.м. ]] ->  | AB115: 1022302.335 | AD115: 32.55942121
A116: . | B116: г. Москва, Мякинино, 3-я оч., корп. 3, подземный паркинг 3.3 | E116: 0 | F116: 0 | G116: 281 | H116: 0 | I116: 281 | J116: 0 | K116: 281 | L116: 43831 | M116: NA | N116: <01.01.2019 | O116: 2022-03-31 | Q116: 0.1267656898 | R116: 290009.7419 | U116: 287684.5119 | V116: 0 | W116: 0 | X116: 781.9999903 | AA116: =Table17[[#This Row],[ Рыночная стоимость, тыс. руб. ]]*1000/Table17[[#This Row],[ Не продано площади, доля ПИК, кв.м. ]] ->  | AB116: -1279022.458 | AD116: 0
A117: . | B117: г. Москва, Мякинино, 2-я оч., корп. 2, подземный паркинг 2.3 | E117: 0 | F117: 0 | G117: 281 | H117: 0 | I117: 281 | J117: 0 | K117: 281 | L117: 43466 | M117: NA | N117: <01.01.2019 | O117: 2021-09-30 | Q117: 0.1267656898 | R117: 289711.2927 | U117: 287421.1627 | V117: 0 | W117: 0 | X117: 783.7790667 | AA117: =Table17[[#This Row],[ Рыночная стоимость, тыс. руб. ]]*1000/Table17[[#This Row],[ Не продано площади, доля ПИК, кв.м. ]] ->  | AB117: -1407298.762 | AD117: 0
A118: . | B118: г. Москва, Мякинино, 1-я оч., корп. 1, подземный паркинг 1.3 | E118: 0 | F118: 0 | G118: 284 | H118: 0 | I118: 284 | J118: 0 | K118: 284 | L118: 43466 | M118: NA | N118: <01.01.2019 | O118: 2021-09-30 | Q118: 0.1492656898 | R118: 293061.5693 | U118: 288099.5593 | V118: 0 | W118: 0 | X118: 758.7708328 | AA118: =Table17[[#This Row],[ Рыночная стоимость, тыс. руб. ]]*1000/Table17[[#This Row],[ Не продано площади, доля ПИК, кв.м. ]] ->  | AB118: -1110433.546 | AD118: 0
B119: г. Москва, Пресненский Вал, вл. 21 | C119: Пресненский вал 21 | D119: 1 | E119: 0.1596 | F119: 14343.9 | G119: 60 | H119: 14343.9 | I119: 60 | J119: 2117.3 | K119: 15 | L119: <01.01.2019 | M119: 43738 | N119: <01.01.2019 | O119: 2019-03-31 | Q119: 0.1221656898 | R119: 2520884.538 | U119: 408964.8554 | V119: 193153.9486 | W119: 294766.7628 | X119: 2500000 | Y119: 0 | Z119: 318531.8205 | AA119: =Table17[[#This Row],[ Рыночная стоимость, тыс. руб. ]]*1000/Table17[[#This Row],[ Не продано площади, доля ПИК, кв.м. ]] -> 150442.46 | AD119: 0
A120: . | B120: г. Москва, Пресненский Вал, вл. 21 | E120: 0.1596 | F120: 14343.9 | G120: 60 | H120: 14343.9 | I120: 60 | J120: 2117.3 | K120: 15 | L120: <01.01.2019 | M120: 43738 | N120: <01.01.2019 | O120: 2019-03-31 | Q120: 0.1221656898 | R120: 2520884.538 | U120: 408964.8554 | V120: 193153.9486 | W120: 294766.7628 | X120: 2500 | Z120: 318531.8205 | AA120: =Table17[[#This Row],[ Рыночная стоимость, тыс. руб. ]]*1000/Table17[[#This Row],[ Не продано площади, доля ПИК, кв.м. ]] -> 150442.46 | AB120: 5530047.127 | AD120: 2611.839195
B121: г. Москва, р-н Кунцево, кв. 7, 20 | C121: Vander Park, Академика Павлова, Молодогвардейская 36, Павлова 40 | D121: 15 | E121: 21.6533 | F121: 376050.2899 | G121: 2571 | H121: 269347.2899 | I121: 2314 | J121: 85149.02 | K121: 1416 | L121: <01.01.2019 | M121: 44377 | N121: <01.01.2019 | O121: 2021-12-31 | Q121: 0.1365701008 | R121: 34408198.94 | U121: 9845604.304 | V121: 115627.9227 | W121: 252106.7156 | X121: 1349830.508 | Y121: 0 | Z121: 10431430 | AA121: =Table17[[#This Row],[ Рыночная стоимость, тыс. руб. ]]*1000/Table17[[#This Row],[ Не продано площади, доля ПИК, кв.м. ]] -> 122507.9279 | AD121: 0
A122: . | B122: г. Москва, р-н Кунцево, ул. Партизанская, вл. 24 (кв. 18, корп. 9) | E122: 0.982421642 | F122: 17061.6 | H122: 457.6 | I122: 0 | J122: 280.2 | K122: 0 | L122: 43466 | M122: NA | N122: <01.01.2019 | O122: 2018-12-31 | Q122: 0.1188656898 | R122: 844174.1608 | U122: 0 | V122: 0 | W122: 150000 | X122: паркинг отсутствует | AA122: =Table17[[#This Row],[ Рыночная стоимость, тыс. руб. ]]*1000/Table17[[#This Row],[ Не продано площади, доля ПИК, кв.м. ]] ->  | AB122: 641284.6392 | AD122: 2288.66752
A123: . | B123: г. Москва, р-н Кунцево, ул. Ярцевская, вл. 27, корп. 5 (кв. 7, корп. 12) | E123: 0.7289103791 | F123: 12658.9 | H123: 276.06 | I123: 0 | J123: 276.06 | K123: 0 | L123: 43556 | M123: NA | N123: <01.01.2019 | O123: 2020-12-31 | Q123: 0.1462656898 | R123: 796658.0435 | U123: 673614.6363 | V123: 2440102.283 | W123: 150000 | X123: паркинг отсутствует | AA123: =Table17[[#This Row],[ Рыночная стоимость, тыс. руб. ]]*1000/Table17[[#This Row],[ Не продано площади, доля ПИК, кв.м. ]] ->  | AB123: -10080496.78 | AD123: -36515.60088
A124: . | B124: г. Москва, р-н Кунцево, ул. Ельнинская, вл. 14Б (кв. 20, корп. 22) | E124: 1.323380961 | F124: 22983 | H124: 12350.2 | I124: 0 | J124: 722.2 | K124: 0 | L124: 43466 | M124: 43555 | N124: <01.01.2019 | O124: 2019-03-31 | Q124: 0.1221656898 | R124: 1167675.877 | U124: 26081.35334 | V124: 36113.75428 | W124: 155349.7646 | X124: паркинг отсутствует | AA124: =Table17[[#This Row],[ Рыночная стоимость, тыс. руб. ]]*1000/Table17[[#This Row],[ Не продано площади, доля ПИК, кв.м. ]] ->  | AB124: 1466767.002 | AD124: 2030.970648
A125: . | B125: г. Москва, р-н Кунцево, ул. Ярцевская, вл. 24 (кв. 18, корп. 2Б) | E125: 0.7417451533 | F125: 12881.8 | H125: 12881.8 | I125: 0 | J125: 0 | K125: 0 | L125: <01.01.2019 | M125: 43465 | N125: <01.01.2019 | O125: 2019-03-31 | Q125: 0.1171656898 | R125: 698349.8466 | U125: 20870.18245 | V125: 0 | W125: 0 | X125: паркинг отсутствует | AA125: =Table17[[#This Row],[ Рыночная стоимость, тыс. руб. ]]*1000/Table17[[#This Row],[ Не продано площади, доля ПИК, кв.м. ]] ->  | AB125: 121972.2525 | AD125: 0
A126: . | B126: г. Москва, р-н Кунцево, Рублевское шоссе, вл. 101, 105 (кв. 20, корп. 28Б, 38) | E126: 4.590789148 | F126: 79727.69 | G126: 967 | H126: 77462.69 | I126: 876 | J126: 17669.62 | K126: 402 | L126: <01.01.2019 | M126: 43738 | N126: <01.01.2019 | O126: 2019-06-30 | Q126: 0.1371656898 | R126: 9856566.872 | U126: 1002870.239 | V126: 56756.75191 | W126: 309741.0718 | X126: 1975.434978 | AA126: =Table17[[#This Row],[ Рыночная стоимость, тыс. руб. ]]*1000/Table17[[#This Row],[ Не продано площади, доля ПИК, кв.м. ]] ->  | AB126: 74983602.03 | AD126: 4243.645422
A127: . | B127: г. Москва, р-н Кунцево, Рублевское шоссе, вл. 107, (кв. 7, корп. 18) | E127: 1.816877736 | F127: 31553.4999 | G127: 471 | H127: 31360.1999 | I127: 424 | J127: 0 | K127: 0 | M127: <01.01.2019 | N127: <01.01.2019 | O127: 2019-03-31 | Q127: 0.1271656898 | R127: 3872907.184 | U127: 4570.169492 | V127: 0 | W127: 0 | AA127: =Table17[[#This Row],[ Рыночная стоимость, тыс. руб. ]]*1000/Table17[[#This Row],[ Не продано площади, доля ПИК, кв.м. ]] ->  | AB127: -186329.5567 | AD127: 0
A128: . | B128: г. Москва, р-н Кунцево, ул. Ярцевская, вл.31, корп. 4, (кв. 7, к. 15) | E128: 0.7244824108 | F128: 12582 | H128: 0 | I128: 0 | J128: 0 | K128: 0 | M128: NA | N128: <01.01.2019 | O128: 2019-03-31 | Q128: 0.1221656898 | R128: 736525.1654 | U128: 10390.32389 | V128: 0 | W128: 0 | X128: паркинг отсутствует | AA128: =Table17[[#This Row],[ Рыночная стоимость, тыс. руб. ]]*1000/Table17[[#This Row],[ Не продано площади, доля ПИК, кв.м. ]] ->  | AB128: -398697.5996 | AD128: 0
A129: . | B129: г. Москва, р-н Кунцево, ул. Ярцевская, вл.31, корп. 5, (кв. 7, к. 10) | E129: 0.7902570299 | F129: 13724.3 | H129: 148.9 | I129: 0 | J129: 148.9 | K129: 0 | L129: 43466 | M129: NA | N129: <01.01.2019 | O129: 2019-03-31 | Q129: 0.1221656898 | R129: 807896.0652 | U129: 19422.69975 | V129: 130441.2341 | W129: 150000 | X129: паркинг отсутствует | AA129: =Table17[[#This Row],[ Рыночная стоимость, тыс. руб. ]]*1000/Table17[[#This Row],[ Не продано площади, доля ПИК, кв.м. ]] ->  | AB129: -136705.7013 | AD129: -918.1041056
A130: . | B130: г. Москва, р-н Кунцево, ул. Ак. Павлова, д. 28, 30, 32, 34, кв. 7 | E130: 3.72646643 | F130: 64717.1 | G130: 640 | H130: 62477.4 | I130: 640 | J130: 16445.3 | K130: 640 | L130: <01.01.2019 | M130: 44104 | N130: <01.01.2019 | O130: 2021-12-31 | Q130: 0.1492656898 | R130: 4851798.371 | U130: 3652099.948 | V130: 222075.6051 | W130: 310052.5547 | X130: 1100 | AA130: =Table17[[#This Row],[ Рыночная стоимость, тыс. руб. ]]*1000/Table17[[#This Row],[ Не продано площади, доля ПИК, кв.м. ]] ->  | AB130: 26420560.27 | AD130: 1606.572107
A131: . | B131: г. Москва, р-н Кунцево, ул. Е.Будановой, вл.16, корп.4 | E131: 0.03202071758 | F131: 556.1 | H131: 556.1 | I131: 0 | J131: 0 | K131: 0 | M131: NA | N131: <01.01.2019 | O131: 2018-09-30 | Q131: 0.1138656898 | R131: 10839.02601 | U131: 0 | V131: 0 | W131: 0 | X131: паркинг отсутствует | AA131: =Table17[[#This Row],[ Рыночная стоимость, тыс. руб. ]]*1000/Table17[[#This Row],[ Не продано площади, доля ПИК, кв.м. ]] ->  | AB131: -349.0759466 | AD131: 0
A132: . | B132: г. Москва, р-н Кунцево, ул. Ярцевская, вл. 26 (кв. 18, корп. 1) | E132: 1.91331417 | F132: 33228.3 | H132: 14298.9 | I132: 0 | J132: -6.821210263e-13 | K132: 0 | M132: <01.01.2019 | N132: <01.01.2019 | O132: 2019-03-31 | Q132: 0.1221656898 | R132: 1809316.987 | U132: 54934.96465 | V132: -8.053550988e+19 | W132: 0 | X132: паркинг отсутствует | AA132: =Table17[[#This Row],[ Рыночная стоимость, тыс. руб. ]]*1000/Table17[[#This Row],[ Не продано площади, доля ПИК, кв.м. ]] ->  | AB132: -482039.3226 | AD132: 7.066771204e+17
A133: . | B133: г. Москва, р-н Кунцево, ул. Ярцевская, вл. 31, корп. 2 (кв. 7, корп. 16) | E133: 0.4486988703 | F133: 7792.5 | H133: 248.52 | I133: 0 | J133: 248.52 | K133: 0 | L133: 43556 | M133: NA | N133: <01.01.2019 | O133: 2020-12-31 | Q133: 0.1462656898 | R133: 560431.9248 | U133: 478720.2498 | V133: 1926284.604 | W133: 150000 | X133: паркинг отсутствует | AA133: =Table17[[#This Row],[ Рыночная стоимость, тыс. руб. ]]*1000/Table17[[#This Row],[ Не продано площади, доля ПИК, кв.м. ]] ->  | AB133: -6741323.351 | AD133: -27125.8786
A134: . | B134: г. Москва, р-н Кунцево, ул. Молодогвардейская, вл. 36Б (кв. 18, корп. 5Б) | E134: 1.995389932 | F134: 34653.7 | G134: 260 | H134: 34056.02 | I134: 234 | J134: 33427.62 | K134: 234 | L134: 43466 | M134: 44377 | N134: <01.01.2019 | O134: 2021-09-30 | Q134: 0.1267656898 | R134: 2295071.34 | U134: 2223084.712 | V134: 66504.42693 | W134: 200270.6986 | X134: 1100 | AA134: =Table17[[#This Row],[ Рыночная стоимость, тыс. руб. ]]*1000/Table17[[#This Row],[ Не продано площади, доля ПИК, кв.м. ]] ->  | AB134: 59385254.22 | AD134: 1776.532527
A135: . | B135: г. Москва, р-н Кунцево, ул. Ак.Павлова, д. 40, к. 1, кв. 7 | E135: 1.309624893 | F135: 22744.1 | G135: 233 | H135: 22694.1 | I135: 140 | J135: 15851.8 | K135: 140 | L135: <01.01.2019 | M135: 44104 | N135: <01.01.2019 | O135: 2021-12-31 | Q135: 0.1442656898 | R135: 1893488.263 | U135: 1640305.67 | V135: 103477.5653 | W135: 246377.1256 | X135: 1100 | AA135: =Table17[[#This Row],[ Рыночная стоимость, тыс. руб. ]]*1000/Table17[[#This Row],[ Не продано площади, доля ПИК, кв.м. ]] ->  | AB135: 36569299.64 | AD135: 2306.949346
A136: . | B136: г. Москва, р-н Кунцево, ул. Ельнинская, вл. 14А (кв. 20, корп. 21) | E136: 0.5289205278 | F136: 9185.7 | H136: 78.8 | I136: 0 | J136: 78.8 | K136: 0 | L136: 43466 | M136: NA | N136: <01.01.2019 | O136: 2019-03-31 | Q136: 0.1221656898 | R136: 602374.2085 | U136: 56196.81736 | V136: 713157.5807 | W136: 150000 | X136: паркинг отсутствует | AA136: =Table17[[#This Row],[ Рыночная стоимость, тыс. руб. ]]*1000/Table17[[#This Row],[ Не продано площади, доля ПИК, кв.м. ]] ->  | AB136: -712305.1164 | AD136: -9039.40503
B137: г. Москва, Северный | C137: Северный | D137: 9 | E137: 201.93 | F137: 129790.12 | G137: 660 | H137: 77067.62 | I137: 632 | J137: 1334.09 | K137: 451 | L137: <01.01.2019 | M137: 43555 | N137: <01.01.2019 | O137: 2019-12-31 | Q137: 0.1500818866 | R137: 6882112.796 | U137: 618450.4835 | V137: 463574.7839 | W137: 195078.3101 | X137: 598243.5461 | Y137: 0 | Z137: 199223.1601 | AA137: =Table17[[#This Row],[ Рыночная стоимость, тыс. руб. ]]*1000/Table17[[#This Row],[ Не продано площади, доля ПИК, кв.м. ]] -> 149332.6238 | AD137: 0
A138: . | B138: г. Москва, Северный, 1-я очередь, корп. 6 | E138: 13.18760841 | F138: 8476.31 | H138: 8410.82 | I138: 0 | J138: 75.71 | K138: 0 | L138: <01.01.2019 | M138: 43555 | N138: <01.01.2019 | O138: 2019-03-31 | Q138: 0.1397767347 | R138: 570860.1137 | U138: 41119.89195 | V138: 543123.6554 | W138: 144928.1638 | X138: паркинг отсутствует | AA138: =Table17[[#This Row],[ Рыночная стоимость, тыс. руб. ]]*1000/Table17[[#This Row],[ Не продано площади, доля ПИК, кв.м. ]] ->  | AB138: 107207.2644 | AD138: 1416.025153
A139: . | B139: г. Москва, Северный, 1-я очередь, корп. 5 | E139: 16.64873115 | F139: 10700.94 | H139: 10657.08 | I139: 0 | J139: 0 | K139: 0 | L139: <01.01.2019 | M139: 43465 | N139: <01.01.2019 | O139: 2019-03-31 | Q139: 0.1347767347 | R139: 628121.3808 | U139: 54063.17093 | V139: 0 | W139: 0 | X139: паркинг отсутствует | AA139: =Table17[[#This Row],[ Рыночная стоимость, тыс. руб. ]]*1000/Table17[[#This Row],[ Не продано площади, доля ПИК, кв.м. ]] ->  | AB139: 1045125.443 | AD139: 0
A140: . | B140: г. Москва, Северный, 1-я очередь, корп. 2 | E140: 21.77859478 | F140: 13998.15 | H140: 13887.72 | I140: 0 | J140: -1.136868377e-12 | K140: 0 | L140: <01.01.2019 | M140: 43465 | N140: <01.01.2019 | O140: 2019-03-31 | Q140: 0.1397767347 | R140: 891355.9156 | U140: 9642.653451 | V140: -8.481767673e+18 | W140: -3.371631956e+19 | X140: паркинг отсутствует | AA140: =Table17[[#This Row],[ Рыночная стоимость, тыс. руб. ]]*1000/Table17[[#This Row],[ Не продано площади, доля ПИК, кв.м. ]] ->  | AB140: -413732.0646 | AD140: 3.639225727e+17
A141: . | B141: г. Москва, Северный, 1-я очередь, корп. 1 | E141: 19.74694344 | F141: 12692.31 | H141: 12692.31 | I141: 0 | J141: 0 | K141: 0 | L141: <01.01.2019 | M141: 43465 | N141: <01.01.2019 | O141: 2019-03-31 | Q141: 0.1347767347 | R141: 734057.4806 | U141: 42843.86174 | V141: 0 | W141: 0 | X141: паркинг отсутствует | AA141: =Table17[[#This Row],[ Рыночная стоимость, тыс. руб. ]]*1000/Table17[[#This Row],[ Не продано площади, доля ПИК, кв.м. ]] ->  | AB141: 1110858.002 | AD141: 0
A142: . | B142: г. Москва, Северный, 3-я очередь, корп. 10 | E142: 26.90013477 | F142: 17290.01 | H142: 17290.01 | I142: 0 | J142: 801.6 | K142: 0 | L142: <01.01.2019 | M142: <01.01.2019 | N142: <01.01.2019 | O142: 2019-03-31 | Q142: 0.1547767347 | R142: 909937.7303 | U142: 141294.9926 | V142: 176266.2083 | W142: 157814.0344 | X142: паркинг отсутствует | AA142: =Table17[[#This Row],[ Рыночная стоимость, тыс. руб. ]]*1000/Table17[[#This Row],[ Не продано площади, доля ПИК, кв.м. ]] ->  | AB142: -1150167.968 | AD142: -1434.840279
A143: . | B143: г. Москва, Северный, 3-я очередь, корп. 9 | E143: 29.0689316 | F143: 18684 | H143: 11297.4 | I143: 0 | J143: 86.2 | K143: 0 | L143: <01.01.2019 | M143: <01.01.2019 | N143: <01.01.2019 | O143: 2019-03-31 | Q143: 0.1597767347 | R143: 851628.4635 | U143: 89860.81724 | V143: 1042468.877 | W143: 461421.1137 | X143: паркинг отсутствует | AA143: =Table17[[#This Row],[ Рыночная стоимость, тыс. руб. ]]*1000/Table17[[#This Row],[ Не продано площади, доля ПИК, кв.м. ]] ->  | AB143: -1031535.796 | AD143: -11966.77258
A144: . | B144: г. Москва, Северный, 2-я очередь, корп. 8 | E144: 42.58838075 | F144: 27373.6 | H144: 1704.09 | I144: 0 | J144: 109.39 | K144: 0 | L144: 43466 | M144: <01.01.2019 | N144: <01.01.2019 | O144: 2019-03-31 | Q144: 0.1397767347 | R144: 191630.9061 | U144: 308.1886068 | V144: 2817.338027 | W144: 88000 | X144: паркинг отсутствует | AA144: =Table17[[#This Row],[ Рыночная стоимость, тыс. руб. ]]*1000/Table17[[#This Row],[ Не продано площади, доля ПИК, кв.м. ]] ->  | AB144: 196567.0564 | AD144: 1796.938079
A145: . | B145: г. Москва, Северный, 2-я очередь, корп. 7 | E145: 32.01067511 | F145: 20574.8 | H145: 1128.19 | I145: 0 | J145: 261.19 | K145: 0 | L145: 43466 | M145: <01.01.2019 | N145: <01.01.2019 | O145: 2019-03-31 | Q145: 0.1397767347 | R145: 103946.9916 | U145: 440.7923695 | V145: 1687.63111 | W145: 82000 | X145: паркинг отсутствует | AA145: =Table17[[#This Row],[ Рыночная стоимость, тыс. руб. ]]*1000/Table17[[#This Row],[ Не продано площади, доля ПИК, кв.м. ]] ->  | AB145: 313000.134 | AD145: 1198.361859
A146: . | B146: г. Москва, Северный, 1-я очередь, подземная парковка | E146: 0 | F146: 0 | G146: 660 | H146: 0 | I146: 632 | J146: 0 | K146: 451 | L146: <01.01.2019 | M146: NA | N146: <01.01.2019 | O146: 2019-03-31 | Q146: 0.1121656898 | R146: 691372.9652 | U146: 52558.46589 | V146: 0 | W146: 0 | X146: 594.312032 | AA146: =Table17[[#This Row],[ Рыночная стоимость, тыс. руб. ]]*1000/Table17[[#This Row],[ Не продано площади, доля ПИК, кв.м. ]] ->  | AB146: 3281401.338 | AD146: 0
B147: г. Москва, Марьина роща, Складочная улица, вл.6 | C147: Шереметьевский | D147: 11 | E147: 12.8515 | F147: 202765.99 | G147: 1466 | H147: 183954.68 | I147: 1466 | J147: 156979.46 | K147: 1466 | L147: <01.01.2019 | M147: 44926 | N147: <01.01.2019 | O147: 2023-12-31 | Q147: 0.131863503 | R147: 19333777.81 | U147: 18912071.9 | V147: 120474.8182 | W147: 176120.719 | X147: 724743.2081 | Y147: 0 | Z147: 8881604.466 | AA147: =Table17[[#This Row],[ Рыночная стоимость, тыс. руб. ]]*1000/Table17[[#This Row],[ Не продано площади, доля ПИК, кв.м. ]] -> 56578.13109 | AD147: 0
A148: . | B148: г. Москва, Марьина роща, ул. Складочная, вл. 6, Этап 3, корп. 5 | E148: 0.3566749987 | F148: 5627.48 | H148: 5627.48 | I148: 0 | J148: 5475.22 | K148: 0 | L148: 43466 | M148: 44286 | N148: 43374 | O148: 2021-03-31 | Q148: 0.1292656898 | R148: 234315.5628 | U148: 234213.9881 | V148: 42777.09171 | W148: 185587.2312 | X148: паркинг отсутствует | AA148: =Table17[[#This Row],[ Рыночная стоимость, тыс. руб. ]]*1000/Table17[[#This Row],[ Не продано площади, доля ПИК, кв.м. ]] ->  | AB148: 5733493.25 | AD148: 1047.171301
A149: . | B149: г. Москва, Марьина роща, ул. Складочная, вл. 6, Этап 3, корп. 4 | E149: 0.3583552275 | F149: 5653.99 | H149: 5653.99 | I149: 0 | J149: 4657.92 | K149: 0 | L149: <01.01.2019 | M149: 44196 | N149: 43374 | O149: 2020-12-31 | Q149: 0.1212656898 | R149: 235842.9652 | U149: 234748.8247 | V149: 50397.77942 | W149: 214144.1401 | X149: паркинг отсутствует | AA149: =Table17[[#This Row],[ Рыночная стоимость, тыс. руб. ]]*1000/Table17[[#This Row],[ Не продано площади, доля ПИК, кв.м. ]] ->  | AB149: 6881406.043 | AD149: 1477.355996
A150: . | B150: г. Москва, Марьина роща, ул. Складочная, вл. 6, Этап 3, корп. 3 | E150: 0.4811228498 | F150: 7590.97 | H150: 7590.97 | I150: 0 | J150: 6592.17 | K150: 0 | L150: <01.01.2019 | M150: 44196 | N150: 43374 | O150: 2020-12-31 | Q150: 0.1212656898 | R150: 311657.9402 | U150: 310845.8907 | V150: 47153.80379 | W150: 199694.9779 | X150: паркинг отсутствует | AA150: =Table17[[#This Row],[ Рыночная стоимость, тыс. руб. ]]*1000/Table17[[#This Row],[ Не продано площади, доля ПИК, кв.м. ]] ->  | AB150: 6769261.376 | AD150: 1026.863897
A151: . | B151: г. Москва, Марьина роща, ул. Складочная, вл. 6, Этап 3, корп. 6 | E151: 0.7443718008 | F151: 11744.41 | H151: 11744.41 | I151: 0 | J151: 11417.97 | K151: 0 | L151: 43466 | M151: 44286 | N151: 43374 | O151: 2021-03-31 | Q151: 0.1292656898 | R151: 488876.9004 | U151: 488769.5259 | V151: 42807.0424 | W151: 185506.402 | X151: паркинг отсутствует | AA151: =Table17[[#This Row],[ Рыночная стоимость, тыс. руб. ]]*1000/Table17[[#This Row],[ Не продано площади, доля ПИК, кв.м. ]] ->  | AB151: 11175860.91 | AD151: 978.7957854
A152: . | B152: г. Москва, Марьина роща, ул. Складочная, вл. 6, Этап 4, корп. 2 | E152: 0.4471145363 | F152: 7054.4 | H152: 7054.4 | I152: 0 | J152: 3726.03 | K152: 0 | L152: <01.01.2019 | M152: 43921 | N152: 43374 | O152: 2020-06-30 | Q152: 0.1412656898 | R152: 308478.0861 | U152: 263228.6934 | V152: 70645.88674 | W152: 251084.9617 | X152: паркинг отсутствует | AA152: =Table17[[#This Row],[ Рыночная стоимость, тыс. руб. ]]*1000/Table17[[#This Row],[ Не продано площади, доля ПИК, кв.м. ]] ->  | AB152: -654383.2846 | AD152: -175.624803
A153: . | B153: г. Москва, Марьина роща, Складочная улица, вл.6, Технопарк с подзем. паркингом | E153: 2.490871127 | F153: 39300 | G153: 190 | H153: 39300 | I153: 190 | J153: 39300 | K153: 190 | L153: 44287 | M153: NA | N153: 44287 | O153: 2023-12-31 | Q153: 0.1377656898 | R153: 3218534.859 | U153: 3218534.859 | V153: 81896.56131 | W153: 90000 | X153: 718.9254211 | AA153: =Table17[[#This Row],[ Рыночная стоимость, тыс. руб. ]]*1000/Table17[[#This Row],[ Не продано площади, доля ПИК, кв.м. ]] ->  | AB153: 3878076.615 | AD153: 98.67879427
A154: . | B154: г. Москва, Марьина роща, Складочная улица, вл.6, СОШ | E154: 0.7732475254 | F154: 12200 | H154: 0 | I154: 0 | J154: 0 | K154: 0 | M154: NA | N154: <01.01.2019 | O154: 2022-12-31 | Q154: 0.1367656898 | R154: 549609.1568 | U154: 549601.1568 | V154: 0 | W154: 0 | X154: паркинг отсутствует | AA154: =Table17[[#This Row],[ Рыночная стоимость, тыс. руб. ]]*1000/Table17[[#This Row],[ Не продано площади, доля ПИК, кв.м. ]] ->  | AB154: -7369716.495 | AD154: 0
A155: . | B155: г. Москва, Марьина роща, Складочная улица, вл.6, Поликлиника | E155: 0.1901428341 | F155: 3000 | H155: 0 | I155: 0 | J155: 0 | K155: 0 | M155: NA | N155: <01.01.2019 | O155: 2022-12-31 | Q155: 0.1367656898 | R155: 172143.8102 | U155: 172135.8102 | V155: 0 | W155: 0 | X155: паркинг отсутствует | AA155: =Table17[[#This Row],[ Рыночная стоимость, тыс. руб. ]]*1000/Table17[[#This Row],[ Не продано площади, доля ПИК, кв.м. ]] ->  | AB155: -2308203.835 | AD155: 0
A156: . | B156: г. Москва, Марьина роща, ул. Складочная, вл. 6, Этап 2 (корп. 11, 12, 13, 14, 15) с паркингом и ДОО | E156: 2.555005671 | F156: 40311.89 | G156: 590 | H156: 39251.14 | I156: 590 | J156: 35693.54 | K156: 590 | L156: 43739 | M156: 44561 | N156: <01.01.2019 | O156: 2021-12-31 | Q156: 0.1317656898 | R156: 2400674.276 | U156: 2400602.56 | V156: 67255.93931 | W156: 191690.1791 | X156: 718.6419492 | AA156: =Table17[[#This Row],[ Рыночная стоимость, тыс. руб. ]]*1000/Table17[[#This Row],[ Не продано площади, доля ПИК, кв.м. ]] ->  | AB156: 55126731.01 | AD156: 1544.445606
A157: . | B157: г. Москва, Марьина роща, ул. Складочная, вл. 6, Этап 1 (корп. 8, 9, 10) с паркингом и ДОО на 90 м. | E157: 2.115911359 | F157: 33384.03 | G157: 216 | H157: 32094.67 | I157: 216 | J157: 31019.87 | K157: 216 | L157: 44105 | M157: 44926 | N157: <01.01.2019 | O157: 2022-12-31 | Q157: 0.1317656898 | R157: 1670987.176 | U157: 1670915.724 | V157: 53865.98087 | W157: 182707.0708 | X157: 703.4679922 | AA157: =Table17[[#This Row],[ Рыночная стоимость, тыс. руб. ]]*1000/Table17[[#This Row],[ Не продано площади, доля ПИК, кв.м. ]] ->  | AB157: 47152088.45 | AD157: 1520.060801
A158: . | B158: г. Москва, Марьина роща, ул. Складочная, вл. 6, Этап 4, корп. 1, 7 с паркингом и ДОО на 90 мест | E158: 2.33868207 | F158: 36898.82 | G158: 470 | H158: 35637.62 | I158: 470 | J158: 19096.74 | K158: 470 | L158: <01.01.2019 | M158: 44286 | N158: <01.01.2019 | O158: 2021-06-30 | Q158: 0.1267656898 | R158: 2102523.564 | U158: 2068921.409 | V158: 108338.984 | W158: 273188.3887 | X158: 744.5316527 | AA158: =Table17[[#This Row],[ Рыночная стоимость, тыс. руб. ]]*1000/Table17[[#This Row],[ Не продано площади, доля ПИК, кв.м. ]] ->  | AB158: 11969829.51 | AD158: 626.7996272
B159: г. Москва, ул. Вавилова, вл. 4 | C159: Вавилова 4 | D159: 1 | E159: 1.626 | F159: 35476 | G159: 370 | H159: 35476 | I159: 370 | J159: 4156.15 | K159: 131 | L159: <01.01.2019 | M159: 43738 | N159: <01.01.2019 | O159: 2019-12-31 | Q159: 0.1221656898 | R159: 6423491.153 | U159: 647613.1152 | V159: 155820.4384 | W159: 413354.6672 | X159: 2500000 | Y159: 0 | Z159: 1279603.159 | AA159: =Table17[[#This Row],[ Рыночная стоимость, тыс. руб. ]]*1000/Table17[[#This Row],[ Не продано площади, доля ПИК, кв.м. ]] -> 307881.8519 | AD159: 0
A160: . | B160: г. Москва, ул. Вавилова, вл. 4 | E160: 1.626 | F160: 35476 | G160: 370 | H160: 35476 | I160: 370 | J160: 4156.15 | K160: 131 | L160: <01.01.2019 | M160: 43738 | N160: <01.01.2019 | O160: 2019-12-31 | Q160: 0.1221656898 | R160: 6423491.153 | U160: 647613.1152 | V160: 155820.4384 | W160: 413354.6672 | X160: 2508.774194 | Z160: 1279603.159 | AA160: =Table17[[#This Row],[ Рыночная стоимость, тыс. руб. ]]*1000/Table17[[#This Row],[ Не продано площади, доля ПИК, кв.м. ]] -> 307881.8519 | AB160: 22215255.48 | AD160: 5345.152481
B161: г. Москва, ул. Заречная, вл. 2/1 (Западный речной порт) | C161: Западный порт | D161: 6 | E161: 10.6559 | F161: 218405.6 | G161: 1724 | H161: 218405.6 | I161: 1724 | J161: 208147.6 | K161: 1724 | L161: 01.01.2019 | M161: 45565 | N161: <01.01.2019 | O161: 2024-12-31 | Q161: 0.1291269531 | R161: 25660404.1 | U161: 18586504.91 | V161: 113230.4396 | W161: 233866.6616 | X161: паркинг отсутствует | Y161: 0 | Z161: 16916827.85 | AA161: =Table17[[#This Row],[ Рыночная стоимость, тыс. руб. ]]*1000/Table17[[#This Row],[ Не продано площади, доля ПИК, кв.м. ]] -> 81273.23037 | AD161: 0
A162: . | B162: г. Москва, ул. Заречная, вл. 2/1 (Западный речной порт), Блок 5, апартаменты и офисное здание с ФОК | E162: 2.149909313 | F162: 44065 | G162: 150 | H162: 44065 | I162: 150 | J162: 44065 | K162: 150 | L162: 44470 | M162: 45565 | N162: <01.01.2019 | O162: 2024-03-31 | Q162: 0.1302656898 | R162: 3052433.804 | U162: 3051964.794 | V162: 69260.51954 | W162: 170060.5997 | X162: 0 | AA162: =Table17[[#This Row],[ Рыночная стоимость, тыс. руб. ]]*1000/Table17[[#This Row],[ Не продано площади, доля ПИК, кв.м. ]] ->  | AB162: 46188542.95 | AD162: 1048.191148
A163: . | B163: г. Москва, ул. Заречная, вл. 2/1 (Западный речной порт), Блок 2, Этап 2 (секц. 5-12, 14.2, 15-17) | E163: 4.804302055 | F163: 98470 | G163: 623 | H163: 98470 | I163: 623 | J163: 72527.4 | K163: 623 | L163: 43739 | M163: 44926 | N163: <01.01.2019 | O163: 2022-12-31 | Q163: 0.1267656898 | R163: 6616044.707 | U163: 6610504.607 | V163: 91144.92739 | W163: 238705.4468 | X163: 0 | AA163: =Table17[[#This Row],[ Рыночная стоимость, тыс. руб. ]]*1000/Table17[[#This Row],[ Не продано площади, доля ПИК, кв.м. ]] ->  | AB163: 148112720.2 | AD163: 2042.162276
A164: . | B164: г. Москва, ул. Заречная, вл. 2/1 (Западный речной порт), Блок 2, Этап 1 (секц. 1-4, 13, 14.1) | E164: 2.442173054 | F164: 50055.3 | G164: 630 | H164: 50055.3 | I164: 630 | J164: 33364.4 | K164: 630 | L164: 43556 | M164: 44196 | N164: <01.01.2019 | O164: 2021-12-31 | Q164: 0.1267656898 | R164: 3803037.359 | U164: 3741078.29 | V164: 112127.8455 | W164: 262119.0402 | X164: 0 | AA164: =Table17[[#This Row],[ Рыночная стоимость, тыс. руб. ]]*1000/Table17[[#This Row],[ Не продано площади, доля ПИК, кв.м. ]] ->  | AB164: 69366388.67 | AD164: 2079.053982
A165: . | B165: г. Москва, ул. Заречная, вл. 2/1 (Западный речной порт), Блок 1 | E165: 1.151046761 | F165: 23592.1 | G165: 321 | H165: 23592.1 | I165: 321 | J165: 11967.6 | K165: 321 | L165: 43466 | M165: 43921 | N165: <01.01.2019 | O165: 2020-12-31 | Q165: 0.1462656898 | R165: 3131772.817 | U165: 2478494.518 | V165: 207100.3809 | W165: 379090.2904 | X165: 0 | AA165: =Table17[[#This Row],[ Рыночная стоимость, тыс. руб. ]]*1000/Table17[[#This Row],[ Не продано площади, доля ПИК, кв.м. ]] ->  | AB165: 28581885.85 | AD165: 2388.272156
A166: . | B166: г. Москва, ул. Заречная, вл. 2/1 (Западный речной порт), ДОО-2, корп. 19 | E166: 0.05408316064 | F166: 1108.5 | H166: 1108.5 | I166: 0 | J166: 1108.5 | K166: 0 | M166: NA | N166: 43374 | O166: 2021-03-31 | Q166: 0.1267656898 | R166: 84676.43406 | U166: 83708.76656 | V166: 75515.35098 | W166: 135317.9973 | X166: паркинг отсутствует | AA166: =Table17[[#This Row],[ Рыночная стоимость, тыс. руб. ]]*1000/Table17[[#This Row],[ Не продано площади, доля ПИК, кв.м. ]] ->  | AB166: 418235.0114 | AD166: 377.2981609
A167: . | B167: г. Москва, ул. Заречная, вл. 2/1 (Западный речной порт), ДОО-1, корп. 18 | E167: 0.05438565554 | F167: 1114.7 | H167: 1114.7 | I167: 0 | J167: 1114.7 | K167: 0 | M167: NA | N167: 43374 | O167: 2021-03-31 | Q167: 0.1267656898 | R167: 84676.43337 | U167: 83708.72534 | V167: 75095.29501 | W167: 134565.3539 | X167: паркинг отсутствует | AA167: =Table17[[#This Row],[ Рыночная стоимость, тыс. руб. ]]*1000/Table17[[#This Row],[ Не продано площади, доля ПИК, кв.м. ]] ->  | AB167: 724803.4928 | AD167: 650.2229235
B168: г. Москва, ул. Лобненская, 13 | C168: Дмитровский парк | D168: 4 | E168: 8.3776 | F168: 198230.96 | G168: 1724 | H168: 193230.96 | I168: 1724 | J168: 158147.34 | K168: 1309 | L168: 01.01.2019 | M168: 44834 | N168: <01.01.2019 | O168: 2023-12-31 | Q168: 0.1283470265 | R168: 16496134.6 | U168: 14918838.32 | V168: 94335.0569 | W168: 174479.4539 | X168: 712026.7532 | Y168: 0 | Z168: 9524230.223 | AA168: =Table17[[#This Row],[ Рыночная стоимость, тыс. руб. ]]*1000/Table17[[#This Row],[ Не продано площади, доля ПИК, кв.м. ]] -> 60223.77754 | AD168: 0
A169: . | B169: г. Москва, ул. Лобненская, 13, Этап 2 (Блок 2) | E169: 3.529302276 | F169: 83510.43 | G169: 862 | H169: 83510.43 | I169: 862 | J169: 51319.31 | K169: 447 | L169: <01.01.2019 | M169: 44377 | N169: <01.01.2019 | O169: 2021-06-30 | Q169: 0.1292656898 | R169: 5344650.924 | U169: 5259040.338 | V169: 102476.8326 | W169: 211174.6327 | X169: 712.2084339 | AA169: =Table17[[#This Row],[ Рыночная стоимость, тыс. руб. ]]*1000/Table17[[#This Row],[ Не продано площади, доля ПИК, кв.м. ]] ->  | AB169: 55874197.84 | AD169: 1088.755828
A170: . | B170: г. Москва, ул. Лобненская, 13, Этап 3 (корп. 3.1) | E170: 0.8897388196 | F170: 21053.02 | H170: 21053.02 | I170: 0 | J170: 18160.52 | K170: 0 | L170: <01.01.2019 | M170: 44196 | N170: <01.01.2019 | O170: 2020-12-31 | Q170: 0.1212656898 | R170: 1095208.211 | U170: 1043502.264 | V170: 57459.93309 | W170: 173286.7749 | X170: паркинг отсутствует | AA170: =Table17[[#This Row],[ Рыночная стоимость, тыс. руб. ]]*1000/Table17[[#This Row],[ Не продано площади, доля ПИК, кв.м. ]] ->  | AB170: 21096566.99 | AD170: 1161.671967
A171: . | B171: г. Москва, ул. Лобненская, 13, Этап 1 (Блок 1) | E171: 3.747249833 | F171: 88667.51 | G171: 862 | H171: 88667.51 | I171: 862 | J171: 88667.51 | K171: 862 | L171: 43739 | M171: 44834 | N171: <01.01.2019 | O171: 2022-09-30 | Q171: 0.1292656898 | R171: 5534292.172 | U171: 5532060.259 | V171: 62391.06364 | W171: 153485.162 | X171: 711.9325406 | AA171: =Table17[[#This Row],[ Рыночная стоимость, тыс. руб. ]]*1000/Table17[[#This Row],[ Не продано площади, доля ПИК, кв.м. ]] ->  | AB171: 92715452.51 | AD171: 1045.653053
A172: . | B172: г. Москва, ул. Лобненская, 13, Этап 1 (ДОУ на 250 мест) | E172: 0.211309071 | F172: 5000 | H172: 0 | I172: 0 | J172: 0 | K172: 0 | M172: NA | N172: <01.01.2019 | O172: 2022-12-31 | Q172: 0.1317656898 | R172: 225944.4915 | U172: 225794.4915 | V172: 0 | W172: 0 | X172: паркинг отсутствует | AA172: =Table17[[#This Row],[ Рыночная стоимость, тыс. руб. ]]*1000/Table17[[#This Row],[ Не продано площади, доля ПИК, кв.м. ]] ->  | AB172: -3185621.52 | AD172: 0
B173: г. Москва, ул. Мосфильмовская | C173: Мосфильмовская | D173: 1 | E173: 4.666 | F173: 36927.396 | G173: 340 | H173: 16921.166 | I173: 210 | J173: 5682.406 | K173: 133 | L173: <01.01.2019 | M173: 43830 | N173: <01.01.2019 | O173: 2019-12-31 | Q173: 0.1171656898 | R173: 1783007.627 | U173: 15263.76666 | V173: 2686.145035 | W173: 290849.115 | X173: 1650000 | Y173: 0 | Z173: 1254465.968 | AA173: =Table17[[#This Row],[ Рыночная стоимость, тыс. руб. ]]*1000/Table17[[#This Row],[ Не продано площади, доля ПИК, кв.м. ]] -> 220763.171 | AD173: 0
A174: . | B174: г. Москва, ул. Мосфильмовская, многофункциональный комплекс с подземным паркингом | E174: 4.666 | F174: 36927.396 | G174: 340 | H174: 16921.166 | I174: 210 | J174: 5682.406 | K174: 133 | L174: <01.01.2019 | M174: 43830 | N174: <01.01.2019 | O174: 2019-12-31 | Q174: 0.1171656898 | R174: 1783007.627 | U174: 15263.76666 | V174: 2686.145035 | W174: 290849.115 | X174: 1653.726027 | AA174: =Table17[[#This Row],[ Рыночная стоимость, тыс. руб. ]]*1000/Table17[[#This Row],[ Не продано площади, доля ПИК, кв.м. ]] ->  | AB174: 21778847.43 | AD174: 3832.680634
B175: г. Москва, ул. Поляны, ЖК Столичные поляны | C175: Столичные поляны | D175: 5 | E175: 14.634 | F175: 251022.8959 | G175: 1430 | H175: 173856.7459 | I175: 724 | J175: 102088.95 | K175: 599 | L175: <01.01.2019 | M175: 44561 | N175: <01.01.2019 | O175: 2021-12-31 | Q175: 0.1268364157 | R175: 16268157.55 | U175: 10816449.36 | V175: 105951.2255 | W175: 157357.3132 | X175: 850000 | Y175: 0 | Z175: 2923681 | AA175: =Table17[[#This Row],[ Рыночная стоимость, тыс. руб. ]]*1000/Table17[[#This Row],[ Не продано площади, доля ПИК, кв.м. ]] -> 28638.5647 | AD175: 0
A176: . | B176: г. Москва, ул. Поляны, ЖК Столичные поляны, корп. 5 Башня | E176: 1.310386996 | F176: 22477.5959 | H176: 17450.1959 | I176: 0 | J176: 17257.5 | K176: 0 | L176: 43466 | M176: 44196 | N176: <01.01.2019 | O176: 2020-12-31 | Q176: 0.1237656898 | R176: 1034530.048 | U176: 1019409.983 | V176: 59070.54807 | W176: 143441.4157 | X176: паркинг отсутствует | AA176: =Table17[[#This Row],[ Рыночная стоимость, тыс. руб. ]]*1000/Table17[[#This Row],[ Не продано площади, доля ПИК, кв.м. ]] ->  | AB176: 16559394.26 | AD176: 959.5476902
A177: . | B177: г. Москва, ул. Поляны, ЖК Столичные поляны, корп. 4 Блок с подземными паркингами | E177: 5.579336145 | F177: 95704.6 | G177: 937 | H177: 75266.1 | I177: 599 | J177: 67278 | K177: 599 | L177: <01.01.2019 | M177: 44561 | N177: <01.01.2019 | O177: 2021-09-30 | Q177: 0.1267656898 | R177: 5384165.662 | U177: 5261667.255 | V177: 78207.8429 | W177: 150988.866 | X177: 850 | AA177: =Table17[[#This Row],[ Рыночная стоимость, тыс. руб. ]]*1000/Table17[[#This Row],[ Не продано площади, доля ПИК, кв.м. ]] ->  | AB177: 48856439.25 | AD177: 726.1874498
A178: . | B178: г. Москва, ул. Поляны, ЖК Столичные поляны, корп. 3 Башня | E178: 1.252363762 | F178: 21482.3 | H178: 10141.19 | I178: 0 | J178: 143.79 | K178: 0 | L178: <01.01.2019 | M178: 43555 | N178: <01.01.2019 | O178: 2019-09-30 | Q178: 0.1221656898 | R178: 970659.3146 | U178: 253212.2547 | V178: 1760986.541 | W178: 1320796.845 | X178: паркинг отсутствует | AA178: =Table17[[#This Row],[ Рыночная стоимость, тыс. руб. ]]*1000/Table17[[#This Row],[ Не продано площади, доля ПИК, кв.м. ]] ->  | AB178: -4054529.639 | AD178: -28197.57729
A179: . | B179: г. Москва, ул. Поляны, ЖК Столичные поляны, корп. 2 Башня | E179: 1.252363762 | F179: 21482.3 | H179: 12953.89 | I179: 0 | J179: 3435.79 | K179: 0 | L179: <01.01.2019 | M179: 43830 | N179: <01.01.2019 | O179: 2019-09-30 | Q179: 0.1221656898 | R179: 975462.2174 | U179: 256929.8998 | V179: 74780.44345 | W179: 210715.5851 | X179: паркинг отсутствует | AA179: =Table17[[#This Row],[ Рыночная стоимость, тыс. руб. ]]*1000/Table17[[#This Row],[ Не продано площади, доля ПИК, кв.м. ]] ->  | AB179: 3850844.587 | AD179: 1120.803247
A180: . | B180: г. Москва, ул. Поляны, ЖК Столичные поляны, корп. 1 Блок с подземным паркингом | E180: 5.239549335 | F180: 89876.1 | G180: 493 | H180: 58045.37 | I180: 125 | J180: 13973.87 | K180: 0 | L180: <01.01.2019 | M180: 43830 | N180: <01.01.2019 | O180: 2019-12-31 | Q180: 0.1321656898 | R180: 4565993.115 | U180: 2579551.876 | V180: 184598.2449 | W180: 180113.4435 | AA180: =Table17[[#This Row],[ Рыночная стоимость, тыс. руб. ]]*1000/Table17[[#This Row],[ Не продано площади, доля ПИК, кв.м. ]] ->  | AB180: -14769066.71 | AD180: -1056.905976
B181: г. Москва, ул. Полярная, вл. 25 | C181: Полярная 25 | D181: 16 | E181: 18.84 | F181: 278646.5 | G181: 1039 | H181: 248746.5 | I181: 1039 | J181: 194405.6 | K181: 1039 | L181: <01.01.2019 | M181: 45565 | N181: <01.01.2019 | O181: 2024-12-31 | Q181: 0.1301539976 | R181: 24218641.07 | U181: 15825137.74 | V181: =Table17[[#This Row],[ Оставшийсся бюджет, тыс. руб ]]*1000/Table17[[#This Row],[ Не продано площади, доля ПИК, кв.м. ]] -> 81402.68461 | W181: 163392.4944 | X181: 569008.6622 | Y181: 0 | Z181: 10518219.2 | AA181: =Table17[[#This Row],[ Рыночная стоимость, тыс. руб. ]]*1000/Table17[[#This Row],[ Не продано площади, доля ПИК, кв.м. ]] -> 54104.50725 | AD181: 0
A182: . | B182: г. Москва, ул. Полярная, вл. 25, Блок 2, корп. 2.3 | E182: 1.508584705 | F182: 22312.2 | H182: 22312.2 | I182: 0 | J182: 21695.1 | K182: 0 | L182: 44470 | M182: 45382 | N182: <01.01.2019 | O182: 2024-03-31 | Q182: 0.1277656898 | R182: 917197.5365 | U182: 903525.9865 | V182: =Table17[[#This Row],[ Оставшийсся бюджет, тыс. руб ]]*1000/Table17[[#This Row],[ Не продано площади, доля ПИК, кв.м. ]] -> 41646.54629 | W182: 156219.464 | X182: паркинг отсутствует | AA182: =Table17[[#This Row],[ Рыночная стоимость, тыс. руб. ]]*1000/Table17[[#This Row],[ Не продано площади, доля ПИК, кв.м. ]] ->  | AB182: 20173835.71 | AD182: 929.879821
A183: . | B183: г. Москва, ул. Полярная, вл. 25, Блок 2, корп. 2.2 | E183: 1.504913344 | F183: 22257.9 | H183: 22257.9 | I183: 0 | J183: 22089.3 | K183: 0 | L183: 44562 | M183: 45565 | N183: <01.01.2019 | O183: 2024-06-30 | Q183: 0.1277656898 | R183: 888751.4227 | U183: 877544.9327 | V183: =Table17[[#This Row],[ Оставшийсся бюджет, тыс. руб ]]*1000/Table17[[#This Row],[ Не продано площади, доля ПИК, кв.м. ]] -> 39727.14992 | W183: 153603.5564 | X183: паркинг отсутствует | AA183: =Table17[[#This Row],[ Рыночная стоимость, тыс. руб. ]]*1000/Table17[[#This Row],[ Не продано площади, доля ПИК, кв.м. ]] ->  | AB183: 20032036.5 | AD183: 906.8660618
A184: . | B184: г. Москва, ул. Полярная, вл. 25, Блок 2, корп. 2.1 | E184: 1.980324217 | F184: 29289.3 | H184: 29289.3 | I184: 0 | J184: 27352.6 | K184: 0 | L184: 44470 | M184: 45291 | N184: <01.01.2019 | O184: 2023-12-31 | Q184: 0.1277656898 | R184: 1156735.712 | U184: 1138447.752 | V184: =Table17[[#This Row],[ Оставшийсся бюджет, тыс. руб ]]*1000/Table17[[#This Row],[ Не продано площади, доля ПИК, кв.м. ]] -> 41621.18964 | W184: 159621.9608 | X184: паркинг отсутствует | AA184: =Table17[[#This Row],[ Рыночная стоимость, тыс. руб. ]]*1000/Table17[[#This Row],[ Не продано площади, доля ПИК, кв.м. ]] ->  | AB184: 27320162.57 | AD184: 998.8141006
A185: . | B185: г. Москва, ул. Полярная, вл. 25, Башня, корп. 5 | E185: 1.536001593 | F185: 22717.7 | H185: 22717.7 | I185: 0 | J185: 20454.6 | K185: 0 | L185: <01.01.2019 | M185: 44196 | N185: <01.01.2019 | O185: 2021-12-31 | Q185: 0.1442656898 | R185: 1133839.903 | U185: 1067704.396 | V185: =Table17[[#This Row],[ Оставшийсся бюджет, тыс. руб ]]*1000/Table17[[#This Row],[ Не продано площади, доля ПИК, кв.м. ]] -> 52198.74239 | W185: 166405.5768 | X185: паркинг отсутствует | AA185: =Table17[[#This Row],[ Рыночная стоимость, тыс. руб. ]]*1000/Table17[[#This Row],[ Не продано площади, доля ПИК, кв.м. ]] ->  | AB185: 27475996.52 | AD185: 1343.267359
A186: . | B186: г. Москва, ул. Полярная, вл. 25, Башня, корп. 6 | E186: 1.564419148 | F186: 23138 | H186: 23138 | I186: 0 | J186: 22546.7 | K186: 0 | L186: 44105 | M186: 44926 | N186: <01.01.2019 | O186: 2022-12-31 | Q186: 0.1242656898 | R186: 1155262.429 | U186: 1143958.309 | V186: =Table17[[#This Row],[ Оставшийсся бюджет, тыс. руб ]]*1000/Table17[[#This Row],[ Не продано площади, доля ПИК, кв.м. ]] -> 50737.28345 | W186: 153691.6887 | X186: паркинг отсутствует | AA186: =Table17[[#This Row],[ Рыночная стоимость, тыс. руб. ]]*1000/Table17[[#This Row],[ Не продано площади, доля ПИК, кв.м. ]] ->  | AB186: 21210566.07 | AD186: 940.7392688
A187: . | B187: г. Москва, ул. Полярная, вл. 25, Башня, корп. 4 | E187: 1.564419148 | F187: 23138 | H187: 23138 | I187: 0 | J187: 22546.7 | K187: 0 | L187: 43739 | M187: 44561 | N187: <01.01.2019 | O187: 2021-12-31 | Q187: 0.1242656898 | R187: 1155456.146 | U187: 1139755.996 | V187: =Table17[[#This Row],[ Оставшийсся бюджет, тыс. руб ]]*1000/Table17[[#This Row],[ Не продано площади, доля ПИК, кв.м. ]] -> 50550.90086 | W187: 153635.7414 | X187: паркинг отсутствует | AA187: =Table17[[#This Row],[ Рыночная стоимость, тыс. руб. ]]*1000/Table17[[#This Row],[ Не продано площади, доля ПИК, кв.м. ]] ->  | AB187: 23872334.59 | AD187: 1058.795061
A188: . | B188: г. Москва, ул. Полярная, вл. 25, Блок 1, корп. 1.3 | E188: 2.956541238 | F188: 43727.7 | H188: 43727.7 | I188: 0 | J188: 30678.7 | K188: 0 | L188: <01.01.2019 | M188: 44104 | N188: <01.01.2019 | O188: 2020-12-31 | Q188: 0.1412656898 | R188: 1754777.42 | U188: 1579925.923 | V188: =Table17[[#This Row],[ Оставшийсся бюджет, тыс. руб ]]*1000/Table17[[#This Row],[ Не продано площади, доля ПИК, кв.м. ]] -> 51499.11577 | W188: 184897.0516 | X188: паркинг отсутствует | AA188: =Table17[[#This Row],[ Рыночная стоимость, тыс. руб. ]]*1000/Table17[[#This Row],[ Не продано площади, доля ПИК, кв.м. ]] ->  | AB188: 43691660.65 | AD188: 1424.169233
A189: . | B189: г. Москва, ул. Полярная, вл. 25, Блок 1, корп. 1.2 | E189: 1.509970762 | F189: 22332.7 | H189: 22332.7 | I189: 0 | J189: 3407.4 | K189: 0 | L189: <01.01.2019 | M189: 43738 | N189: <01.01.2019 | O189: 2019-12-31 | Q189: 0.1171656898 | R189: 987106.8481 | U189: 303179.105 | V189: =Table17[[#This Row],[ Оставшийсся бюджет, тыс. руб ]]*1000/Table17[[#This Row],[ Не продано площади, доля ПИК, кв.м. ]] -> 88976.66988 | W189: 246486.6268 | X189: паркинг отсутствует | AA189: =Table17[[#This Row],[ Рыночная стоимость, тыс. руб. ]]*1000/Table17[[#This Row],[ Не продано площади, доля ПИК, кв.м. ]] ->  | AB189: 4103346.587 | AD189: 1204.245638
A190: . | B190: г. Москва, ул. Полярная, вл. 25, Блок 1, корп. 1.1 | E190: 1.157209052 | F190: 17115.3 | H190: 17115.3 | I190: 0 | J190: 1506.6 | K190: 0 | L190: <01.01.2019 | M190: 43646 | N190: <01.01.2019 | O190: 2019-12-31 | Q190: 0.1171656898 | R190: 818398.7839 | U190: 253981.4408 | V190: =Table17[[#This Row],[ Оставшийсся бюджет, тыс. руб ]]*1000/Table17[[#This Row],[ Не продано площади, доля ПИК, кв.м. ]] -> 168579.212 | W190: 272571.7318 | X190: паркинг отсутствует | AA190: =Table17[[#This Row],[ Рыночная стоимость, тыс. руб. ]]*1000/Table17[[#This Row],[ Не продано площади, доля ПИК, кв.м. ]] ->  | AB190: -702956.4221 | AD190: -466.5846423
A191: . | B191: г. Москва, ул. Полярная, вл. 25, Башня, корп. 3 | E191: 1.536001593 | F191: 22717.7 | H191: 22717.7 | I191: 0 | J191: 22127.9 | K191: 0 | L191: 44013 | M191: 44834 | N191: <01.01.2019 | O191: 2022-09-30 | Q191: 0.1242656898 | R191: 1133720.874 | U191: 1121731.774 | V191: =Table17[[#This Row],[ Оставшийсся бюджет, тыс. руб ]]*1000/Table17[[#This Row],[ Не продано площади, доля ПИК, кв.м. ]] -> 50693.09666 | W191: 151855.0417 | X191: паркинг отсутствует | AA191: =Table17[[#This Row],[ Рыночная стоимость, тыс. руб. ]]*1000/Table17[[#This Row],[ Не продано площади, доля ПИК, кв.м. ]] ->  | AB191: 20894398.73 | AD191: 944.2558369
A192: . | B192: г. Москва, ул. Полярная, вл. 25, закрытая наземная автостоянка на 300 м/м, корпус 10 | E192: 0 | F192: 0 | G192: 300 | H192: 0 | I192: 300 | J192: 0 | K192: 300 | L192: 43466 | M192: NA | N192: 43466 | O192: 2020-12-31 | Q192: 0.1237656898 | R192: 201279.7023 | U192: 201279.7023 | V192: 0 | W192: 0 | X192: 400 | AA192: =Table17[[#This Row],[ Рыночная стоимость, тыс. руб. ]]*1000/Table17[[#This Row],[ Не продано площади, доля ПИК, кв.м. ]] ->  | AB192: -1471938.773 | AD192: 0
A193: . | B193: г. Москва, ул. Полярная, вл. 25, закрытая наземная автостоянка на 300 м/м, корпус 11 | E193: 0 | F193: 0 | G193: 300 | H193: 0 | I193: 300 | J193: 0 | K193: 300 | L193: 43831 | M193: NA | N193: 43647 | O193: 2021-12-31 | Q193: 0.1267656898 | R193: 201279.661 | U193: 201279.661 | V193: 0 | W193: 0 | X193: 400 | AA193: =Table17[[#This Row],[ Рыночная стоимость, тыс. руб. ]]*1000/Table17[[#This Row],[ Не продано площади, доля ПИК, кв.м. ]] ->  | AB193: -1421747.086 | AD193: 0
A194: . | B194: г. Москва, ул. Полярная, вл. 25, подземная автостоянка на 439 м/м, корп. 2.4 | E194: 0 | F194: 0 | G194: 439 | H194: 0 | I194: 439 | J194: 0 | K194: 439 | L194: 44562 | M194: NA | N194: <01.01.2019 | O194: 2024-12-31 | Q194: 0.1302656898 | R194: 543634.0058 | U194: 535927.2358 | V194: 0 | W194: 0 | X194: 800 | AA194: =Table17[[#This Row],[ Рыночная стоимость, тыс. руб. ]]*1000/Table17[[#This Row],[ Не продано площади, доля ПИК, кв.м. ]] ->  | AB194: -3272923.676 | AD194: 0
A195: . | B195: г. Москва, ул. Полярная, вл. 25, ДОУ 220 мест, корп. 9 | E195: 0.2163601553 | F195: 3200 | H195: 0 | I195: 0 | J195: 0 | K195: 0 | M195: NA | N195: 43831 | O195: 2022-12-31 | Q195: 0.1267656898 | R195: 210053.3898 | U195: 210053.3898 | V195: 0 | W195: 0 | X195: паркинг отсутствует | AA195: =Table17[[#This Row],[ Рыночная стоимость, тыс. руб. ]]*1000/Table17[[#This Row],[ Не продано площади, доля ПИК, кв.м. ]] ->  | AB195: -2974026.967 | AD195: 0
A196: . | B196: г. Москва, ул. Полярная, вл. 25, ДОУ 300 мест, корп. 8 | E196: 0.3853915265 | F196: 5700 | H196: 0 | I196: 0 | J196: 0 | K196: 0 | M196: NA | N196: 43556 | O196: 2021-12-31 | Q196: 0.1267656898 | R196: 255470.3493 | U196: 255470.3493 | V196: 0 | W196: 0 | X196: паркинг отсутствует | AA196: =Table17[[#This Row],[ Рыночная стоимость, тыс. руб. ]]*1000/Table17[[#This Row],[ Не продано площади, доля ПИК, кв.м. ]] ->  | AB196: -3948101.176 | AD196: 0
A197: . | B197: г. Москва, ул. Полярная, вл. 25, СОШ на 1100 мест, корп. 7 | E197: 1.419863519 | F197: 21000 | H197: 0 | I197: 0 | J197: 0 | K197: 0 | M197: NA | N197: 43466 | O197: 2021-12-31 | Q197: 0.1267656898 | R197: 851567.7347 | U197: 851567.7347 | V197: 0 | W197: 0 | X197: паркинг отсутствует | AA197: =Table17[[#This Row],[ Рыночная стоимость, тыс. руб. ]]*1000/Table17[[#This Row],[ Не продано площади, доля ПИК, кв.м. ]] ->  | AB197: -13173558.53 | AD197: 0
B198: г. Москва, ВДНХ, ул. Сельскохозяйственная, вл. 35 | C198: Green Park | D198: 14 | E198: 33.9918 | F198: 428942.66 | G198: 2616 | H198: 371890.44 | I198: 2616 | J198: 179042.912 | K198: 1529 | L198: <01.01.2019 | M198: 44834 | N198: <01.01.2019 | O198: 2024-12-31 | Q198: 0.1223545516 | R198: 44909403.73 | U198: 22560120.24 | V198: 126003.9841 | W198: 197131.6495 | X198: 893523.5448 | Y198: 0 | Z198: 9790461 | AA198: =Table17[[#This Row],[ Рыночная стоимость, тыс. руб. ]]*1000/Table17[[#This Row],[ Не продано площади, доля ПИК, кв.м. ]] -> 54682.20378 | AD198: 0
A199: . | B199: г. Москва, ВДНХ, ул. Сельскохозяйственная, вл. 35, оч. 3, Блок 8 | E199: 5.117770786 | F199: 64581.17 | G199: 377 | H199: 48452.95 | I199: 377 | J199: 46749.17 | K199: 377 | L199: 44013 | M199: 44834 | N199: <01.01.2019 | O199: 2022-09-30 | Q199: 0.1217656898 | R199: 3700969.201 | U199: 3635052.925 | V199: 77756.52327 | W199: 184964.4545 | X199: 962 | AA199: =Table17[[#This Row],[ Рыночная стоимость, тыс. руб. ]]*1000/Table17[[#This Row],[ Не продано площади, доля ПИК, кв.м. ]] ->  | AB199: 10414356.95 | AD199: 222.7709487
A200: . | B200: г. Москва, ВДНХ, ул. Сельскохозяйственная, вл. 35, оч. 3, Блок 7 | E200: 3.306455883 | F200: 41724.18 | G200: 223 | H200: 41724.18 | I200: 223 | J200: 40387.7 | K200: 223 | L200: 43647 | M200: 44561 | N200: <01.01.2019 | O200: 2021-12-31 | Q200: 0.1192656898 | R200: 2331683.331 | U200: 2291381.281 | V200: 56734.63161 | W200: 187564.4902 | X200: 963.5 | AA200: =Table17[[#This Row],[ Рыночная стоимость, тыс. руб. ]]*1000/Table17[[#This Row],[ Не продано площади, доля ПИК, кв.м. ]] ->  | AB200: 55162074.19 | AD200: 1365.813705
A201: . | B201: г. Москва, ВДНХ, ул. Сельскохозяйственная, вл. 35, оч. 3, Блок 6 | E201: 3.313261492 | F201: 41810.06 | G201: 221 | H201: 41810.06 | I201: 221 | J201: 40567.16 | K201: 221 | L201: 43556 | M201: 44377 | N201: <01.01.2019 | O201: 2021-03-31 | Q201: 0.1192656898 | R201: 2370289.647 | U201: 2326106.438 | V201: 57339.64216 | W201: 185540.8344 | X201: 973 | AA201: =Table17[[#This Row],[ Рыночная стоимость, тыс. руб. ]]*1000/Table17[[#This Row],[ Не продано площади, доля ПИК, кв.м. ]] ->  | AB201: 60428087.25 | AD201: 1489.581407
... 973 more rows

Sheet Summary по городам
C1: ПИК
B2: =IF(lang="RUS",'[9]labels!!!'!A43,'[9]labels!!!'!A48) -> Объект | C2: Количество проектов | D2: Площадь земельного участка, га | E2: Не продано площади ПИК, кв.м. | F2: Рыночная стоимость, млн. руб. | G2: Рыночная стоимость, дол. США
B3: Объекты в Москве | C3: =SUBTOTAL(103,'Проекты по городам ПИК'!B4:B281) -> 24 | D3: ='Проекты по городам ПИК'!E282 -> 805.2626 | E3: ='Проекты по городам ПИК'!J282 -> 2029781.39 | F3: ='Проекты по городам ПИК'!Z282/1000 -> 108571.212 | G3: ='Проекты по городам ПИК'!AB282 -> 0
B4: Объекты в Новой Москве | C4: =SUBTOTAL(103, 'Проекты по городам ПИК'!B284:B601) -> 4 | D4: ='Проекты по городам ПИК'!E602 -> 414.912 | E4: ='Проекты по городам ПИК'!J602 -> 1885366.314 | F4: ='Проекты по городам ПИК'!Z602/1000 -> 64807.28039 | G4: ='Проекты по городам ПИК'!AB602 -> 0
B5: Объекты в Московской Области | C5: =SUBTOTAL(103,'Проекты по городам ПИК'!B604:B1197) -> 24 | D5: ='Проекты по городам ПИК'!E1198 -> 4497.48015 | E5: ='Проекты по городам ПИК'!J1198 -> 5429587.411 | F5: ='Проекты по городам ПИК'!Z1198/1000 -> 85487.03065 | G5: ='Проекты по городам ПИК'!AB1198 -> 0
B6: Регионы | C6: =SUM(C7:C19) -> 17 | D6: =SUM(D7:D19) -> 210.4922 | E6: =SUM(E7:E19) -> 1525318.294 | F6: =SUM(F7:F19)/1000 -> 10681.83909 | G6: 0
B7: Калуга | C7: =SUBTOTAL(103,'Проекты по городам ПИК'!B1201:B1269) -> 4 | D7: ='Проекты по городам ПИК'!E1270 -> 12.9373 | E7: ='Проекты по городам ПИК'!J1270 -> 60429.15905 | F7: ='Проекты по городам ПИК'!Z1270 -> 907744.8275 | G7: ='Проекты по городам ПИК'!AB1270 -> 0
B8: Обнинск | C8: =SUBTOTAL(103,'Проекты по городам ПИК'!B1272:B1348) -> 3 | D8: ='Проекты по городам ПИК'!E1349 -> 30.626 | E8: ='Проекты по городам ПИК'!J1349 -> 106680.55 | F8: ='Проекты по городам ПИК'!Z1349 -> 612978.5889 | G8: ='Проекты по городам ПИК'!AB1349 -> 0
B9: Нижний Новгород | C9: =SUBTOTAL(103,'Проекты по городам ПИК'!B1352:B1382) -> 0 | D9: ='Проекты по городам ПИК'!E1383 -> 0 | E9: ='Проекты по городам ПИК'!J1383 -> 0 | F9: ='Проекты по городам ПИК'!Z1383 -> 0 | G9: ='Проекты по городам ПИК'!AB1383 -> 0
B10: Ижевск
B11: Калининград | C11: =SUBTOTAL(103,'Проекты по городам ПИК'!B1391:B1401) -> 0 | D11: ='Проекты по городам ПИК'!E1402 -> 0 | E11: 0 | F11: ='Проекты по городам ПИК'!Z1402 -> 0 | G11: ='Проекты по городам ПИК'!AB1402 -> 0
B12: Екатеринбург | C12: =SUBTOTAL(103,'Проекты по городам ПИК'!B1404:B1434) -> 1 | D12: ='Проекты по городам ПИК'!E1435 -> 22 | E12: ='Проекты по городам ПИК'!J1435 -> 274046.33 | F12: ='Проекты по городам ПИК'!Z1435 -> 337321.0664 | G12: ='Проекты по городам ПИК'!AB1435 -> 0
B13: Новороссийск | C13: =SUBTOTAL(103,'Проекты по городам ПИК'!B1437:B1530) -> 2 | D13: ='Проекты по городам ПИК'!E1531 -> 47.1971 | E13: ='Проекты по городам ПИК'!J1531 -> 319424.71 | F13: ='Проекты по городам ПИК'!Z1531 -> 2245582.487 | G13: ='Проекты по городам ПИК'!AB1531 -> 0
B14: Ростов-на-Дону | C14: =SUBTOTAL(103,'Проекты по городам ПИК'!B1534:B1603) -> 2 | D14: ='Проекты по городам ПИК'!E1604 -> 16.3337 | E14: ='Проекты по городам ПИК'!J1604 -> 144166.6983 | F14: ='Проекты по городам ПИК'!Z1604 -> 1812510.542 | G14: ='Проекты по городам ПИК'!AB1604 -> 0
B15: Таганрог | C15: =SUBTOTAL(103,'Проекты по городам ПИК'!B1606:B1667) -> 1 | D15: ='Проекты по городам ПИК'!E1668 -> 34.2544 | E15: ='Проекты по городам ПИК'!J1668 -> 267736.477 | F15: ='Проекты по городам ПИК'!Z1668 -> 208102.2434 | G15: ='Проекты по городам ПИК'!AB1668 -> 0
B16: Санкт-Петербург | C16: =SUBTOTAL(103,'Проекты по городам ПИК'!B1671:B1730) -> 2 | D16: ='Проекты по городам ПИК'!E1731 -> 15.8937 | E16: ='Проекты по городам ПИК'!J1731 -> 138742.7 | F16: ='Проекты по городам ПИК'!Z1731 -> 3394660.927 | G16: ='Проекты по городам ПИК'!AB1731 -> 0
B17: Пермь | C17: =SUBTOTAL(103,'Проекты по городам ПИК'!B1733:B1805) -> 1 | D17: ='Проекты по городам ПИК'!E1806 -> 6.42 | E17: ='Проекты по городам ПИК'!J1806 -> 516.78 | F17: ='Проекты по городам ПИК'!Z1806 -> 19742.47913 | G17: ='Проекты по городам ПИК'!AB1806 -> 0
B19: Ярославль | C19: =SUBTOTAL(103,'Проекты по городам ПИК'!B1907:B2072) -> 1 | D19: ='Проекты по городам ПИК'!E2073 -> 24.83 | E19: ='Проекты по городам ПИК'!J2073 -> 213574.89 | F19: ='Проекты по городам ПИК'!Z2073 -> 1143195.932 | G19: ='Проекты по городам ПИК'!AB2073 -> 0
B20: Итоговая стоимость портфеля объектов коммерческой недвижимости, млн. руб. | C20: =SUM(C3:C6) -> 69 | D20: =SUBTOTAL(109,D3:D6) -> 5928.14695 | E20: =SUBTOTAL(109,E3:E6) -> 10870053.41 | F20: =SUBTOTAL(109,F3:F6) -> 269547.3622 | G20: =SUBTOTAL(109,G3:G6) -> 0
J65: =4499628/1000 -> 4499.628

Sheet Summary по стадиям
C1: ПИК
B2: Объект | C2: Количество проектов | D2: Площадь земельного участка, га | E2: Не продано площади ПИК, кв.м. | F2: Рыночная стоимость, млн. руб.
B3: Завершенные строительством и частично проданные | C3: =COUNTA('проекты по стадиям ПИК'!C5:C54) -> 0 | D3: ='проекты по стадиям ПИК'!F55 -> 0 | E3: ='проекты по стадиям ПИК'!K55 -> 0 | F3: ='проекты по стадиям ПИК'!AA55 -> 0
B4: Объекты в процессе развития | C4: =COUNTA('проекты по стадиям ПИК'!C57:C123) -> 66 | D4: ='проекты по стадиям ПИК'!F124 -> 3642.8418 | E4: ='проекты по стадиям ПИК'!K124 -> 10447631.41 | F4: ='проекты по стадиям ПИК'!AA124/1000 -> 254287.3273
B5: Объекты для будущего развития | C5: =COUNTA('проекты по стадиям ПИК'!C126:C175) -> 12 | D5: ='проекты по стадиям ПИК'!F176 -> 2285.30515 | E5: ='проекты по стадиям ПИК'!K176 -> 422422 | F5: ='проекты по стадиям ПИК'!AA176/1000 -> 15260.03483
B6: Итоговая стоимость портфеля объектов коммерческой недвижимости, млн. руб. | C6: =SUM(C3:C5) -> 78 | D6: =SUM(D3:D5) -> 5928.14695 | E6: 10870053.41 | F6: 269547.3622
B9: Завершенные строительством и частично проданные
B10: Объекты в процессе развития
B11: Объекты для будущего развития

Sheet Списки (hidden)
B4: Области | C4: город Москва | D4: Новая Москва | E4: Московская Область | F4: Регионы | G4: Калуга | H4: Обнинск | I4: Нижний_Новгород | J4: Краснодар | K4: Новороссийск | L4: Ростов_на_Дону | M4: Таганрог | N4: Омск | O4: Пермь | P4: Ярославль
B5: Всего | C5: город Москва | D5: Новая Москва | E5: Московская Область | F5: Регионы | G5: Калуга | H5: Обнинск | I5: Нижний Новгород | J5: Краснодар | K5: Новороссийск | L5: Ростов-на-Дону | M5: Таганрог | N5: Омск | O5: Пермь | P5: Ярославль
B6: город_Москва | C6: г. Москва, Варшавское ш., вл. 14 | D6: Н.М. г. Москва, посел. Сосенское (Коммунарка) | E6: обл. г.Котельники, мкр. Опытное поле, владение 10/2 | F6: Калуга | G6: регионы г. Калуга, Правобережье, уч. 8, уч. 9 | H6: регионы г. Обнинск, мкр. 38 (Дом ВМФ) | I6: регионы г. Нижний Новгород, Советский р-н, ул. Артельная | J6: регионы Краснодар, Ростовское ш. | K6: регионы г. Новороссийск, мкр. 15 | L6: регионы г. Ростов-на-Дону, Кировский р-н, пр. Соколова 86 | M6: регионы г. Таганрог, мкр. V А Русское поле, ул. С. Шило | N6: регионы г. Омск, б-р Архитекторов - ул. Ватутина (мкр. "Кристалл-2") | O6: регионы г. Пермь, Индустриальный р-н, ул. Мира - шоссе Космонавтов, ЖК Полет | P6: регионы г. Ярославль, мкр. 1, мкр. Сокол (Фрунзенский район)
B7: Новая_Москва | C7: г. Москва, Варшавское ш., вл. 141 | E7: обл. г.Королев, в границах ул. Калининградской, пр-да Циолковского и Октябрьского б-ра | F7: Обнинск | G7: регионы г. Калуга, Сиреневый бульвар | H7: регионы г. Обнинск, мкр. 55 | I7: регионы г. Нижний Новгород, ул. Даргомыжского | K7: регионы г. Новороссийск, мкр. 16 | L7: регионы г. Ростов-на-Дону, Ленинский р-н, пер. Доломановский - ул. Согласия (2 оч. ГФК Сиверса) | N7: регионы г. Омск, б-р Архитекторов - ул. Волгоградская | O7: регионы г. Пермь, Мотовилихинский р-н, ж/р-н Ива | P7: регионы г. Ярославль, мкр. 5, оч. 2, ж/р-н "Сокол"
B8: Московская_Область | C8: г. Москва, Измайловский пр-д, вл. 11 | E8: обл. г. Дедовск, ул. Ногина - ул. Первомайская | F8: Нижний_Новгород | G8: регионы г. Калуга, ул. Болотникова | H8: регионы г. Обнинск, ул. Курчатова | K8: регионы г. Новороссийск, мкр. 17, мкр. Южный берег | L8: регионы г. Ростов-на-Дону, Первомайский р-н, мкр. 1, ж/р-на Темерник, пятно 1-13 | O8: регионы г. Пермь, Свердловский р-н, ул. 25 Октября
B9: Регионы | C9: г. Москва, Ново-Переделкино, мкр. 14 | E9: обл. г. Дмитров, ул. Внуковская | F9: Краснодар | G9: регионы г. Калуга, ул. Калужского ополчения | L9: регионы г. Ростов-на-Дону, Аксайский р-н, ЖК Норд
C10: г. Москва, ул. Академика Виноградова, вл. 7 | E10: обл. г. Дмитров, ул. Махалина-2 | F10: Новороссийск | G10: регионы г.Калуга, ул. Ермоловская
C11: г. Москва, ул. Заречная, вл. 4А, 4Б | E11: обл. г. Дмитров, ул. Московская | F11: Ростов_на_Дону
B12: Всего | C12: г. Москва, ул. Красного Маяка, напр. д. 13 | E12: обл. г. Дмитров, ул. Шлюзовая | F12: Таганрог
B13: Итог | C13: г. Москва, ул. Мантулинская, вл. 7 | E13: обл. г. Долгопрудный, мкр. Центральный | F13: Омск
C14: г. Москва, ул. Маршала Захарова, вл. 7 | E14: обл. г. Железнодорожный, ул. Автозаводская | F14: Пермь
C15: г. Москва, ул. Мироновская, вл. 46 | E15: обл. г. Люберцы, р-н Красная горка | F15: Ярославль
C16: г. Москва, ул. Перовская, вл. 66, КХЗ | E16: обл. г. Мытищи, р-н Ярославский
C17: г. Москва, Чертаново Южное, мкр.17-18 | E17: обл. г. Химки, Звезда России
C18: г. Москва, пр-т Мира, вл. 165-169 | E18: обл. г. Химки, Новокуркино
C19: г. Москва, Пресненский Вал, вл. 21 | E19: обл. г. Химки, ул. Совхозная, вл. 11
C20: г. Москва, р-н Кунцево, кв. 7, 20 | E20: обл. Ленинский р-н, д. Боброво
C21: г. Москва, ул. Вавилова, вл. 4 | E21: обл. Ленинский р-н, д. Дрожжино-2
C22: г. Москва, ул. Заповедная, вл. 14-16 | E22: обл. Одинцовский р-н, г.п. Заречье
C23: г. Москва, ул. Мытная, вл. 13 | E23: обл. г. Дмитров, ул. Махалина

Sheet labels!!! (hidden)
A1: Объекты | B1: Средневзвешенная ставка дисконтирования
B2: Мин | C2: Макс | D2: Средняя | E2: Средневзвешенная
A3: Завершенные строительством и частично проданные
A4: Москва
A5: Московская область
A6: Регионы
A7: Объекты в процессе развития
A8: =A4 -> Москва
A9: =A5 -> Московская область
A10: Регионы
A11: Объекты для будущего развития
A12: =A4 -> Москва
A13: =A5 -> Московская область
A14: Регионы
A16: Properties | B16: Spread of Rates
B17: Min | C17: Max | D17: Average | E17: Weighted Average
A18: Properties held as investment
A19: Moscow
A20: Moscow Region
A21: Regions
A22: Properties in course of development
A23: =A19 -> Moscow
A24: =A20 -> Moscow Region
A25: Regions
A26: Properties held for development
A27: =A19 -> Moscow
A28: =A20 -> Moscow Region
A29: Regions
A31: Отдельно стоящая коммерческая недвижимость | B31: Общая нераспроданная площадь, доля ПИК, кв. м
A32: =A4 -> Москва
A33: =A5 -> Московская область
A34: Регионы
A35: Итого
A37: Stand Alone Commercial Real Estate | B37: Total Unsold PIK's Area, sqm
A38: =A19 -> Moscow
A39: =A20 -> Moscow Region
A40: Regions
A41: Total
A43: Объект | B43: Количество проектов | C43: Площадь земельного участка, га | D43: Не продано площади ПИК, кв.м. | E43: Рыночная стоимость, тыс. руб. | F43: Рыночная стоимость, дол. США
A44: =A3 -> Завершенные строительством и частично проданные
A45: =A7 -> Объекты в процессе развития
A46: =A11 -> Объекты для будущего развития
A47: ИТОГОВАЯ СТОИМОСТЬ ПОРТФЕЛЯ ОБЪЕКТОВ НЕДВИЖИМОСТИ
A48: Property | B48: Number of projects | C48: Land plot, Ha | D48: PIK's unsold area, sqm | E48: Market Value, Thousand Rubles | F48: Market Value, US Dollars
A49: =A18 -> Properties held as investment
A50: =A22 -> Properties in course of development
A51: =A26 -> Properties held for development
A52: Grand Total
A55: Объекты в Москве | B55: Moscow
A56: Объекты в Новой Москве | B56: New Moscow
A57: Объекты в Москвовской Области | B57: Moscow Region
A58: Регионы | B58: Regions
A59: Калуга | B59: Kaluga
A60: Обнинск | B60: Obninsk
A61: Нижний Новгород | B61: Nizhniy Novgorod
A62: Ижевск | B62: Izhevsk
A63: Калининград | B63: Kaliningrad
A64: Краснодар | B64: Krasnodar
A65: Новороссийск | B65: Novorossiysk
A66: Ростов-на-Дону | B66: Rostov-on-Don
A67: Таганрог | B67: Taganrog
A68: Омск | B68: Omsk
A69: Пермь | B69: Perm
A70: Санкт-Петербург | B70: Saint Petersburg
A71: Ярославль | B71: Yaroslavl
A74: # | B74: Объект | C74: Описание | D74: Количество строений | E74: Площадь земельного участка, га | F74: Площадь на продажу всего, кв.м. | G74: Паркинг на продажу всего, шт. | H74: Площадь на продажу, доля ПИК, кв.м. | I74: Паркинг на продажу, доля ПИК, шт. | J74: Не продано площади, доля ПИК, кв.м. | K74: Не продано паркинга, доля ПИК, шт. | L74: Старт продаж | M74: Окончание продаж | N74: Начало проектирования | O74: Завершение строительства | P74: Стадия девелопмента | Q74: Ставка дисконтирования | R74: Общий бюджет, тыс. руб | S74: Обременения, тыс.руб | T74: Бюджет факт, тыс. руб | U74: Оставшийсся бюджет, тыс. руб | V74: Оставшийся бюджет, руб. за кв.м. непроданных площадей | W74: Средняя цена продажи квартир/нежилых помещений, руб. за 1 кв.м. | X74: Средняя цена продажи паркинга, с НДС, руб. за шт. | Y74: Цена аренды, руб. за кв.м. в год | Z74: Рыночная стоимость, тыс. руб. | AA74: Рыночная стоимость, руб. за кв.м. непроданных площадей | AB74: Рыночная стоимость, дол. США | AC74: Рыночная стоимость, дол. США за кв.м. непроданных площадей
A76: # | B76: Property | C76: Property Description | D76: Number of Buildings | E76: Land plot, Ha | F76: Total Project Net Selling Area, sqm | G76: Total Project Parking, spaces | H76: PIK's Net Selling Area, sqm | I76: PIK's parking, spaces | J76: PIK's unsold area, sqm | K76: PIK's unsold parking, spaces | L76: Start of Sales | M76: Окончание продаж | N76: Начало проектирования | O76: Estimated Completion Dare | P76: Development Stage | Q76: Discount Rate, % | R76: Total Development Cost, Rubles | S76: Обременения, тыс.руб | T76: Actual Development Cost, Rubles | U76: Development Cost to Completion, USD | V76: Development Cost to Completion, Rubles per unsold area | W76: Sale price for residential/commercial premises, Rubles | X76: Sale price, parking, Rubles | Y76: Цена аренды, руб. за кв.м. в год | Z76: Market Value, Thousand Rubles | AA76: Market Value, Rubles per sqm of Unsold Aboveground Area | AB76: Market Value, US Dollars | AC76: Market Value, US Dollars per sqm Unsold Aboveground Area
A89: обл. Дмитров, ул. Московская
A90: обл. Дмитров, ул. Сенная
A91: обл. Дмитров, ул. Шлюзовая
A92: обл. Железнодорожный, ул. Автозаводская
A93: обл. Ленинский р-н, Боброво
A94: обл. Ленинский р-н, Дрожжино 2
A95: обл. Ленинский р-н, Дрожжино
A96: обл. Люберцы, р-н Красная горка
A97: обл. Одинцово, мкр. 7-7А
A98: обл. Королев
A99: обл. Мытищи, ул. 3-я Крестьянская
A100: обл. Химки, Новокуркино
A101: обл. Красногорский р-н, Путилково
A102: обл. Химки, ул. Совхозная, вл. 11
A103: обл. Химки, р-н Юбилейный
A104: обл. Химки, Звезда России
A105: обл. Дедовск, ул. Ногина - ул. Первомайская
A106: обл. Дмитров, ул. Внуковская
A107: обл. Дмитров, ул. Махалина
A108: обл. Мытищи, р-н Ярославский
A109: обл. Одинцовский р-н, г.п. Заречье
A110: обл. Долгопрудный, мкр. Центральный
